{"text_format":"1","workbook":"xlsx","n_sheets":8,"sheets":["INSTRUCTIONS","Client-Matter Name 1","Client-Matter Name 2","Client-Matter Name 3","Client-Matter Name 4","Client-Matter Name 5","Client-Matter Name 6","Ledger Template"],"not_rendered":{"charts":0,"images":1,"macros":0,"external_links":0,"defined_names":1,"comments":0,"pivot_tables":0},"unopened":[],"bounds":{"document_bytes":16777216,"sheet_cells":100000,"rows_first":2000,"rows_last":500,"rows_between":2000,"halvings":0,"cell_chars":16384,"cell_head_chars":4096},"cells_cut":0,"cells_raw":0,"read":"whole","date_system":"1900"}

{"sheet":"INSTRUCTIONS","index":0,"n_rows":35,"n_cols":1,"rows_kept":35,"cut":false,"hidden":false,"merged":[[0,0,6,0]]}
[]
[]
[]
[]
[]
[]
[]
[]
["This is the Excel-based Trust Accounting Client Ledgers from The Practice Resource Center of The Florida Bar."]
[]
["A template document allows you to save a new Excel spreadsheet containing all of the formatting information, formulas and other characteristics of the template, while keeping the template itself unchanged.  The new spreadsheet is your working document."]
[]
["IMPORTANT INFORMATION"]
["For this spreadsheet to work properly, columns which contain formula to calculate results must not be changes or deleted.  These columns are coded in Yellow or Red with warnings at the top of the column."]
["You do all of your transaction entries in the white columns with green headings."]
["NOTE:  In this Client Ledger Spreadsheet, as you add a new client/matter it will be necessary to ADD a TAB with the new Client/Matter name to the spreadsheet.  It is an easy task, and it is also easy to move the tabs left or right to maintain alpabetical order.  Detailed instructions are below. "]
[]
["To begin a new Yearly Set of Client Ledgers do the following:"]
["1.  Open the Client Ledger template"]
["2.  Do a Save As to make a new Excel Spreadsheet and name it appropriately, such as  \"Your Firm Name Trust Account Client Ledgers 2008\" "]
["3.  Edit each of the TABS for the proper year, trust account name, and Client and Matter Name and/or number."]
["4.  Manually enter as a Receipt the opening deposit."]
["5.  Add additonal Client-Matter TABS as necessary, and make changes as outlined in 3 & 4 above."]
[]
["HOW TO ADD A TAB"]
["1.  Use the Ledger Template Tab (Yellow TAB)  It is probably the last TAB to the right."]
["2.  Put Curser on the Yellow Ledger Template TAB and Right Click.  Select Move or Copy"]
["3.  In the Pop-up Box titled Move or Copy, check the box \"Make a copy\"  Highlight \"Ledger Template\" from the list above the checkbox.  Click OK."]
["4.  Find the new TAB titled \"Ledger Template (2)\".  Right click on the TAB and select Rename.  Type the new Client-Matter Name."]
["5.  Again select the new TAB, Right Click, Slect Tab Color, and then select a matching green."]
["6.  Lastly, using the mouse, left click and hold, then drag the tab left or right until it is positioned where you want it.  This allows alphabetical ordering of Tabs for instance."]
[]
["HOW TO DELETE A TAB  (CAUTION:  All data will be lost from the deleted tab.  It is not recoverable.)"]
["1.  Right click on the TAB you wish to Delete."]
["2.  Select Delete,  Read the warning in the pop-up warning, then select delete again if you wish to proceed, or cancel if not."]

{"sheet":"Client-Matter Name 1","index":1,"n_rows":603,"n_cols":12,"rows_kept":603,"cut":false,"hidden":false,"merged":[[3,0,3,1],[4,0,4,1],[3,9,3,12]]}
[null,null,"Trust Account of "]
["Fiscal Year 20xx",null,"Client-Matter Ledger"]
[]
["Client Name and/or Number",null,null,"Date Opened",null,null,null,null,null,"MAKE NO CHANGES IN THESE COLUMNS"]
["Matter Name and/or Number",null,null,null,null,null,null,null,null,null,-1,{"$f":"(IF(D8=0,0,D8)+IF(E8=0,0,E8))*(IF(D8>0,$K5,1))","v":0}]
[null,null,null,null,null,"Caution:  Calculated Column - Make No Changes Here",null,null,null,null,null,{"$f":"(IF(D9=0,0,D9)+IF(E9=0,0,E9))*(IF(D9>0,$K$5,1))+F8","v":0}]
["Date","Item # or Type Transaction","Description","Disbursements","Receipts","Balance",null,null,null,null,null,0]
[null,null,null,null,null,{"$f":"(IF(D8=0,0,D8)+IF(E8=0,0,E8))*(IF(D8>0,$K$5,1))","v":0},null,null,null,null,null,0]
[null,null,null,null,null,{"$f":"IF(D9+E9=0,0,L6)","v":0},null,null,null,null,null,0]
[null,null,null,null,null,0,null,null,null,null,null,0]
[null,null,null,null,null,0,null,null,null,null,null,0]
[null,null,null,null,null,0,null,null,null,null,null,0]
[null,null,null,null,null,0,null,null,null,null,null,0]
[null,null,null,null,null,0,null,null,null,null,null,0]
[null,null,null,null,null,0,null,null,null,null,null,0]
[null,null,null,null,null,0,null,null,null,null,null,0]
[null,null,null,null,null,0,null,null,null,null,null,0]
[null,null,null,null,null,0,null,null,null,null,null,0]
[null,null,null,null,null,0,null,null,null,null,null,0]
[null,null,null,null,null,0,null,null,null,null,null,0]
[null,null,null,null,null,0,null,null,null,null,null,0]
[null,null,null,null,null,0,null,null,null,null,null,0]
[null,null,null,null,null,0,null,null,null,null,null,0]
[null,null,null,null,null,0,null,null,null,null,null,0]
[null,null,null,null,null,0,null,null,null,null,null,0]
[null,null,null,null,null,0,null,null,null,null,null,0]
[null,null,null,null,null,0,null,null,null,null,null,0]
[null,null,null,null,null,0,null,null,null,null,null,0]
[null,null,null,null,null,0,null,null,null,null,null,0]
[null,null,null,null,null,0,null,null,null,null,null,0]
[null,null,null,null,null,0,null,null,null,null,null,0]
[null,null,null,null,null,0,null,null,null,null,null,0]
[null,null,null,null,null,0,null,null,null,null,null,0]
[null,null,null,null,null,0,null,null,null,null,null,0]
[null,null,null,null,null,0,null,null,null,null,null,0]
[null,null,null,null,null,0,null,null,null,null,null,0]
[null,null,null,null,null,0,null,null,null,null,null,0]
[null,null,null,null,null,0,null,null,null,null,null,0]
[null,null,null,null,null,0,null,null,null,null,null,0]
[null,null,null,null,null,0,null,null,null,null,null,0]
[null,null,null,null,null,0,null,null,null,null,null,0]
[null,null,null,null,null,0,null,null,null,null,null,0]
[null,null,null,null,null,0,null,null,null,null,null,0]
[null,null,null,null,null,0,null,null,null,null,null,0]
[null,null,null,null,null,0,null,null,null,null,null,0]
[null,null,null,null,null,0,null,null,null,null,null,0]
[null,null,null,null,null,0,null,null,null,null,null,0]
[null,null,null,null,null,0,null,null,null,null,null,0]
[null,null,null,null,null,0,null,null,null,null,null,0]
[null,null,null,null,null,0,null,null,null,null,null,0]
[null,null,null,null,null,0,null,null,null,null,null,0]
[null,null,null,null,null,0,null,null,null,null,null,0]
[null,null,null,null,null,0,null,null,null,null,null,0]
[null,null,null,null,null,0,null,null,null,null,null,0]
[null,null,null,null,null,0,null,null,null,null,null,0]
[null,null,null,null,null,0,null,null,null,null,null,0]
[null,null,null,null,null,0,null,null,null,null,null,0]
[null,null,null,null,null,0,null,null,null,null,null,0]
[null,null,null,null,null,0,null,null,null,null,null,0]
[null,null,null,null,null,0,null,null,null,null,null,0]
[null,null,null,null,null,0,null,null,null,null,null,0]
[null,null,null,null,null,0,null,null,null,null,null,0]
[null,null,null,null,null,0,null,null,null,null,null,0]
[null,null,null,null,null,0,null,null,null,null,null,0]
[null,null,null,null,null,0,null,null,null,null,null,0]
[null,null,null,null,null,0,null,null,null,null,null,0]
[null,null,null,null,null,0,null,null,null,null,null,0]
[null,null,null,null,null,0,null,null,null,null,null,0]
[null,null,null,null,null,0,null,null,null,null,null,0]
[null,null,null,null,null,0,null,null,null,null,null,{"$f":"(IF(D73=0,0,D73)+IF(E73=0,0,E73))*(IF(D73>0,$K$5,1))+F72","v":0}]
[null,null,null,null,null,0,null,null,null,null,null,0]
[null,null,null,null,null,0,null,null,null,null,null,0]
[null,null,null,null,null,{"$f":"IF(D73+E73=0,0,L70)","v":0},null,null,null,null,null,0]
[null,null,null,null,null,0,null,null,null,null,null,0]
[null,null,null,null,null,0,null,null,null,null,null,0]
[null,null,null,null,null,0,null,null,null,null,null,0]
[null,null,null,null,null,0,null,null,null,null,null,0]
[null,null,null,null,null,0,null,null,null,null,null,0]
[null,null,null,null,null,0,null,null,null,null,null,0]
[null,null,null,null,null,0,null,null,null,null,null,0]
[null,null,null,null,null,0,null,null,null,null,null,0]
[null,null,null,null,null,0,null,null,null,null,null,0]
[null,null,null,null,null,0,null,null,null,null,null,0]
[null,null,null,null,null,0,null,null,null,null,null,0]
[null,null,null,null,null,0,null,null,null,null,null,0]
[null,null,null,null,null,0,null,null,null,null,null,0]
[null,null,null,null,null,0,null,null,null,null,null,0]
[null,null,null,null,null,0,null,null,null,null,null,0]
[null,null,null,null,null,0,null,null,null,null,null,0]
[null,null,null,null,null,0,null,null,null,null,null,0]
[null,null,null,null,null,0,null,null,null,null,null,0]
[null,null,null,null,null,0,null,null,null,null,null,0]
[null,null,null,null,null,0,null,null,null,null,null,0]
[null,null,null,null,null,0,null,null,null,null,null,0]
[null,null,null,null,null,0,null,null,null,null,null,0]
[null,null,null,null,null,0,null,null,null,null,null,0]
[null,null,null,null,null,0,null,null,null,null,null,0]
[null,null,null,null,null,0,null,null,null,null,null,0]
[null,null,null,null,null,0,null,null,null,null,null,0]
[null,null,null,null,null,0,null,null,null,null,null,0]
[null,null,null,null,null,0,null,null,null,null,null,0]
[null,null,null,null,null,0,null,null,null,null,null,0]
[null,null,null,null,null,0,null,null,null,null,null,0]
[null,null,null,null,null,0,null,null,null,null,null,0]
[null,null,null,null,null,0,null,null,null,null,null,0]
[null,null,null,null,null,0,null,null,null,null,null,0]
[null,null,null,null,null,0,null,null,null,null,null,0]
[null,null,null,null,null,0,null,null,null,null,null,0]
[null,null,null,null,null,0,null,null,null,null,null,0]
[null,null,null,null,null,0,null,null,null,null,null,0]
[null,null,null,null,null,0,null,null,null,null,null,0]
[null,null,null,null,null,0,null,null,null,null,null,0]
[null,null,null,null,null,0,null,null,null,null,null,0]
[null,null,null,null,null,0,null,null,null,null,null,0]
[null,null,null,null,null,0,null,null,null,null,null,0]
[null,null,null,null,null,0,null,null,null,null,null,0]
[null,null,null,null,null,0,null,null,null,null,null,0]
[null,null,null,null,null,0,null,null,null,null,null,0]
[null,null,null,null,null,0,null,null,null,null,null,0]
[null,null,null,null,null,0,null,null,null,null,null,0]
[null,null,null,null,null,0,null,null,null,null,null,0]
[null,null,null,null,null,0,null,null,null,null,null,0]
[null,null,null,null,null,0,null,null,null,null,null,0]
[null,null,null,null,null,0,null,null,null,null,null,0]
[null,null,null,null,null,0,null,null,null,null,null,0]
[null,null,null,null,null,0,null,null,null,null,null,0]
[null,null,null,null,null,0,null,null,null,null,null,0]
[null,null,null,null,null,0,null,null,null,null,null,0]
[null,null,null,null,null,0,null,null,null,null,null,0]
[null,null,null,null,null,0,null,null,null,null,null,0]
[null,null,null,null,null,0,null,null,null,null,null,0]
[null,null,null,null,null,0,null,null,null,null,null,0]
[null,null,null,null,null,0,null,null,null,null,null,0]
[null,null,null,null,null,0,null,null,null,null,null,{"$f":"(IF(D137=0,0,D137)+IF(E137=0,0,E137))*(IF(D137>0,$K$5,1))+F136","v":0}]
[null,null,null,null,null,0,null,null,null,null,null,0]
[null,null,null,null,null,0,null,null,null,null,null,0]
[null,null,null,null,null,{"$f":"IF(D137+E137=0,0,L134)","v":0},null,null,null,null,null,0]
[null,null,null,null,null,0,null,null,null,null,null,0]
[null,null,null,null,null,0,null,null,null,null,null,0]
[null,null,null,null,null,0,null,null,null,null,null,0]
[null,null,null,null,null,0,null,null,null,null,null,0]
[null,null,null,null,null,0,null,null,null,null,null,0]
[null,null,null,null,null,0,null,null,null,null,null,0]
[null,null,null,null,null,0,null,null,null,null,null,0]
[null,null,null,null,null,0,null,null,null,null,null,0]
[null,null,null,null,null,0,null,null,null,null,null,0]
[null,null,null,null,null,0,null,null,null,null,null,0]
[null,null,null,null,null,0,null,null,null,null,null,0]
[null,null,null,null,null,0,null,null,null,null,null,0]
[null,null,null,null,null,0,null,null,null,null,null,0]
[null,null,null,null,null,0,null,null,null,null,null,0]
[null,null,null,null,null,0,null,null,null,null,null,0]
[null,null,null,null,null,0,null,null,null,null,null,0]
[null,null,null,null,null,0,null,null,null,null,null,0]
[null,null,null,null,null,0,null,null,null,null,null,0]
[null,null,null,null,null,0,null,null,null,null,null,0]
[null,null,null,null,null,0,null,null,null,null,null,0]
[null,null,null,null,null,0,null,null,null,null,null,0]
[null,null,null,null,null,0,null,null,null,null,null,0]
[null,null,null,null,null,0,null,null,null,null,null,0]
[null,null,null,null,null,0,null,null,null,null,null,0]
[null,null,null,null,null,0,null,null,null,null,null,0]
[null,null,null,null,null,0,null,null,null,null,null,0]
[null,null,null,null,null,0,null,null,null,null,null,0]
[null,null,null,null,null,0,null,null,null,null,null,0]
[null,null,null,null,null,0,null,null,null,null,null,0]
[null,null,null,null,null,0,null,null,null,null,null,0]
[null,null,null,null,null,0,null,null,null,null,null,0]
[null,null,null,null,null,0,null,null,null,null,null,0]
[null,null,null,null,null,0,null,null,null,null,null,0]
[null,null,null,null,null,0,null,null,null,null,null,0]
[null,null,null,null,null,0,null,null,null,null,null,0]
[null,null,null,null,null,0,null,null,null,null,null,0]
[null,null,null,null,null,0,null,null,null,null,null,0]
[null,null,null,null,null,0,null,null,null,null,null,0]
[null,null,null,null,null,0,null,null,null,null,null,0]
[null,null,null,null,null,0,null,null,null,null,null,0]
[null,null,null,null,null,0,null,null,null,null,null,0]
[null,null,null,null,null,0,null,null,null,null,null,0]
[null,null,null,null,null,0,null,null,null,null,null,0]
[null,null,null,null,null,0,null,null,null,null,null,0]
[null,null,null,null,null,0,null,null,null,null,null,0]
[null,null,null,null,null,0,null,null,null,null,null,0]
[null,null,null,null,null,0,null,null,null,null,null,0]
[null,null,null,null,null,0,null,null,null,null,null,0]
[null,null,null,null,null,0,null,null,null,null,null,0]
[null,null,null,null,null,0,null,null,null,null,null,0]
[null,null,null,null,null,0,null,null,null,null,null,0]
[null,null,null,null,null,0,null,null,null,null,null,0]
[null,null,null,null,null,0,null,null,null,null,null,0]
[null,null,null,null,null,0,null,null,null,null,null,0]
[null,null,null,null,null,0,null,null,null,null,null,0]
[null,null,null,null,null,0,null,null,null,null,null,0]
[null,null,null,null,null,0,null,null,null,null,null,0]
[null,null,null,null,null,0,null,null,null,null,null,0]
[null,null,null,null,null,0,null,null,null,null,null,0]
[null,null,null,null,null,0,null,null,null,null,null,0]
[null,null,null,null,null,0,null,null,null,null,null,{"$f":"(IF(D201=0,0,D201)+IF(E201=0,0,E201))*(IF(D201>0,$K$5,1))+F200","v":0}]
[null,null,null,null,null,0,null,null,null,null,null,0]
[null,null,null,null,null,0,null,null,null,null,null,0]
[null,null,null,null,null,{"$f":"IF(D201+E201=0,0,L198)","v":0},null,null,null,null,null,0]
[null,null,null,null,null,0,null,null,null,null,null,0]
[null,null,null,null,null,0,null,null,null,null,null,0]
[null,null,null,null,null,0,null,null,null,null,null,0]
[null,null,null,null,null,0,null,null,null,null,null,0]
[null,null,null,null,null,0,null,null,null,null,null,0]
[null,null,null,null,null,0,null,null,null,null,null,0]
[null,null,null,null,null,0,null,null,null,null,null,0]
[null,null,null,null,null,0,null,null,null,null,null,0]
[null,null,null,null,null,0,null,null,null,null,null,0]
[null,null,null,null,null,0,null,null,null,null,null,0]
[null,null,null,null,null,0,null,null,null,null,null,0]
[null,null,null,null,null,0,null,null,null,null,null,0]
[null,null,null,null,null,0,null,null,null,null,null,0]
[null,null,null,null,null,0,null,null,null,null,null,0]
[null,null,null,null,null,0,null,null,null,null,null,0]
[null,null,null,null,null,0,null,null,null,null,null,0]
[null,null,null,null,null,0,null,null,null,null,null,0]
[null,null,null,null,null,0,null,null,null,null,null,0]
[null,null,null,null,null,0,null,null,null,null,null,0]
[null,null,null,null,null,0,null,null,null,null,null,0]
[null,null,null,null,null,0,null,null,null,null,null,0]
[null,null,null,null,null,0,null,null,null,null,null,0]
[null,null,null,null,null,0,null,null,null,null,null,0]
[null,null,null,null,null,0,null,null,null,null,null,0]
[null,null,null,null,null,0,null,null,null,null,null,0]
[null,null,null,null,null,0,null,null,null,null,null,0]
[null,null,null,null,null,0,null,null,null,null,null,0]
[null,null,null,null,null,0,null,null,null,null,null,0]
[null,null,null,null,null,0,null,null,null,null,null,0]
[null,null,null,null,null,0,null,null,null,null,null,0]
[null,null,null,null,null,0,null,null,null,null,null,0]
[null,null,null,null,null,0,null,null,null,null,null,0]
[null,null,null,null,null,0,null,null,null,null,null,0]
[null,null,null,null,null,0,null,null,null,null,null,0]
[null,null,null,null,null,0,null,null,null,null,null,0]
[null,null,null,null,null,0,null,null,null,null,null,0]
[null,null,null,null,null,0,null,null,null,null,null,0]
[null,null,null,null,null,0,null,null,null,null,null,0]
[null,null,null,null,null,0,null,null,null,null,null,0]
[null,null,null,null,null,0,null,null,null,null,null,0]
[null,null,null,null,null,0,null,null,null,null,null,0]
[null,null,null,null,null,0,null,null,null,null,null,0]
[null,null,null,null,null,0,null,null,null,null,null,0]
[null,null,null,null,null,0,null,null,null,null,null,0]
[null,null,null,null,null,0,null,null,null,null,null,0]
[null,null,null,null,null,0,null,null,null,null,null,0]
[null,null,null,null,null,0,null,null,null,null,null,0]
[null,null,null,null,null,0,null,null,null,null,null,0]
[null,null,null,null,null,0,null,null,null,null,null,0]
[null,null,null,null,null,0,null,null,null,null,null,0]
[null,null,null,null,null,0,null,null,null,null,null,0]
[null,null,null,null,null,0,null,null,null,null,null,0]
[null,null,null,null,null,0,null,null,null,null,null,0]
[null,null,null,null,null,0,null,null,null,null,null,0]
[null,null,null,null,null,0,null,null,null,null,null,0]
[null,null,null,null,null,0,null,null,null,null,null,0]
[null,null,null,null,null,0,null,null,null,null,null,0]
[null,null,null,null,null,0,null,null,null,null,null,0]
[null,null,null,null,null,0,null,null,null,null,null,0]
[null,null,null,null,null,0,null,null,null,null,null,0]
[null,null,null,null,null,0,null,null,null,null,null,{"$f":"(IF(D265=0,0,D265)+IF(E265=0,0,E265))*(IF(D265>0,$K$5,1))+F264","v":0}]
[null,null,null,null,null,0,null,null,null,null,null,0]
[null,null,null,null,null,0,null,null,null,null,null,0]
[null,null,null,null,null,{"$f":"IF(D265+E265=0,0,L262)","v":0},null,null,null,null,null,0]
[null,null,null,null,null,0,null,null,null,null,null,0]
[null,null,null,null,null,0,null,null,null,null,null,0]
[null,null,null,null,null,0,null,null,null,null,null,0]
[null,null,null,null,null,0,null,null,null,null,null,0]
[null,null,null,null,null,0,null,null,null,null,null,0]
[null,null,null,null,null,0,null,null,null,null,null,0]
[null,null,null,null,null,0,null,null,null,null,null,0]
[null,null,null,null,null,0,null,null,null,null,null,0]
[null,null,null,null,null,0,null,null,null,null,null,0]
[null,null,null,null,null,0,null,null,null,null,null,0]
[null,null,null,null,null,0,null,null,null,null,null,0]
[null,null,null,null,null,0,null,null,null,null,null,0]
[null,null,null,null,null,0,null,null,null,null,null,0]
[null,null,null,null,null,0,null,null,null,null,null,0]
[null,null,null,null,null,0,null,null,null,null,null,0]
[null,null,null,null,null,0,null,null,null,null,null,0]
[null,null,null,null,null,0,null,null,null,null,null,0]
[null,null,null,null,null,0,null,null,null,null,null,0]
[null,null,null,null,null,0,null,null,null,null,null,0]
[null,null,null,null,null,0,null,null,null,null,null,0]
[null,null,null,null,null,0,null,null,null,null,null,0]
[null,null,null,null,null,0,null,null,null,null,null,0]
[null,null,null,null,null,0,null,null,null,null,null,0]
[null,null,null,null,null,0,null,null,null,null,null,0]
[null,null,null,null,null,0,null,null,null,null,null,0]
[null,null,null,null,null,0,null,null,null,null,null,0]
[null,null,null,null,null,0,null,null,null,null,null,0]
[null,null,null,null,null,0,null,null,null,null,null,0]
[null,null,null,null,null,0,null,null,null,null,null,0]
[null,null,null,null,null,0,null,null,null,null,null,0]
[null,null,null,null,null,0,null,null,null,null,null,0]
[null,null,null,null,null,0,null,null,null,null,null,0]
[null,null,null,null,null,0,null,null,null,null,null,0]
[null,null,null,null,null,0,null,null,null,null,null,0]
[null,null,null,null,null,0,null,null,null,null,null,0]
[null,null,null,null,null,0,null,null,null,null,null,0]
[null,null,null,null,null,0,null,null,null,null,null,0]
[null,null,null,null,null,0,null,null,null,null,null,0]
[null,null,null,null,null,0,null,null,null,null,null,0]
[null,null,null,null,null,0,null,null,null,null,null,0]
[null,null,null,null,null,0,null,null,null,null,null,0]
[null,null,null,null,null,0,null,null,null,null,null,0]
[null,null,null,null,null,0,null,null,null,null,null,0]
[null,null,null,null,null,0,null,null,null,null,null,0]
[null,null,null,null,null,0,null,null,null,null,null,0]
[null,null,null,null,null,0,null,null,null,null,null,0]
[null,null,null,null,null,0,null,null,null,null,null,0]
[null,null,null,null,null,0,null,null,null,null,null,0]
[null,null,null,null,null,0,null,null,null,null,null,0]
[null,null,null,null,null,0,null,null,null,null,null,0]
[null,null,null,null,null,0,null,null,null,null,null,0]
[null,null,null,null,null,0,null,null,null,null,null,0]
[null,null,null,null,null,0,null,null,null,null,null,0]
[null,null,null,null,null,0,null,null,null,null,null,0]
[null,null,null,null,null,0,null,null,null,null,null,0]
[null,null,null,null,null,0,null,null,null,null,null,0]
[null,null,null,null,null,0,null,null,null,null,null,0]
[null,null,null,null,null,0,null,null,null,null,null,0]
[null,null,null,null,null,0,null,null,null,null,null,0]
[null,null,null,null,null,0,null,null,null,null,null,0]
[null,null,null,null,null,0,null,null,null,null,null,{"$f":"(IF(D329=0,0,D329)+IF(E329=0,0,E329))*(IF(D329>0,$K$5,1))+F328","v":0}]
[null,null,null,null,null,0,null,null,null,null,null,0]
[null,null,null,null,null,0,null,null,null,null,null,0]
[null,null,null,null,null,{"$f":"IF(D329+E329=0,0,L326)","v":0},null,null,null,null,null,0]
[null,null,null,null,null,0,null,null,null,null,null,0]
[null,null,null,null,null,0,null,null,null,null,null,0]
[null,null,null,null,null,0,null,null,null,null,null,0]
[null,null,null,null,null,0,null,null,null,null,null,0]
[null,null,null,null,null,0,null,null,null,null,null,0]
[null,null,null,null,null,0,null,null,null,null,null,0]
[null,null,null,null,null,0,null,null,null,null,null,0]
[null,null,null,null,null,0,null,null,null,null,null,0]
[null,null,null,null,null,0,null,null,null,null,null,0]
[null,null,null,null,null,0,null,null,null,null,null,0]
[null,null,null,null,null,0,null,null,null,null,null,0]
[null,null,null,null,null,0,null,null,null,null,null,0]
[null,null,null,null,null,0,null,null,null,null,null,0]
[null,null,null,null,null,0,null,null,null,null,null,0]
[null,null,null,null,null,0,null,null,null,null,null,0]
[null,null,null,null,null,0,null,null,null,null,null,0]
[null,null,null,null,null,0,null,null,null,null,null,0]
[null,null,null,null,null,0,null,null,null,null,null,0]
[null,null,null,null,null,0,null,null,null,null,null,0]
[null,null,null,null,null,0,null,null,null,null,null,0]
[null,null,null,null,null,0,null,null,null,null,null,0]
[null,null,null,null,null,0,null,null,null,null,null,0]
[null,null,null,null,null,0,null,null,null,null,null,0]
[null,null,null,null,null,0,null,null,null,null,null,0]
[null,null,null,null,null,0,null,null,null,null,null,0]
[null,null,null,null,null,0,null,null,null,null,null,0]
[null,null,null,null,null,0,null,null,null,null,null,0]
[null,null,null,null,null,0,null,null,null,null,null,0]
[null,null,null,null,null,0,null,null,null,null,null,0]
[null,null,null,null,null,0,null,null,null,null,null,0]
[null,null,null,null,null,0,null,null,null,null,null,0]
[null,null,null,null,null,0,null,null,null,null,null,0]
[null,null,null,null,null,0,null,null,null,null,null,0]
[null,null,null,null,null,0,null,null,null,null,null,0]
[null,null,null,null,null,0,null,null,null,null,null,0]
[null,null,null,null,null,0,null,null,null,null,null,0]
[null,null,null,null,null,0,null,null,null,null,null,0]
[null,null,null,null,null,0,null,null,null,null,null,0]
[null,null,null,null,null,0,null,null,null,null,null,0]
[null,null,null,null,null,0,null,null,null,null,null,0]
[null,null,null,null,null,0,null,null,null,null,null,0]
[null,null,null,null,null,0,null,null,null,null,null,0]
[null,null,null,null,null,0,null,null,null,null,null,0]
[null,null,null,null,null,0,null,null,null,null,null,0]
[null,null,null,null,null,0,null,null,null,null,null,0]
[null,null,null,null,null,0,null,null,null,null,null,0]
[null,null,null,null,null,0,null,null,null,null,null,0]
[null,null,null,null,null,0,null,null,null,null,null,0]
[null,null,null,null,null,0,null,null,null,null,null,0]
[null,null,null,null,null,0,null,null,null,null,null,0]
[null,null,null,null,null,0,null,null,null,null,null,0]
[null,null,null,null,null,0,null,null,null,null,null,0]
[null,null,null,null,null,0,null,null,null,null,null,0]
[null,null,null,null,null,0,null,null,null,null,null,0]
[null,null,null,null,null,0,null,null,null,null,null,0]
[null,null,null,null,null,0,null,null,null,null,null,0]
[null,null,null,null,null,0,null,null,null,null,null,0]
[null,null,null,null,null,0,null,null,null,null,null,0]
[null,null,null,null,null,0,null,null,null,null,null,0]
[null,null,null,null,null,0,null,null,null,null,null,0]
[null,null,null,null,null,0,null,null,null,null,null,{"$f":"(IF(D393=0,0,D393)+IF(E393=0,0,E393))*(IF(D393>0,$K$5,1))+F392","v":0}]
[null,null,null,null,null,0,null,null,null,null,null,0]
[null,null,null,null,null,0,null,null,null,null,null,0]
[null,null,null,null,null,{"$f":"IF(D393+E393=0,0,L390)","v":0},null,null,null,null,null,0]
[null,null,null,null,null,0,null,null,null,null,null,0]
[null,null,null,null,null,0,null,null,null,null,null,0]
[null,null,null,null,null,0,null,null,null,null,null,0]
[null,null,null,null,null,0,null,null,null,null,null,0]
[null,null,null,null,null,0,null,null,null,null,null,0]
[null,null,null,null,null,0,null,null,null,null,null,0]
[null,null,null,null,null,0,null,null,null,null,null,0]
[null,null,null,null,null,0,null,null,null,null,null,0]
[null,null,null,null,null,0,null,null,null,null,null,0]
[null,null,null,null,null,0,null,null,null,null,null,0]
[null,null,null,null,null,0,null,null,null,null,null,0]
[null,null,null,null,null,0,null,null,null,null,null,0]
[null,null,null,null,null,0,null,null,null,null,null,0]
[null,null,null,null,null,0,null,null,null,null,null,0]
[null,null,null,null,null,0,null,null,null,null,null,0]
[null,null,null,null,null,0,null,null,null,null,null,0]
[null,null,null,null,null,0,null,null,null,null,null,0]
[null,null,null,null,null,0,null,null,null,null,null,0]
[null,null,null,null,null,0,null,null,null,null,null,0]
[null,null,null,null,null,0,null,null,null,null,null,0]
[null,null,null,null,null,0,null,null,null,null,null,0]
[null,null,null,null,null,0,null,null,null,null,null,0]
[null,null,null,null,null,0,null,null,null,null,null,0]
[null,null,null,null,null,0,null,null,null,null,null,0]
[null,null,null,null,null,0,null,null,null,null,null,0]
[null,null,null,null,null,0,null,null,null,null,null,0]
[null,null,null,null,null,0,null,null,null,null,null,0]
[null,null,null,null,null,0,null,null,null,null,null,0]
[null,null,null,null,null,0,null,null,null,null,null,0]
[null,null,null,null,null,0,null,null,null,null,null,0]
[null,null,null,null,null,0,null,null,null,null,null,0]
[null,null,null,null,null,0,null,null,null,null,null,0]
[null,null,null,null,null,0,null,null,null,null,null,0]
[null,null,null,null,null,0,null,null,null,null,null,0]
[null,null,null,null,null,0,null,null,null,null,null,0]
[null,null,null,null,null,0,null,null,null,null,null,0]
[null,null,null,null,null,0,null,null,null,null,null,0]
[null,null,null,null,null,0,null,null,null,null,null,0]
[null,null,null,null,null,0,null,null,null,null,null,0]
[null,null,null,null,null,0,null,null,null,null,null,0]
[null,null,null,null,null,0,null,null,null,null,null,0]
[null,null,null,null,null,0,null,null,null,null,null,0]
[null,null,null,null,null,0,null,null,null,null,null,0]
[null,null,null,null,null,0,null,null,null,null,null,0]
[null,null,null,null,null,0,null,null,null,null,null,0]
[null,null,null,null,null,0,null,null,null,null,null,0]
[null,null,null,null,null,0,null,null,null,null,null,0]
[null,null,null,null,null,0,null,null,null,null,null,0]
[null,null,null,null,null,0,null,null,null,null,null,0]
[null,null,null,null,null,0,null,null,null,null,null,0]
[null,null,null,null,null,0,null,null,null,null,null,0]
[null,null,null,null,null,0,null,null,null,null,null,0]
[null,null,null,null,null,0,null,null,null,null,null,0]
[null,null,null,null,null,0,null,null,null,null,null,0]
[null,null,null,null,null,0,null,null,null,null,null,0]
[null,null,null,null,null,0,null,null,null,null,null,0]
[null,null,null,null,null,0,null,null,null,null,null,0]
[null,null,null,null,null,0,null,null,null,null,null,0]
[null,null,null,null,null,0,null,null,null,null,null,0]
[null,null,null,null,null,0,null,null,null,null,null,0]
[null,null,null,null,null,0,null,null,null,null,null,{"$f":"(IF(D457=0,0,D457)+IF(E457=0,0,E457))*(IF(D457>0,$K$5,1))+F456","v":0}]
[null,null,null,null,null,0,null,null,null,null,null,0]
[null,null,null,null,null,0,null,null,null,null,null,0]
[null,null,null,null,null,{"$f":"IF(D457+E457=0,0,L454)","v":0},null,null,null,null,null,0]
[null,null,null,null,null,0,null,null,null,null,null,0]
[null,null,null,null,null,0,null,null,null,null,null,0]
[null,null,null,null,null,0,null,null,null,null,null,0]
[null,null,null,null,null,0,null,null,null,null,null,0]
[null,null,null,null,null,0,null,null,null,null,null,0]
[null,null,null,null,null,0,null,null,null,null,null,0]
[null,null,null,null,null,0,null,null,null,null,null,0]
[null,null,null,null,null,0,null,null,null,null,null,0]
[null,null,null,null,null,0,null,null,null,null,null,0]
[null,null,null,null,null,0,null,null,null,null,null,0]
[null,null,null,null,null,0,null,null,null,null,null,0]
[null,null,null,null,null,0,null,null,null,null,null,0]
[null,null,null,null,null,0,null,null,null,null,null,0]
[null,null,null,null,null,0,null,null,null,null,null,0]
[null,null,null,null,null,0,null,null,null,null,null,0]
[null,null,null,null,null,0,null,null,null,null,null,0]
[null,null,null,null,null,0,null,null,null,null,null,0]
[null,null,null,null,null,0,null,null,null,null,null,0]
[null,null,null,null,null,0,null,null,null,null,null,0]
[null,null,null,null,null,0,null,null,null,null,null,0]
[null,null,null,null,null,0,null,null,null,null,null,0]
[null,null,null,null,null,0,null,null,null,null,null,0]
[null,null,null,null,null,0,null,null,null,null,null,0]
[null,null,null,null,null,0,null,null,null,null,null,0]
[null,null,null,null,null,0,null,null,null,null,null,0]
[null,null,null,null,null,0,null,null,null,null,null,0]
[null,null,null,null,null,0,null,null,null,null,null,0]
[null,null,null,null,null,0,null,null,null,null,null,0]
[null,null,null,null,null,0,null,null,null,null,null,0]
[null,null,null,null,null,0,null,null,null,null,null,0]
[null,null,null,null,null,0,null,null,null,null,null,0]
[null,null,null,null,null,0,null,null,null,null,null,0]
[null,null,null,null,null,0,null,null,null,null,null,0]
[null,null,null,null,null,0,null,null,null,null,null,0]
[null,null,null,null,null,0,null,null,null,null,null,0]
[null,null,null,null,null,0,null,null,null,null,null,0]
[null,null,null,null,null,0,null,null,null,null,null,0]
[null,null,null,null,null,0,null,null,null,null,null,0]
[null,null,null,null,null,0,null,null,null,null,null,0]
[null,null,null,null,null,0,null,null,null,null,null,0]
[null,null,null,null,null,0,null,null,null,null,null,0]
[null,null,null,null,null,0,null,null,null,null,null,0]
[null,null,null,null,null,0,null,null,null,null,null,0]
[null,null,null,null,null,0,null,null,null,null,null,0]
[null,null,null,null,null,0,null,null,null,null,null,0]
[null,null,null,null,null,0,null,null,null,null,null,0]
[null,null,null,null,null,0,null,null,null,null,null,0]
[null,null,null,null,null,0,null,null,null,null,null,0]
[null,null,null,null,null,0,null,null,null,null,null,0]
[null,null,null,null,null,0,null,null,null,null,null,0]
[null,null,null,null,null,0,null,null,null,null,null,0]
[null,null,null,null,null,0,null,null,null,null,null,0]
[null,null,null,null,null,0,null,null,null,null,null,0]
[null,null,null,null,null,0,null,null,null,null,null,0]
[null,null,null,null,null,0,null,null,null,null,null,0]
[null,null,null,null,null,0,null,null,null,null,null,0]
[null,null,null,null,null,0,null,null,null,null,null,0]
[null,null,null,null,null,0,null,null,null,null,null,0]
[null,null,null,null,null,0,null,null,null,null,null,0]
[null,null,null,null,null,0,null,null,null,null,null,0]
[null,null,null,null,null,0,null,null,null,null,null,{"$f":"(IF(D521=0,0,D521)+IF(E521=0,0,E521))*(IF(D521>0,$K$5,1))+F520","v":0}]
[null,null,null,null,null,0,null,null,null,null,null,0]
[null,null,null,null,null,0,null,null,null,null,null,0]
[null,null,null,null,null,{"$f":"IF(D521+E521=0,0,L518)","v":0},null,null,null,null,null,0]
[null,null,null,null,null,0,null,null,null,null,null,0]
[null,null,null,null,null,0,null,null,null,null,null,0]
[null,null,null,null,null,0,null,null,null,null,null,0]
[null,null,null,null,null,0,null,null,null,null,null,0]
[null,null,null,null,null,0,null,null,null,null,null,0]
[null,null,null,null,null,0,null,null,null,null,null,0]
[null,null,null,null,null,0,null,null,null,null,null,0]
[null,null,null,null,null,0,null,null,null,null,null,0]
[null,null,null,null,null,0,null,null,null,null,null,0]
[null,null,null,null,null,0,null,null,null,null,null,0]
[null,null,null,null,null,0,null,null,null,null,null,0]
[null,null,null,null,null,0,null,null,null,null,null,0]
[null,null,null,null,null,0,null,null,null,null,null,0]
[null,null,null,null,null,0,null,null,null,null,null,0]
[null,null,null,null,null,0,null,null,null,null,null,0]
[null,null,null,null,null,0,null,null,null,null,null,0]
[null,null,null,null,null,0,null,null,null,null,null,0]
[null,null,null,null,null,0,null,null,null,null,null,0]
[null,null,null,null,null,0,null,null,null,null,null,0]
[null,null,null,null,null,0,null,null,null,null,null,0]
[null,null,null,null,null,0,null,null,null,null,null,0]
[null,null,null,null,null,0,null,null,null,null,null,0]
[null,null,null,null,null,0,null,null,null,null,null,0]
[null,null,null,null,null,0,null,null,null,null,null,0]
[null,null,null,null,null,0,null,null,null,null,null,0]
[null,null,null,null,null,0,null,null,null,null,null,0]
[null,null,null,null,null,0,null,null,null,null,null,0]
[null,null,null,null,null,0,null,null,null,null,null,0]
[null,null,null,null,null,0,null,null,null,null,null,0]
[null,null,null,null,null,0,null,null,null,null,null,0]
[null,null,null,null,null,0,null,null,null,null,null,0]
[null,null,null,null,null,0,null,null,null,null,null,0]
[null,null,null,null,null,0,null,null,null,null,null,0]
[null,null,null,null,null,0,null,null,null,null,null,0]
[null,null,null,null,null,0,null,null,null,null,null,0]
[null,null,null,null,null,0,null,null,null,null,null,0]
[null,null,null,null,null,0,null,null,null,null,null,0]
[null,null,null,null,null,0,null,null,null,null,null,0]
[null,null,null,null,null,0,null,null,null,null,null,0]
[null,null,null,null,null,0,null,null,null,null,null,0]
[null,null,null,null,null,0,null,null,null,null,null,0]
[null,null,null,null,null,0,null,null,null,null,null,0]
[null,null,null,null,null,0,null,null,null,null,null,0]
[null,null,null,null,null,0,null,null,null,null,null,0]
[null,null,null,null,null,0,null,null,null,null,null,0]
[null,null,null,null,null,0,null,null,null,null,null,0]
[null,null,null,null,null,0,null,null,null,null,null,0]
[null,null,null,null,null,0,null,null,null,null,null,0]
[null,null,null,null,null,0,null,null,null,null,null,0]
[null,null,null,null,null,0,null,null,null,null,null,0]
[null,null,null,null,null,0,null,null,null,null,null,0]
[null,null,null,null,null,0,null,null,null,null,null,0]
[null,null,null,null,null,0,null,null,null,null,null,0]
[null,null,null,null,null,0,null,null,null,null,null,0]
[null,null,null,null,null,0,null,null,null,null,null,0]
[null,null,null,null,null,0,null,null,null,null,null,0]
[null,null,null,null,null,0,null,null,null,null,null,0]
[null,null,null,null,null,0,null,null,null,null,null,0]
[null,null,null,null,null,0,null,null,null,null,null,0]
[null,null,null,null,null,0,null,null,null,null,null,0]
[null,null,null,null,null,0,null,null,null,null,null,{"$f":"(IF(D585=0,0,D585)+IF(E585=0,0,E585))*(IF(D585>0,$K$5,1))+F584","v":0}]
[null,null,null,null,null,0,null,null,null,null,null,0]
[null,null,null,null,null,0,null,null,null,null,null,0]
[null,null,null,null,null,{"$f":"IF(D585+E585=0,0,L582)","v":0},null,null,null,null,null,0]
[null,null,null,null,null,0,null,null,null,null,null,0]
[null,null,null,null,null,0,null,null,null,null,null,0]
[null,null,null,null,null,0,null,null,null,null,null,0]
[null,null,null,null,null,0,null,null,null,null,null,0]
[null,null,null,null,null,0,null,null,null,null,null,0]
[null,null,null,null,null,0,null,null,null,null,null,0]
[null,null,null,null,null,0,null,null,null,null,null,0]
[null,null,null,null,null,0,null,null,null,null,null,0]
[null,null,null,null,null,0,null,null,null,null,null,0]
[null,null,null,null,null,0,null,null,null,null,null,0]
[null,null,null,null,null,0,null,null,null,null,null,0]
[null,null,null,null,null,0,null,null,null,null,null,0]
[null,null,null,null,null,0,null,null,null,null,null,0]
[null,null,null,null,null,0,null,null,null,null,null,0]
[null,null,null,null,null,0,null,null,null,null,null,0]
[null,null,null,null,null,0]
[null,null,null,null,null,0]
[null,null,null,null,null,0]

{"sheet":"Client-Matter Name 2","index":2,"n_rows":603,"n_cols":12,"rows_kept":603,"cut":false,"hidden":false,"merged":[[3,0,3,1],[4,0,4,1],[3,9,3,12]]}
[null,null,"Trust Account of "]
["Fiscal Year 20xx",null,"Client-Matter Ledger"]
[]
["Client Name and/or Number",null,null,"Date Opened",null,null,null,null,null,"MAKE NO CHANGES IN THESE COLUMNS"]
["Matter Name and/or Number",null,null,null,null,null,null,null,null,null,-1,{"$f":"(IF(D8=0,0,D8)+IF(E8=0,0,E8))*(IF(D8>0,$K5,1))","v":0}]
[null,null,null,null,null,"Caution:  Calculated Column - Make No Changes Here",null,null,null,null,null,{"$f":"(IF(D9=0,0,D9)+IF(E9=0,0,E9))*(IF(D9>0,$K$5,1))+F8","v":0}]
["Date","Item # or Type Transaction","Description","Disbursements","Receipts","Balance",null,null,null,null,null,0]
[null,null,null,null,null,{"$f":"(IF(D8=0,0,D8)+IF(E8=0,0,E8))*(IF(D8>0,$K$5,1))","v":0},null,null,null,null,null,0]
[null,null,null,null,null,{"$f":"IF(D9+E9=0,0,L6)","v":0},null,null,null,null,null,0]
[null,null,null,null,null,0,null,null,null,null,null,0]
[null,null,null,null,null,0,null,null,null,null,null,0]
[null,null,null,null,null,0,null,null,null,null,null,0]
[null,null,null,null,null,0,null,null,null,null,null,0]
[null,null,null,null,null,0,null,null,null,null,null,0]
[null,null,null,null,null,0,null,null,null,null,null,0]
[null,null,null,null,null,0,null,null,null,null,null,0]
[null,null,null,null,null,0,null,null,null,null,null,0]
[null,null,null,null,null,0,null,null,null,null,null,0]
[null,null,null,null,null,0,null,null,null,null,null,0]
[null,null,null,null,null,0,null,null,null,null,null,0]
[null,null,null,null,null,0,null,null,null,null,null,0]
[null,null,null,null,null,0,null,null,null,null,null,0]
[null,null,null,null,null,0,null,null,null,null,null,0]
[null,null,null,null,null,0,null,null,null,null,null,0]
[null,null,null,null,null,0,null,null,null,null,null,0]
[null,null,null,null,null,0,null,null,null,null,null,0]
[null,null,null,null,null,0,null,null,null,null,null,0]
[null,null,null,null,null,0,null,null,null,null,null,0]
[null,null,null,null,null,0,null,null,null,null,null,0]
[null,null,null,null,null,0,null,null,null,null,null,0]
[null,null,null,null,null,0,null,null,null,null,null,0]
[null,null,null,null,null,0,null,null,null,null,null,0]
[null,null,null,null,null,0,null,null,null,null,null,0]
[null,null,null,null,null,0,null,null,null,null,null,0]
[null,null,null,null,null,0,null,null,null,null,null,0]
[null,null,null,null,null,0,null,null,null,null,null,0]
[null,null,null,null,null,0,null,null,null,null,null,0]
[null,null,null,null,null,0,null,null,null,null,null,0]
[null,null,null,null,null,0,null,null,null,null,null,0]
[null,null,null,null,null,0,null,null,null,null,null,0]
[null,null,null,null,null,0,null,null,null,null,null,0]
[null,null,null,null,null,0,null,null,null,null,null,0]
[null,null,null,null,null,0,null,null,null,null,null,0]
[null,null,null,null,null,0,null,null,null,null,null,0]
[null,null,null,null,null,0,null,null,null,null,null,0]
[null,null,null,null,null,0,null,null,null,null,null,0]
[null,null,null,null,null,0,null,null,null,null,null,0]
[null,null,null,null,null,0,null,null,null,null,null,0]
[null,null,null,null,null,0,null,null,null,null,null,0]
[null,null,null,null,null,0,null,null,null,null,null,0]
[null,null,null,null,null,0,null,null,null,null,null,0]
[null,null,null,null,null,0,null,null,null,null,null,0]
[null,null,null,null,null,0,null,null,null,null,null,0]
[null,null,null,null,null,0,null,null,null,null,null,0]
[null,null,null,null,null,0,null,null,null,null,null,0]
[null,null,null,null,null,0,null,null,null,null,null,0]
[null,null,null,null,null,0,null,null,null,null,null,0]
[null,null,null,null,null,0,null,null,null,null,null,0]
[null,null,null,null,null,0,null,null,null,null,null,0]
[null,null,null,null,null,0,null,null,null,null,null,0]
[null,null,null,null,null,0,null,null,null,null,null,0]
[null,null,null,null,null,0,null,null,null,null,null,0]
[null,null,null,null,null,0,null,null,null,null,null,0]
[null,null,null,null,null,0,null,null,null,null,null,0]
[null,null,null,null,null,0,null,null,null,null,null,0]
[null,null,null,null,null,0,null,null,null,null,null,0]
[null,null,null,null,null,0,null,null,null,null,null,0]
[null,null,null,null,null,0,null,null,null,null,null,0]
[null,null,null,null,null,0,null,null,null,null,null,0]
[null,null,null,null,null,0,null,null,null,null,null,{"$f":"(IF(D73=0,0,D73)+IF(E73=0,0,E73))*(IF(D73>0,$K$5,1))+F72","v":0}]
[null,null,null,null,null,0,null,null,null,null,null,0]
[null,null,null,null,null,0,null,null,null,null,null,0]
[null,null,null,null,null,{"$f":"IF(D73+E73=0,0,L70)","v":0},null,null,null,null,null,0]
[null,null,null,null,null,0,null,null,null,null,null,0]
[null,null,null,null,null,0,null,null,null,null,null,0]
[null,null,null,null,null,0,null,null,null,null,null,0]
[null,null,null,null,null,0,null,null,null,null,null,0]
[null,null,null,null,null,0,null,null,null,null,null,0]
[null,null,null,null,null,0,null,null,null,null,null,0]
[null,null,null,null,null,0,null,null,null,null,null,0]
[null,null,null,null,null,0,null,null,null,null,null,0]
[null,null,null,null,null,0,null,null,null,null,null,0]
[null,null,null,null,null,0,null,null,null,null,null,0]
[null,null,null,null,null,0,null,null,null,null,null,0]
[null,null,null,null,null,0,null,null,null,null,null,0]
[null,null,null,null,null,0,null,null,null,null,null,0]
[null,null,null,null,null,0,null,null,null,null,null,0]
[null,null,null,null,null,0,null,null,null,null,null,0]
[null,null,null,null,null,0,null,null,null,null,null,0]
[null,null,null,null,null,0,null,null,null,null,null,0]
[null,null,null,null,null,0,null,null,null,null,null,0]
[null,null,null,null,null,0,null,null,null,null,null,0]
[null,null,null,null,null,0,null,null,null,null,null,0]
[null,null,null,null,null,0,null,null,null,null,null,0]
[null,null,null,null,null,0,null,null,null,null,null,0]
[null,null,null,null,null,0,null,null,null,null,null,0]
[null,null,null,null,null,0,null,null,null,null,null,0]
[null,null,null,null,null,0,null,null,null,null,null,0]
[null,null,null,null,null,0,null,null,null,null,null,0]
[null,null,null,null,null,0,null,null,null,null,null,0]
[null,null,null,null,null,0,null,null,null,null,null,0]
[null,null,null,null,null,0,null,null,null,null,null,0]
[null,null,null,null,null,0,null,null,null,null,null,0]
[null,null,null,null,null,0,null,null,null,null,null,0]
[null,null,null,null,null,0,null,null,null,null,null,0]
[null,null,null,null,null,0,null,null,null,null,null,0]
[null,null,null,null,null,0,null,null,null,null,null,0]
[null,null,null,null,null,0,null,null,null,null,null,0]
[null,null,null,null,null,0,null,null,null,null,null,0]
[null,null,null,null,null,0,null,null,null,null,null,0]
[null,null,null,null,null,0,null,null,null,null,null,0]
[null,null,null,null,null,0,null,null,null,null,null,0]
[null,null,null,null,null,0,null,null,null,null,null,0]
[null,null,null,null,null,0,null,null,null,null,null,0]
[null,null,null,null,null,0,null,null,null,null,null,0]
[null,null,null,null,null,0,null,null,null,null,null,0]
[null,null,null,null,null,0,null,null,null,null,null,0]
[null,null,null,null,null,0,null,null,null,null,null,0]
[null,null,null,null,null,0,null,null,null,null,null,0]
[null,null,null,null,null,0,null,null,null,null,null,0]
[null,null,null,null,null,0,null,null,null,null,null,0]
[null,null,null,null,null,0,null,null,null,null,null,0]
[null,null,null,null,null,0,null,null,null,null,null,0]
[null,null,null,null,null,0,null,null,null,null,null,0]
[null,null,null,null,null,0,null,null,null,null,null,0]
[null,null,null,null,null,0,null,null,null,null,null,0]
[null,null,null,null,null,0,null,null,null,null,null,0]
[null,null,null,null,null,0,null,null,null,null,null,0]
[null,null,null,null,null,0,null,null,null,null,null,0]
[null,null,null,null,null,0,null,null,null,null,null,0]
[null,null,null,null,null,0,null,null,null,null,null,0]
[null,null,null,null,null,0,null,null,null,null,null,0]
[null,null,null,null,null,0,null,null,null,null,null,0]
[null,null,null,null,null,0,null,null,null,null,null,{"$f":"(IF(D137=0,0,D137)+IF(E137=0,0,E137))*(IF(D137>0,$K$5,1))+F136","v":0}]
[null,null,null,null,null,0,null,null,null,null,null,0]
[null,null,null,null,null,0,null,null,null,null,null,0]
[null,null,null,null,null,{"$f":"IF(D137+E137=0,0,L134)","v":0},null,null,null,null,null,0]
[null,null,null,null,null,0,null,null,null,null,null,0]
[null,null,null,null,null,0,null,null,null,null,null,0]
[null,null,null,null,null,0,null,null,null,null,null,0]
[null,null,null,null,null,0,null,null,null,null,null,0]
[null,null,null,null,null,0,null,null,null,null,null,0]
[null,null,null,null,null,0,null,null,null,null,null,0]
[null,null,null,null,null,0,null,null,null,null,null,0]
[null,null,null,null,null,0,null,null,null,null,null,0]
[null,null,null,null,null,0,null,null,null,null,null,0]
[null,null,null,null,null,0,null,null,null,null,null,0]
[null,null,null,null,null,0,null,null,null,null,null,0]
[null,null,null,null,null,0,null,null,null,null,null,0]
[null,null,null,null,null,0,null,null,null,null,null,0]
[null,null,null,null,null,0,null,null,null,null,null,0]
[null,null,null,null,null,0,null,null,null,null,null,0]
[null,null,null,null,null,0,null,null,null,null,null,0]
[null,null,null,null,null,0,null,null,null,null,null,0]
[null,null,null,null,null,0,null,null,null,null,null,0]
[null,null,null,null,null,0,null,null,null,null,null,0]
[null,null,null,null,null,0,null,null,null,null,null,0]
[null,null,null,null,null,0,null,null,null,null,null,0]
[null,null,null,null,null,0,null,null,null,null,null,0]
[null,null,null,null,null,0,null,null,null,null,null,0]
[null,null,null,null,null,0,null,null,null,null,null,0]
[null,null,null,null,null,0,null,null,null,null,null,0]
[null,null,null,null,null,0,null,null,null,null,null,0]
[null,null,null,null,null,0,null,null,null,null,null,0]
[null,null,null,null,null,0,null,null,null,null,null,0]
[null,null,null,null,null,0,null,null,null,null,null,0]
[null,null,null,null,null,0,null,null,null,null,null,0]
[null,null,null,null,null,0,null,null,null,null,null,0]
[null,null,null,null,null,0,null,null,null,null,null,0]
[null,null,null,null,null,0,null,null,null,null,null,0]
[null,null,null,null,null,0,null,null,null,null,null,0]
[null,null,null,null,null,0,null,null,null,null,null,0]
[null,null,null,null,null,0,null,null,null,null,null,0]
[null,null,null,null,null,0,null,null,null,null,null,0]
[null,null,null,null,null,0,null,null,null,null,null,0]
[null,null,null,null,null,0,null,null,null,null,null,0]
[null,null,null,null,null,0,null,null,null,null,null,0]
[null,null,null,null,null,0,null,null,null,null,null,0]
[null,null,null,null,null,0,null,null,null,null,null,0]
[null,null,null,null,null,0,null,null,null,null,null,0]
[null,null,null,null,null,0,null,null,null,null,null,0]
[null,null,null,null,null,0,null,null,null,null,null,0]
[null,null,null,null,null,0,null,null,null,null,null,0]
[null,null,null,null,null,0,null,null,null,null,null,0]
[null,null,null,null,null,0,null,null,null,null,null,0]
[null,null,null,null,null,0,null,null,null,null,null,0]
[null,null,null,null,null,0,null,null,null,null,null,0]
[null,null,null,null,null,0,null,null,null,null,null,0]
[null,null,null,null,null,0,null,null,null,null,null,0]
[null,null,null,null,null,0,null,null,null,null,null,0]
[null,null,null,null,null,0,null,null,null,null,null,0]
[null,null,null,null,null,0,null,null,null,null,null,0]
[null,null,null,null,null,0,null,null,null,null,null,0]
[null,null,null,null,null,0,null,null,null,null,null,0]
[null,null,null,null,null,0,null,null,null,null,null,0]
[null,null,null,null,null,0,null,null,null,null,null,0]
[null,null,null,null,null,0,null,null,null,null,null,0]
[null,null,null,null,null,0,null,null,null,null,null,{"$f":"(IF(D201=0,0,D201)+IF(E201=0,0,E201))*(IF(D201>0,$K$5,1))+F200","v":0}]
[null,null,null,null,null,0,null,null,null,null,null,0]
[null,null,null,null,null,0,null,null,null,null,null,0]
[null,null,null,null,null,{"$f":"IF(D201+E201=0,0,L198)","v":0},null,null,null,null,null,0]
[null,null,null,null,null,0,null,null,null,null,null,0]
[null,null,null,null,null,0,null,null,null,null,null,0]
[null,null,null,null,null,0,null,null,null,null,null,0]
[null,null,null,null,null,0,null,null,null,null,null,0]
[null,null,null,null,null,0,null,null,null,null,null,0]
[null,null,null,null,null,0,null,null,null,null,null,0]
[null,null,null,null,null,0,null,null,null,null,null,0]
[null,null,null,null,null,0,null,null,null,null,null,0]
[null,null,null,null,null,0,null,null,null,null,null,0]
[null,null,null,null,null,0,null,null,null,null,null,0]
[null,null,null,null,null,0,null,null,null,null,null,0]
[null,null,null,null,null,0,null,null,null,null,null,0]
[null,null,null,null,null,0,null,null,null,null,null,0]
[null,null,null,null,null,0,null,null,null,null,null,0]
[null,null,null,null,null,0,null,null,null,null,null,0]
[null,null,null,null,null,0,null,null,null,null,null,0]
[null,null,null,null,null,0,null,null,null,null,null,0]
[null,null,null,null,null,0,null,null,null,null,null,0]
[null,null,null,null,null,0,null,null,null,null,null,0]
[null,null,null,null,null,0,null,null,null,null,null,0]
[null,null,null,null,null,0,null,null,null,null,null,0]
[null,null,null,null,null,0,null,null,null,null,null,0]
[null,null,null,null,null,0,null,null,null,null,null,0]
[null,null,null,null,null,0,null,null,null,null,null,0]
[null,null,null,null,null,0,null,null,null,null,null,0]
[null,null,null,null,null,0,null,null,null,null,null,0]
[null,null,null,null,null,0,null,null,null,null,null,0]
[null,null,null,null,null,0,null,null,null,null,null,0]
[null,null,null,null,null,0,null,null,null,null,null,0]
[null,null,null,null,null,0,null,null,null,null,null,0]
[null,null,null,null,null,0,null,null,null,null,null,0]
[null,null,null,null,null,0,null,null,null,null,null,0]
[null,null,null,null,null,0,null,null,null,null,null,0]
[null,null,null,null,null,0,null,null,null,null,null,0]
[null,null,null,null,null,0,null,null,null,null,null,0]
[null,null,null,null,null,0,null,null,null,null,null,0]
[null,null,null,null,null,0,null,null,null,null,null,0]
[null,null,null,null,null,0,null,null,null,null,null,0]
[null,null,null,null,null,0,null,null,null,null,null,0]
[null,null,null,null,null,0,null,null,null,null,null,0]
[null,null,null,null,null,0,null,null,null,null,null,0]
[null,null,null,null,null,0,null,null,null,null,null,0]
[null,null,null,null,null,0,null,null,null,null,null,0]
[null,null,null,null,null,0,null,null,null,null,null,0]
[null,null,null,null,null,0,null,null,null,null,null,0]
[null,null,null,null,null,0,null,null,null,null,null,0]
[null,null,null,null,null,0,null,null,null,null,null,0]
[null,null,null,null,null,0,null,null,null,null,null,0]
[null,null,null,null,null,0,null,null,null,null,null,0]
[null,null,null,null,null,0,null,null,null,null,null,0]
[null,null,null,null,null,0,null,null,null,null,null,0]
[null,null,null,null,null,0,null,null,null,null,null,0]
[null,null,null,null,null,0,null,null,null,null,null,0]
[null,null,null,null,null,0,null,null,null,null,null,0]
[null,null,null,null,null,0,null,null,null,null,null,0]
[null,null,null,null,null,0,null,null,null,null,null,0]
[null,null,null,null,null,0,null,null,null,null,null,0]
[null,null,null,null,null,0,null,null,null,null,null,0]
[null,null,null,null,null,0,null,null,null,null,null,0]
[null,null,null,null,null,0,null,null,null,null,null,0]
[null,null,null,null,null,0,null,null,null,null,null,{"$f":"(IF(D265=0,0,D265)+IF(E265=0,0,E265))*(IF(D265>0,$K$5,1))+F264","v":0}]
[null,null,null,null,null,0,null,null,null,null,null,0]
[null,null,null,null,null,0,null,null,null,null,null,0]
[null,null,null,null,null,{"$f":"IF(D265+E265=0,0,L262)","v":0},null,null,null,null,null,0]
[null,null,null,null,null,0,null,null,null,null,null,0]
[null,null,null,null,null,0,null,null,null,null,null,0]
[null,null,null,null,null,0,null,null,null,null,null,0]
[null,null,null,null,null,0,null,null,null,null,null,0]
[null,null,null,null,null,0,null,null,null,null,null,0]
[null,null,null,null,null,0,null,null,null,null,null,0]
[null,null,null,null,null,0,null,null,null,null,null,0]
[null,null,null,null,null,0,null,null,null,null,null,0]
[null,null,null,null,null,0,null,null,null,null,null,0]
[null,null,null,null,null,0,null,null,null,null,null,0]
[null,null,null,null,null,0,null,null,null,null,null,0]
[null,null,null,null,null,0,null,null,null,null,null,0]
[null,null,null,null,null,0,null,null,null,null,null,0]
[null,null,null,null,null,0,null,null,null,null,null,0]
[null,null,null,null,null,0,null,null,null,null,null,0]
[null,null,null,null,null,0,null,null,null,null,null,0]
[null,null,null,null,null,0,null,null,null,null,null,0]
[null,null,null,null,null,0,null,null,null,null,null,0]
[null,null,null,null,null,0,null,null,null,null,null,0]
[null,null,null,null,null,0,null,null,null,null,null,0]
[null,null,null,null,null,0,null,null,null,null,null,0]
[null,null,null,null,null,0,null,null,null,null,null,0]
[null,null,null,null,null,0,null,null,null,null,null,0]
[null,null,null,null,null,0,null,null,null,null,null,0]
[null,null,null,null,null,0,null,null,null,null,null,0]
[null,null,null,null,null,0,null,null,null,null,null,0]
[null,null,null,null,null,0,null,null,null,null,null,0]
[null,null,null,null,null,0,null,null,null,null,null,0]
[null,null,null,null,null,0,null,null,null,null,null,0]
[null,null,null,null,null,0,null,null,null,null,null,0]
[null,null,null,null,null,0,null,null,null,null,null,0]
[null,null,null,null,null,0,null,null,null,null,null,0]
[null,null,null,null,null,0,null,null,null,null,null,0]
[null,null,null,null,null,0,null,null,null,null,null,0]
[null,null,null,null,null,0,null,null,null,null,null,0]
[null,null,null,null,null,0,null,null,null,null,null,0]
[null,null,null,null,null,0,null,null,null,null,null,0]
[null,null,null,null,null,0,null,null,null,null,null,0]
[null,null,null,null,null,0,null,null,null,null,null,0]
[null,null,null,null,null,0,null,null,null,null,null,0]
[null,null,null,null,null,0,null,null,null,null,null,0]
[null,null,null,null,null,0,null,null,null,null,null,0]
[null,null,null,null,null,0,null,null,null,null,null,0]
[null,null,null,null,null,0,null,null,null,null,null,0]
[null,null,null,null,null,0,null,null,null,null,null,0]
[null,null,null,null,null,0,null,null,null,null,null,0]
[null,null,null,null,null,0,null,null,null,null,null,0]
[null,null,null,null,null,0,null,null,null,null,null,0]
[null,null,null,null,null,0,null,null,null,null,null,0]
[null,null,null,null,null,0,null,null,null,null,null,0]
[null,null,null,null,null,0,null,null,null,null,null,0]
[null,null,null,null,null,0,null,null,null,null,null,0]
[null,null,null,null,null,0,null,null,null,null,null,0]
[null,null,null,null,null,0,null,null,null,null,null,0]
[null,null,null,null,null,0,null,null,null,null,null,0]
[null,null,null,null,null,0,null,null,null,null,null,0]
[null,null,null,null,null,0,null,null,null,null,null,0]
[null,null,null,null,null,0,null,null,null,null,null,0]
[null,null,null,null,null,0,null,null,null,null,null,0]
[null,null,null,null,null,0,null,null,null,null,null,0]
[null,null,null,null,null,0,null,null,null,null,null,{"$f":"(IF(D329=0,0,D329)+IF(E329=0,0,E329))*(IF(D329>0,$K$5,1))+F328","v":0}]
[null,null,null,null,null,0,null,null,null,null,null,0]
[null,null,null,null,null,0,null,null,null,null,null,0]
[null,null,null,null,null,{"$f":"IF(D329+E329=0,0,L326)","v":0},null,null,null,null,null,0]
[null,null,null,null,null,0,null,null,null,null,null,0]
[null,null,null,null,null,0,null,null,null,null,null,0]
[null,null,null,null,null,0,null,null,null,null,null,0]
[null,null,null,null,null,0,null,null,null,null,null,0]
[null,null,null,null,null,0,null,null,null,null,null,0]
[null,null,null,null,null,0,null,null,null,null,null,0]
[null,null,null,null,null,0,null,null,null,null,null,0]
[null,null,null,null,null,0,null,null,null,null,null,0]
[null,null,null,null,null,0,null,null,null,null,null,0]
[null,null,null,null,null,0,null,null,null,null,null,0]
[null,null,null,null,null,0,null,null,null,null,null,0]
[null,null,null,null,null,0,null,null,null,null,null,0]
[null,null,null,null,null,0,null,null,null,null,null,0]
[null,null,null,null,null,0,null,null,null,null,null,0]
[null,null,null,null,null,0,null,null,null,null,null,0]
[null,null,null,null,null,0,null,null,null,null,null,0]
[null,null,null,null,null,0,null,null,null,null,null,0]
[null,null,null,null,null,0,null,null,null,null,null,0]
[null,null,null,null,null,0,null,null,null,null,null,0]
[null,null,null,null,null,0,null,null,null,null,null,0]
[null,null,null,null,null,0,null,null,null,null,null,0]
[null,null,null,null,null,0,null,null,null,null,null,0]
[null,null,null,null,null,0,null,null,null,null,null,0]
[null,null,null,null,null,0,null,null,null,null,null,0]
[null,null,null,null,null,0,null,null,null,null,null,0]
[null,null,null,null,null,0,null,null,null,null,null,0]
[null,null,null,null,null,0,null,null,null,null,null,0]
[null,null,null,null,null,0,null,null,null,null,null,0]
[null,null,null,null,null,0,null,null,null,null,null,0]
[null,null,null,null,null,0,null,null,null,null,null,0]
[null,null,null,null,null,0,null,null,null,null,null,0]
[null,null,null,null,null,0,null,null,null,null,null,0]
[null,null,null,null,null,0,null,null,null,null,null,0]
[null,null,null,null,null,0,null,null,null,null,null,0]
[null,null,null,null,null,0,null,null,null,null,null,0]
[null,null,null,null,null,0,null,null,null,null,null,0]
[null,null,null,null,null,0,null,null,null,null,null,0]
[null,null,null,null,null,0,null,null,null,null,null,0]
[null,null,null,null,null,0,null,null,null,null,null,0]
[null,null,null,null,null,0,null,null,null,null,null,0]
[null,null,null,null,null,0,null,null,null,null,null,0]
[null,null,null,null,null,0,null,null,null,null,null,0]
[null,null,null,null,null,0,null,null,null,null,null,0]
[null,null,null,null,null,0,null,null,null,null,null,0]
[null,null,null,null,null,0,null,null,null,null,null,0]
[null,null,null,null,null,0,null,null,null,null,null,0]
[null,null,null,null,null,0,null,null,null,null,null,0]
[null,null,null,null,null,0,null,null,null,null,null,0]
[null,null,null,null,null,0,null,null,null,null,null,0]
[null,null,null,null,null,0,null,null,null,null,null,0]
[null,null,null,null,null,0,null,null,null,null,null,0]
[null,null,null,null,null,0,null,null,null,null,null,0]
[null,null,null,null,null,0,null,null,null,null,null,0]
[null,null,null,null,null,0,null,null,null,null,null,0]
[null,null,null,null,null,0,null,null,null,null,null,0]
[null,null,null,null,null,0,null,null,null,null,null,0]
[null,null,null,null,null,0,null,null,null,null,null,0]
[null,null,null,null,null,0,null,null,null,null,null,0]
[null,null,null,null,null,0,null,null,null,null,null,0]
[null,null,null,null,null,0,null,null,null,null,null,0]
[null,null,null,null,null,0,null,null,null,null,null,{"$f":"(IF(D393=0,0,D393)+IF(E393=0,0,E393))*(IF(D393>0,$K$5,1))+F392","v":0}]
[null,null,null,null,null,0,null,null,null,null,null,0]
[null,null,null,null,null,0,null,null,null,null,null,0]
[null,null,null,null,null,{"$f":"IF(D393+E393=0,0,L390)","v":0},null,null,null,null,null,0]
[null,null,null,null,null,0,null,null,null,null,null,0]
[null,null,null,null,null,0,null,null,null,null,null,0]
[null,null,null,null,null,0,null,null,null,null,null,0]
[null,null,null,null,null,0,null,null,null,null,null,0]
[null,null,null,null,null,0,null,null,null,null,null,0]
[null,null,null,null,null,0,null,null,null,null,null,0]
[null,null,null,null,null,0,null,null,null,null,null,0]
[null,null,null,null,null,0,null,null,null,null,null,0]
[null,null,null,null,null,0,null,null,null,null,null,0]
[null,null,null,null,null,0,null,null,null,null,null,0]
[null,null,null,null,null,0,null,null,null,null,null,0]
[null,null,null,null,null,0,null,null,null,null,null,0]
[null,null,null,null,null,0,null,null,null,null,null,0]
[null,null,null,null,null,0,null,null,null,null,null,0]
[null,null,null,null,null,0,null,null,null,null,null,0]
[null,null,null,null,null,0,null,null,null,null,null,0]
[null,null,null,null,null,0,null,null,null,null,null,0]
[null,null,null,null,null,0,null,null,null,null,null,0]
[null,null,null,null,null,0,null,null,null,null,null,0]
[null,null,null,null,null,0,null,null,null,null,null,0]
[null,null,null,null,null,0,null,null,null,null,null,0]
[null,null,null,null,null,0,null,null,null,null,null,0]
[null,null,null,null,null,0,null,null,null,null,null,0]
[null,null,null,null,null,0,null,null,null,null,null,0]
[null,null,null,null,null,0,null,null,null,null,null,0]
[null,null,null,null,null,0,null,null,null,null,null,0]
[null,null,null,null,null,0,null,null,null,null,null,0]
[null,null,null,null,null,0,null,null,null,null,null,0]
[null,null,null,null,null,0,null,null,null,null,null,0]
[null,null,null,null,null,0,null,null,null,null,null,0]
[null,null,null,null,null,0,null,null,null,null,null,0]
[null,null,null,null,null,0,null,null,null,null,null,0]
[null,null,null,null,null,0,null,null,null,null,null,0]
[null,null,null,null,null,0,null,null,null,null,null,0]
[null,null,null,null,null,0,null,null,null,null,null,0]
[null,null,null,null,null,0,null,null,null,null,null,0]
[null,null,null,null,null,0,null,null,null,null,null,0]
[null,null,null,null,null,0,null,null,null,null,null,0]
[null,null,null,null,null,0,null,null,null,null,null,0]
[null,null,null,null,null,0,null,null,null,null,null,0]
[null,null,null,null,null,0,null,null,null,null,null,0]
[null,null,null,null,null,0,null,null,null,null,null,0]
[null,null,null,null,null,0,null,null,null,null,null,0]
[null,null,null,null,null,0,null,null,null,null,null,0]
[null,null,null,null,null,0,null,null,null,null,null,0]
[null,null,null,null,null,0,null,null,null,null,null,0]
[null,null,null,null,null,0,null,null,null,null,null,0]
[null,null,null,null,null,0,null,null,null,null,null,0]
[null,null,null,null,null,0,null,null,null,null,null,0]
[null,null,null,null,null,0,null,null,null,null,null,0]
[null,null,null,null,null,0,null,null,null,null,null,0]
[null,null,null,null,null,0,null,null,null,null,null,0]
[null,null,null,null,null,0,null,null,null,null,null,0]
[null,null,null,null,null,0,null,null,null,null,null,0]
[null,null,null,null,null,0,null,null,null,null,null,0]
[null,null,null,null,null,0,null,null,null,null,null,0]
[null,null,null,null,null,0,null,null,null,null,null,0]
[null,null,null,null,null,0,null,null,null,null,null,0]
[null,null,null,null,null,0,null,null,null,null,null,0]
[null,null,null,null,null,0,null,null,null,null,null,0]
[null,null,null,null,null,0,null,null,null,null,null,{"$f":"(IF(D457=0,0,D457)+IF(E457=0,0,E457))*(IF(D457>0,$K$5,1))+F456","v":0}]
[null,null,null,null,null,0,null,null,null,null,null,0]
[null,null,null,null,null,0,null,null,null,null,null,0]
[null,null,null,null,null,{"$f":"IF(D457+E457=0,0,L454)","v":0},null,null,null,null,null,0]
[null,null,null,null,null,0,null,null,null,null,null,0]
[null,null,null,null,null,0,null,null,null,null,null,0]
[null,null,null,null,null,0,null,null,null,null,null,0]
[null,null,null,null,null,0,null,null,null,null,null,0]
[null,null,null,null,null,0,null,null,null,null,null,0]
[null,null,null,null,null,0,null,null,null,null,null,0]
[null,null,null,null,null,0,null,null,null,null,null,0]
[null,null,null,null,null,0,null,null,null,null,null,0]
[null,null,null,null,null,0,null,null,null,null,null,0]
[null,null,null,null,null,0,null,null,null,null,null,0]
[null,null,null,null,null,0,null,null,null,null,null,0]
[null,null,null,null,null,0,null,null,null,null,null,0]
[null,null,null,null,null,0,null,null,null,null,null,0]
[null,null,null,null,null,0,null,null,null,null,null,0]
[null,null,null,null,null,0,null,null,null,null,null,0]
[null,null,null,null,null,0,null,null,null,null,null,0]
[null,null,null,null,null,0,null,null,null,null,null,0]
[null,null,null,null,null,0,null,null,null,null,null,0]
[null,null,null,null,null,0,null,null,null,null,null,0]
[null,null,null,null,null,0,null,null,null,null,null,0]
[null,null,null,null,null,0,null,null,null,null,null,0]
[null,null,null,null,null,0,null,null,null,null,null,0]
[null,null,null,null,null,0,null,null,null,null,null,0]
[null,null,null,null,null,0,null,null,null,null,null,0]
[null,null,null,null,null,0,null,null,null,null,null,0]
[null,null,null,null,null,0,null,null,null,null,null,0]
[null,null,null,null,null,0,null,null,null,null,null,0]
[null,null,null,null,null,0,null,null,null,null,null,0]
[null,null,null,null,null,0,null,null,null,null,null,0]
[null,null,null,null,null,0,null,null,null,null,null,0]
[null,null,null,null,null,0,null,null,null,null,null,0]
[null,null,null,null,null,0,null,null,null,null,null,0]
[null,null,null,null,null,0,null,null,null,null,null,0]
[null,null,null,null,null,0,null,null,null,null,null,0]
[null,null,null,null,null,0,null,null,null,null,null,0]
[null,null,null,null,null,0,null,null,null,null,null,0]
[null,null,null,null,null,0,null,null,null,null,null,0]
[null,null,null,null,null,0,null,null,null,null,null,0]
[null,null,null,null,null,0,null,null,null,null,null,0]
[null,null,null,null,null,0,null,null,null,null,null,0]
[null,null,null,null,null,0,null,null,null,null,null,0]
[null,null,null,null,null,0,null,null,null,null,null,0]
[null,null,null,null,null,0,null,null,null,null,null,0]
[null,null,null,null,null,0,null,null,null,null,null,0]
[null,null,null,null,null,0,null,null,null,null,null,0]
[null,null,null,null,null,0,null,null,null,null,null,0]
[null,null,null,null,null,0,null,null,null,null,null,0]
[null,null,null,null,null,0,null,null,null,null,null,0]
[null,null,null,null,null,0,null,null,null,null,null,0]
[null,null,null,null,null,0,null,null,null,null,null,0]
[null,null,null,null,null,0,null,null,null,null,null,0]
[null,null,null,null,null,0,null,null,null,null,null,0]
[null,null,null,null,null,0,null,null,null,null,null,0]
[null,null,null,null,null,0,null,null,null,null,null,0]
[null,null,null,null,null,0,null,null,null,null,null,0]
[null,null,null,null,null,0,null,null,null,null,null,0]
[null,null,null,null,null,0,null,null,null,null,null,0]
[null,null,null,null,null,0,null,null,null,null,null,0]
[null,null,null,null,null,0,null,null,null,null,null,0]
[null,null,null,null,null,0,null,null,null,null,null,0]
[null,null,null,null,null,0,null,null,null,null,null,{"$f":"(IF(D521=0,0,D521)+IF(E521=0,0,E521))*(IF(D521>0,$K$5,1))+F520","v":0}]
[null,null,null,null,null,0,null,null,null,null,null,0]
[null,null,null,null,null,0,null,null,null,null,null,0]
[null,null,null,null,null,{"$f":"IF(D521+E521=0,0,L518)","v":0},null,null,null,null,null,0]
[null,null,null,null,null,0,null,null,null,null,null,0]
[null,null,null,null,null,0,null,null,null,null,null,0]
[null,null,null,null,null,0,null,null,null,null,null,0]
[null,null,null,null,null,0,null,null,null,null,null,0]
[null,null,null,null,null,0,null,null,null,null,null,0]
[null,null,null,null,null,0,null,null,null,null,null,0]
[null,null,null,null,null,0,null,null,null,null,null,0]
[null,null,null,null,null,0,null,null,null,null,null,0]
[null,null,null,null,null,0,null,null,null,null,null,0]
[null,null,null,null,null,0,null,null,null,null,null,0]
[null,null,null,null,null,0,null,null,null,null,null,0]
[null,null,null,null,null,0,null,null,null,null,null,0]
[null,null,null,null,null,0,null,null,null,null,null,0]
[null,null,null,null,null,0,null,null,null,null,null,0]
[null,null,null,null,null,0,null,null,null,null,null,0]
[null,null,null,null,null,0,null,null,null,null,null,0]
[null,null,null,null,null,0,null,null,null,null,null,0]
[null,null,null,null,null,0,null,null,null,null,null,0]
[null,null,null,null,null,0,null,null,null,null,null,0]
[null,null,null,null,null,0,null,null,null,null,null,0]
[null,null,null,null,null,0,null,null,null,null,null,0]
[null,null,null,null,null,0,null,null,null,null,null,0]
[null,null,null,null,null,0,null,null,null,null,null,0]
[null,null,null,null,null,0,null,null,null,null,null,0]
[null,null,null,null,null,0,null,null,null,null,null,0]
[null,null,null,null,null,0,null,null,null,null,null,0]
[null,null,null,null,null,0,null,null,null,null,null,0]
[null,null,null,null,null,0,null,null,null,null,null,0]
[null,null,null,null,null,0,null,null,null,null,null,0]
[null,null,null,null,null,0,null,null,null,null,null,0]
[null,null,null,null,null,0,null,null,null,null,null,0]
[null,null,null,null,null,0,null,null,null,null,null,0]
[null,null,null,null,null,0,null,null,null,null,null,0]
[null,null,null,null,null,0,null,null,null,null,null,0]
[null,null,null,null,null,0,null,null,null,null,null,0]
[null,null,null,null,null,0,null,null,null,null,null,0]
[null,null,null,null,null,0,null,null,null,null,null,0]
[null,null,null,null,null,0,null,null,null,null,null,0]
[null,null,null,null,null,0,null,null,null,null,null,0]
[null,null,null,null,null,0,null,null,null,null,null,0]
[null,null,null,null,null,0,null,null,null,null,null,0]
[null,null,null,null,null,0,null,null,null,null,null,0]
[null,null,null,null,null,0,null,null,null,null,null,0]
[null,null,null,null,null,0,null,null,null,null,null,0]
[null,null,null,null,null,0,null,null,null,null,null,0]
[null,null,null,null,null,0,null,null,null,null,null,0]
[null,null,null,null,null,0,null,null,null,null,null,0]
[null,null,null,null,null,0,null,null,null,null,null,0]
[null,null,null,null,null,0,null,null,null,null,null,0]
[null,null,null,null,null,0,null,null,null,null,null,0]
[null,null,null,null,null,0,null,null,null,null,null,0]
[null,null,null,null,null,0,null,null,null,null,null,0]
[null,null,null,null,null,0,null,null,null,null,null,0]
[null,null,null,null,null,0,null,null,null,null,null,0]
[null,null,null,null,null,0,null,null,null,null,null,0]
[null,null,null,null,null,0,null,null,null,null,null,0]
[null,null,null,null,null,0,null,null,null,null,null,0]
[null,null,null,null,null,0,null,null,null,null,null,0]
[null,null,null,null,null,0,null,null,null,null,null,0]
[null,null,null,null,null,0,null,null,null,null,null,0]
[null,null,null,null,null,0,null,null,null,null,null,{"$f":"(IF(D585=0,0,D585)+IF(E585=0,0,E585))*(IF(D585>0,$K$5,1))+F584","v":0}]
[null,null,null,null,null,0,null,null,null,null,null,0]
[null,null,null,null,null,0,null,null,null,null,null,0]
[null,null,null,null,null,{"$f":"IF(D585+E585=0,0,L582)","v":0},null,null,null,null,null,0]
[null,null,null,null,null,0,null,null,null,null,null,0]
[null,null,null,null,null,0,null,null,null,null,null,0]
[null,null,null,null,null,0,null,null,null,null,null,0]
[null,null,null,null,null,0,null,null,null,null,null,0]
[null,null,null,null,null,0,null,null,null,null,null,0]
[null,null,null,null,null,0,null,null,null,null,null,0]
[null,null,null,null,null,0,null,null,null,null,null,0]
[null,null,null,null,null,0,null,null,null,null,null,0]
[null,null,null,null,null,0,null,null,null,null,null,0]
[null,null,null,null,null,0,null,null,null,null,null,0]
[null,null,null,null,null,0,null,null,null,null,null,0]
[null,null,null,null,null,0,null,null,null,null,null,0]
[null,null,null,null,null,0,null,null,null,null,null,0]
[null,null,null,null,null,0,null,null,null,null,null,0]
[null,null,null,null,null,0,null,null,null,null,null,0]
[null,null,null,null,null,0]
[null,null,null,null,null,0]
[null,null,null,null,null,0]

{"sheet":"Client-Matter Name 3","index":3,"n_rows":603,"n_cols":12,"rows_kept":603,"cut":false,"hidden":false,"merged":[[3,0,3,1],[4,0,4,1],[3,9,3,12]]}
[null,null,"Trust Account of "]
["Fiscal Year 20xx",null,"Client-Matter Ledger"]
[]
["Client Name and/or Number",null,null,"Date Opened",null,null,null,null,null,"MAKE NO CHANGES IN THESE COLUMNS"]
["Matter Name and/or Number",null,null,null,null,null,null,null,null,null,-1,{"$f":"(IF(D8=0,0,D8)+IF(E8=0,0,E8))*(IF(D8>0,$K5,1))","v":0}]
[null,null,null,null,null,"Caution:  Calculated Column - Make No Changes Here",null,null,null,null,null,{"$f":"(IF(D9=0,0,D9)+IF(E9=0,0,E9))*(IF(D9>0,$K$5,1))+F8","v":0}]
["Date","Item # or Type Transaction","Description","Disbursements","Receipts","Balance",null,null,null,null,null,0]
[null,null,null,null,null,{"$f":"(IF(D8=0,0,D8)+IF(E8=0,0,E8))*(IF(D8>0,$K$5,1))","v":0},null,null,null,null,null,0]
[null,null,null,null,null,{"$f":"IF(D9+E9=0,0,L6)","v":0},null,null,null,null,null,0]
[null,null,null,null,null,0,null,null,null,null,null,0]
[null,null,null,null,null,0,null,null,null,null,null,0]
[null,null,null,null,null,0,null,null,null,null,null,0]
[null,null,null,null,null,0,null,null,null,null,null,0]
[null,null,null,null,null,0,null,null,null,null,null,0]
[null,null,null,null,null,0,null,null,null,null,null,0]
[null,null,null,null,null,0,null,null,null,null,null,0]
[null,null,null,null,null,0,null,null,null,null,null,0]
[null,null,null,null,null,0,null,null,null,null,null,0]
[null,null,null,null,null,0,null,null,null,null,null,0]
[null,null,null,null,null,0,null,null,null,null,null,0]
[null,null,null,null,null,0,null,null,null,null,null,0]
[null,null,null,null,null,0,null,null,null,null,null,0]
[null,null,null,null,null,0,null,null,null,null,null,0]
[null,null,null,null,null,0,null,null,null,null,null,0]
[null,null,null,null,null,0,null,null,null,null,null,0]
[null,null,null,null,null,0,null,null,null,null,null,0]
[null,null,null,null,null,0,null,null,null,null,null,0]
[null,null,null,null,null,0,null,null,null,null,null,0]
[null,null,null,null,null,0,null,null,null,null,null,0]
[null,null,null,null,null,0,null,null,null,null,null,0]
[null,null,null,null,null,0,null,null,null,null,null,0]
[null,null,null,null,null,0,null,null,null,null,null,0]
[null,null,null,null,null,0,null,null,null,null,null,0]
[null,null,null,null,null,0,null,null,null,null,null,0]
[null,null,null,null,null,0,null,null,null,null,null,0]
[null,null,null,null,null,0,null,null,null,null,null,0]
[null,null,null,null,null,0,null,null,null,null,null,0]
[null,null,null,null,null,0,null,null,null,null,null,0]
[null,null,null,null,null,0,null,null,null,null,null,0]
[null,null,null,null,null,0,null,null,null,null,null,0]
[null,null,null,null,null,0,null,null,null,null,null,0]
[null,null,null,null,null,0,null,null,null,null,null,0]
[null,null,null,null,null,0,null,null,null,null,null,0]
[null,null,null,null,null,0,null,null,null,null,null,0]
[null,null,null,null,null,0,null,null,null,null,null,0]
[null,null,null,null,null,0,null,null,null,null,null,0]
[null,null,null,null,null,0,null,null,null,null,null,0]
[null,null,null,null,null,0,null,null,null,null,null,0]
[null,null,null,null,null,0,null,null,null,null,null,0]
[null,null,null,null,null,0,null,null,null,null,null,0]
[null,null,null,null,null,0,null,null,null,null,null,0]
[null,null,null,null,null,0,null,null,null,null,null,0]
[null,null,null,null,null,0,null,null,null,null,null,0]
[null,null,null,null,null,0,null,null,null,null,null,0]
[null,null,null,null,null,0,null,null,null,null,null,0]
[null,null,null,null,null,0,null,null,null,null,null,0]
[null,null,null,null,null,0,null,null,null,null,null,0]
[null,null,null,null,null,0,null,null,null,null,null,0]
[null,null,null,null,null,0,null,null,null,null,null,0]
[null,null,null,null,null,0,null,null,null,null,null,0]
[null,null,null,null,null,0,null,null,null,null,null,0]
[null,null,null,null,null,0,null,null,null,null,null,0]
[null,null,null,null,null,0,null,null,null,null,null,0]
[null,null,null,null,null,0,null,null,null,null,null,0]
[null,null,null,null,null,0,null,null,null,null,null,0]
[null,null,null,null,null,0,null,null,null,null,null,0]
[null,null,null,null,null,0,null,null,null,null,null,0]
[null,null,null,null,null,0,null,null,null,null,null,0]
[null,null,null,null,null,0,null,null,null,null,null,0]
[null,null,null,null,null,0,null,null,null,null,null,{"$f":"(IF(D73=0,0,D73)+IF(E73=0,0,E73))*(IF(D73>0,$K$5,1))+F72","v":0}]
[null,null,null,null,null,0,null,null,null,null,null,0]
[null,null,null,null,null,0,null,null,null,null,null,0]
[null,null,null,null,null,{"$f":"IF(D73+E73=0,0,L70)","v":0},null,null,null,null,null,0]
[null,null,null,null,null,0,null,null,null,null,null,0]
[null,null,null,null,null,0,null,null,null,null,null,0]
[null,null,null,null,null,0,null,null,null,null,null,0]
[null,null,null,null,null,0,null,null,null,null,null,0]
[null,null,null,null,null,0,null,null,null,null,null,0]
[null,null,null,null,null,0,null,null,null,null,null,0]
[null,null,null,null,null,0,null,null,null,null,null,0]
[null,null,null,null,null,0,null,null,null,null,null,0]
[null,null,null,null,null,0,null,null,null,null,null,0]
[null,null,null,null,null,0,null,null,null,null,null,0]
[null,null,null,null,null,0,null,null,null,null,null,0]
[null,null,null,null,null,0,null,null,null,null,null,0]
[null,null,null,null,null,0,null,null,null,null,null,0]
[null,null,null,null,null,0,null,null,null,null,null,0]
[null,null,null,null,null,0,null,null,null,null,null,0]
[null,null,null,null,null,0,null,null,null,null,null,0]
[null,null,null,null,null,0,null,null,null,null,null,0]
[null,null,null,null,null,0,null,null,null,null,null,0]
[null,null,null,null,null,0,null,null,null,null,null,0]
[null,null,null,null,null,0,null,null,null,null,null,0]
[null,null,null,null,null,0,null,null,null,null,null,0]
[null,null,null,null,null,0,null,null,null,null,null,0]
[null,null,null,null,null,0,null,null,null,null,null,0]
[null,null,null,null,null,0,null,null,null,null,null,0]
[null,null,null,null,null,0,null,null,null,null,null,0]
[null,null,null,null,null,0,null,null,null,null,null,0]
[null,null,null,null,null,0,null,null,null,null,null,0]
[null,null,null,null,null,0,null,null,null,null,null,0]
[null,null,null,null,null,0,null,null,null,null,null,0]
[null,null,null,null,null,0,null,null,null,null,null,0]
[null,null,null,null,null,0,null,null,null,null,null,0]
[null,null,null,null,null,0,null,null,null,null,null,0]
[null,null,null,null,null,0,null,null,null,null,null,0]
[null,null,null,null,null,0,null,null,null,null,null,0]
[null,null,null,null,null,0,null,null,null,null,null,0]
[null,null,null,null,null,0,null,null,null,null,null,0]
[null,null,null,null,null,0,null,null,null,null,null,0]
[null,null,null,null,null,0,null,null,null,null,null,0]
[null,null,null,null,null,0,null,null,null,null,null,0]
[null,null,null,null,null,0,null,null,null,null,null,0]
[null,null,null,null,null,0,null,null,null,null,null,0]
[null,null,null,null,null,0,null,null,null,null,null,0]
[null,null,null,null,null,0,null,null,null,null,null,0]
[null,null,null,null,null,0,null,null,null,null,null,0]
[null,null,null,null,null,0,null,null,null,null,null,0]
[null,null,null,null,null,0,null,null,null,null,null,0]
[null,null,null,null,null,0,null,null,null,null,null,0]
[null,null,null,null,null,0,null,null,null,null,null,0]
[null,null,null,null,null,0,null,null,null,null,null,0]
[null,null,null,null,null,0,null,null,null,null,null,0]
[null,null,null,null,null,0,null,null,null,null,null,0]
[null,null,null,null,null,0,null,null,null,null,null,0]
[null,null,null,null,null,0,null,null,null,null,null,0]
[null,null,null,null,null,0,null,null,null,null,null,0]
[null,null,null,null,null,0,null,null,null,null,null,0]
[null,null,null,null,null,0,null,null,null,null,null,0]
[null,null,null,null,null,0,null,null,null,null,null,0]
[null,null,null,null,null,0,null,null,null,null,null,0]
[null,null,null,null,null,0,null,null,null,null,null,0]
[null,null,null,null,null,0,null,null,null,null,null,0]
[null,null,null,null,null,0,null,null,null,null,null,{"$f":"(IF(D137=0,0,D137)+IF(E137=0,0,E137))*(IF(D137>0,$K$5,1))+F136","v":0}]
[null,null,null,null,null,0,null,null,null,null,null,0]
[null,null,null,null,null,0,null,null,null,null,null,0]
[null,null,null,null,null,{"$f":"IF(D137+E137=0,0,L134)","v":0},null,null,null,null,null,0]
[null,null,null,null,null,0,null,null,null,null,null,0]
[null,null,null,null,null,0,null,null,null,null,null,0]
[null,null,null,null,null,0,null,null,null,null,null,0]
[null,null,null,null,null,0,null,null,null,null,null,0]
[null,null,null,null,null,0,null,null,null,null,null,0]
[null,null,null,null,null,0,null,null,null,null,null,0]
[null,null,null,null,null,0,null,null,null,null,null,0]
[null,null,null,null,null,0,null,null,null,null,null,0]
[null,null,null,null,null,0,null,null,null,null,null,0]
[null,null,null,null,null,0,null,null,null,null,null,0]
[null,null,null,null,null,0,null,null,null,null,null,0]
[null,null,null,null,null,0,null,null,null,null,null,0]
[null,null,null,null,null,0,null,null,null,null,null,0]
[null,null,null,null,null,0,null,null,null,null,null,0]
[null,null,null,null,null,0,null,null,null,null,null,0]
[null,null,null,null,null,0,null,null,null,null,null,0]
[null,null,null,null,null,0,null,null,null,null,null,0]
[null,null,null,null,null,0,null,null,null,null,null,0]
[null,null,null,null,null,0,null,null,null,null,null,0]
[null,null,null,null,null,0,null,null,null,null,null,0]
[null,null,null,null,null,0,null,null,null,null,null,0]
[null,null,null,null,null,0,null,null,null,null,null,0]
[null,null,null,null,null,0,null,null,null,null,null,0]
[null,null,null,null,null,0,null,null,null,null,null,0]
[null,null,null,null,null,0,null,null,null,null,null,0]
[null,null,null,null,null,0,null,null,null,null,null,0]
[null,null,null,null,null,0,null,null,null,null,null,0]
[null,null,null,null,null,0,null,null,null,null,null,0]
[null,null,null,null,null,0,null,null,null,null,null,0]
[null,null,null,null,null,0,null,null,null,null,null,0]
[null,null,null,null,null,0,null,null,null,null,null,0]
[null,null,null,null,null,0,null,null,null,null,null,0]
[null,null,null,null,null,0,null,null,null,null,null,0]
[null,null,null,null,null,0,null,null,null,null,null,0]
[null,null,null,null,null,0,null,null,null,null,null,0]
[null,null,null,null,null,0,null,null,null,null,null,0]
[null,null,null,null,null,0,null,null,null,null,null,0]
[null,null,null,null,null,0,null,null,null,null,null,0]
[null,null,null,null,null,0,null,null,null,null,null,0]
[null,null,null,null,null,0,null,null,null,null,null,0]
[null,null,null,null,null,0,null,null,null,null,null,0]
[null,null,null,null,null,0,null,null,null,null,null,0]
[null,null,null,null,null,0,null,null,null,null,null,0]
[null,null,null,null,null,0,null,null,null,null,null,0]
[null,null,null,null,null,0,null,null,null,null,null,0]
[null,null,null,null,null,0,null,null,null,null,null,0]
[null,null,null,null,null,0,null,null,null,null,null,0]
[null,null,null,null,null,0,null,null,null,null,null,0]
[null,null,null,null,null,0,null,null,null,null,null,0]
[null,null,null,null,null,0,null,null,null,null,null,0]
[null,null,null,null,null,0,null,null,null,null,null,0]
[null,null,null,null,null,0,null,null,null,null,null,0]
[null,null,null,null,null,0,null,null,null,null,null,0]
[null,null,null,null,null,0,null,null,null,null,null,0]
[null,null,null,null,null,0,null,null,null,null,null,0]
[null,null,null,null,null,0,null,null,null,null,null,0]
[null,null,null,null,null,0,null,null,null,null,null,0]
[null,null,null,null,null,0,null,null,null,null,null,0]
[null,null,null,null,null,0,null,null,null,null,null,0]
[null,null,null,null,null,0,null,null,null,null,null,0]
[null,null,null,null,null,0,null,null,null,null,null,{"$f":"(IF(D201=0,0,D201)+IF(E201=0,0,E201))*(IF(D201>0,$K$5,1))+F200","v":0}]
[null,null,null,null,null,0,null,null,null,null,null,0]
[null,null,null,null,null,0,null,null,null,null,null,0]
[null,null,null,null,null,{"$f":"IF(D201+E201=0,0,L198)","v":0},null,null,null,null,null,0]
[null,null,null,null,null,0,null,null,null,null,null,0]
[null,null,null,null,null,0,null,null,null,null,null,0]
[null,null,null,null,null,0,null,null,null,null,null,0]
[null,null,null,null,null,0,null,null,null,null,null,0]
[null,null,null,null,null,0,null,null,null,null,null,0]
[null,null,null,null,null,0,null,null,null,null,null,0]
[null,null,null,null,null,0,null,null,null,null,null,0]
[null,null,null,null,null,0,null,null,null,null,null,0]
[null,null,null,null,null,0,null,null,null,null,null,0]
[null,null,null,null,null,0,null,null,null,null,null,0]
[null,null,null,null,null,0,null,null,null,null,null,0]
[null,null,null,null,null,0,null,null,null,null,null,0]
[null,null,null,null,null,0,null,null,null,null,null,0]
[null,null,null,null,null,0,null,null,null,null,null,0]
[null,null,null,null,null,0,null,null,null,null,null,0]
[null,null,null,null,null,0,null,null,null,null,null,0]
[null,null,null,null,null,0,null,null,null,null,null,0]
[null,null,null,null,null,0,null,null,null,null,null,0]
[null,null,null,null,null,0,null,null,null,null,null,0]
[null,null,null,null,null,0,null,null,null,null,null,0]
[null,null,null,null,null,0,null,null,null,null,null,0]
[null,null,null,null,null,0,null,null,null,null,null,0]
[null,null,null,null,null,0,null,null,null,null,null,0]
[null,null,null,null,null,0,null,null,null,null,null,0]
[null,null,null,null,null,0,null,null,null,null,null,0]
[null,null,null,null,null,0,null,null,null,null,null,0]
[null,null,null,null,null,0,null,null,null,null,null,0]
[null,null,null,null,null,0,null,null,null,null,null,0]
[null,null,null,null,null,0,null,null,null,null,null,0]
[null,null,null,null,null,0,null,null,null,null,null,0]
[null,null,null,null,null,0,null,null,null,null,null,0]
[null,null,null,null,null,0,null,null,null,null,null,0]
[null,null,null,null,null,0,null,null,null,null,null,0]
[null,null,null,null,null,0,null,null,null,null,null,0]
[null,null,null,null,null,0,null,null,null,null,null,0]
[null,null,null,null,null,0,null,null,null,null,null,0]
[null,null,null,null,null,0,null,null,null,null,null,0]
[null,null,null,null,null,0,null,null,null,null,null,0]
[null,null,null,null,null,0,null,null,null,null,null,0]
[null,null,null,null,null,0,null,null,null,null,null,0]
[null,null,null,null,null,0,null,null,null,null,null,0]
[null,null,null,null,null,0,null,null,null,null,null,0]
[null,null,null,null,null,0,null,null,null,null,null,0]
[null,null,null,null,null,0,null,null,null,null,null,0]
[null,null,null,null,null,0,null,null,null,null,null,0]
[null,null,null,null,null,0,null,null,null,null,null,0]
[null,null,null,null,null,0,null,null,null,null,null,0]
[null,null,null,null,null,0,null,null,null,null,null,0]
[null,null,null,null,null,0,null,null,null,null,null,0]
[null,null,null,null,null,0,null,null,null,null,null,0]
[null,null,null,null,null,0,null,null,null,null,null,0]
[null,null,null,null,null,0,null,null,null,null,null,0]
[null,null,null,null,null,0,null,null,null,null,null,0]
[null,null,null,null,null,0,null,null,null,null,null,0]
[null,null,null,null,null,0,null,null,null,null,null,0]
[null,null,null,null,null,0,null,null,null,null,null,0]
[null,null,null,null,null,0,null,null,null,null,null,0]
[null,null,null,null,null,0,null,null,null,null,null,0]
[null,null,null,null,null,0,null,null,null,null,null,0]
[null,null,null,null,null,0,null,null,null,null,null,0]
[null,null,null,null,null,0,null,null,null,null,null,{"$f":"(IF(D265=0,0,D265)+IF(E265=0,0,E265))*(IF(D265>0,$K$5,1))+F264","v":0}]
[null,null,null,null,null,0,null,null,null,null,null,0]
[null,null,null,null,null,0,null,null,null,null,null,0]
[null,null,null,null,null,{"$f":"IF(D265+E265=0,0,L262)","v":0},null,null,null,null,null,0]
[null,null,null,null,null,0,null,null,null,null,null,0]
[null,null,null,null,null,0,null,null,null,null,null,0]
[null,null,null,null,null,0,null,null,null,null,null,0]
[null,null,null,null,null,0,null,null,null,null,null,0]
[null,null,null,null,null,0,null,null,null,null,null,0]
[null,null,null,null,null,0,null,null,null,null,null,0]
[null,null,null,null,null,0,null,null,null,null,null,0]
[null,null,null,null,null,0,null,null,null,null,null,0]
[null,null,null,null,null,0,null,null,null,null,null,0]
[null,null,null,null,null,0,null,null,null,null,null,0]
[null,null,null,null,null,0,null,null,null,null,null,0]
[null,null,null,null,null,0,null,null,null,null,null,0]
[null,null,null,null,null,0,null,null,null,null,null,0]
[null,null,null,null,null,0,null,null,null,null,null,0]
[null,null,null,null,null,0,null,null,null,null,null,0]
[null,null,null,null,null,0,null,null,null,null,null,0]
[null,null,null,null,null,0,null,null,null,null,null,0]
[null,null,null,null,null,0,null,null,null,null,null,0]
[null,null,null,null,null,0,null,null,null,null,null,0]
[null,null,null,null,null,0,null,null,null,null,null,0]
[null,null,null,null,null,0,null,null,null,null,null,0]
[null,null,null,null,null,0,null,null,null,null,null,0]
[null,null,null,null,null,0,null,null,null,null,null,0]
[null,null,null,null,null,0,null,null,null,null,null,0]
[null,null,null,null,null,0,null,null,null,null,null,0]
[null,null,null,null,null,0,null,null,null,null,null,0]
[null,null,null,null,null,0,null,null,null,null,null,0]
[null,null,null,null,null,0,null,null,null,null,null,0]
[null,null,null,null,null,0,null,null,null,null,null,0]
[null,null,null,null,null,0,null,null,null,null,null,0]
[null,null,null,null,null,0,null,null,null,null,null,0]
[null,null,null,null,null,0,null,null,null,null,null,0]
[null,null,null,null,null,0,null,null,null,null,null,0]
[null,null,null,null,null,0,null,null,null,null,null,0]
[null,null,null,null,null,0,null,null,null,null,null,0]
[null,null,null,null,null,0,null,null,null,null,null,0]
[null,null,null,null,null,0,null,null,null,null,null,0]
[null,null,null,null,null,0,null,null,null,null,null,0]
[null,null,null,null,null,0,null,null,null,null,null,0]
[null,null,null,null,null,0,null,null,null,null,null,0]
[null,null,null,null,null,0,null,null,null,null,null,0]
[null,null,null,null,null,0,null,null,null,null,null,0]
[null,null,null,null,null,0,null,null,null,null,null,0]
[null,null,null,null,null,0,null,null,null,null,null,0]
[null,null,null,null,null,0,null,null,null,null,null,0]
[null,null,null,null,null,0,null,null,null,null,null,0]
[null,null,null,null,null,0,null,null,null,null,null,0]
[null,null,null,null,null,0,null,null,null,null,null,0]
[null,null,null,null,null,0,null,null,null,null,null,0]
[null,null,null,null,null,0,null,null,null,null,null,0]
[null,null,null,null,null,0,null,null,null,null,null,0]
[null,null,null,null,null,0,null,null,null,null,null,0]
[null,null,null,null,null,0,null,null,null,null,null,0]
[null,null,null,null,null,0,null,null,null,null,null,0]
[null,null,null,null,null,0,null,null,null,null,null,0]
[null,null,null,null,null,0,null,null,null,null,null,0]
[null,null,null,null,null,0,null,null,null,null,null,0]
[null,null,null,null,null,0,null,null,null,null,null,0]
[null,null,null,null,null,0,null,null,null,null,null,0]
[null,null,null,null,null,0,null,null,null,null,null,0]
[null,null,null,null,null,0,null,null,null,null,null,{"$f":"(IF(D329=0,0,D329)+IF(E329=0,0,E329))*(IF(D329>0,$K$5,1))+F328","v":0}]
[null,null,null,null,null,0,null,null,null,null,null,0]
[null,null,null,null,null,0,null,null,null,null,null,0]
[null,null,null,null,null,{"$f":"IF(D329+E329=0,0,L326)","v":0},null,null,null,null,null,0]
[null,null,null,null,null,0,null,null,null,null,null,0]
[null,null,null,null,null,0,null,null,null,null,null,0]
[null,null,null,null,null,0,null,null,null,null,null,0]
[null,null,null,null,null,0,null,null,null,null,null,0]
[null,null,null,null,null,0,null,null,null,null,null,0]
[null,null,null,null,null,0,null,null,null,null,null,0]
[null,null,null,null,null,0,null,null,null,null,null,0]
[null,null,null,null,null,0,null,null,null,null,null,0]
[null,null,null,null,null,0,null,null,null,null,null,0]
[null,null,null,null,null,0,null,null,null,null,null,0]
[null,null,null,null,null,0,null,null,null,null,null,0]
[null,null,null,null,null,0,null,null,null,null,null,0]
[null,null,null,null,null,0,null,null,null,null,null,0]
[null,null,null,null,null,0,null,null,null,null,null,0]
[null,null,null,null,null,0,null,null,null,null,null,0]
[null,null,null,null,null,0,null,null,null,null,null,0]
[null,null,null,null,null,0,null,null,null,null,null,0]
[null,null,null,null,null,0,null,null,null,null,null,0]
[null,null,null,null,null,0,null,null,null,null,null,0]
[null,null,null,null,null,0,null,null,null,null,null,0]
[null,null,null,null,null,0,null,null,null,null,null,0]
[null,null,null,null,null,0,null,null,null,null,null,0]
[null,null,null,null,null,0,null,null,null,null,null,0]
[null,null,null,null,null,0,null,null,null,null,null,0]
[null,null,null,null,null,0,null,null,null,null,null,0]
[null,null,null,null,null,0,null,null,null,null,null,0]
[null,null,null,null,null,0,null,null,null,null,null,0]
[null,null,null,null,null,0,null,null,null,null,null,0]
[null,null,null,null,null,0,null,null,null,null,null,0]
[null,null,null,null,null,0,null,null,null,null,null,0]
[null,null,null,null,null,0,null,null,null,null,null,0]
[null,null,null,null,null,0,null,null,null,null,null,0]
[null,null,null,null,null,0,null,null,null,null,null,0]
[null,null,null,null,null,0,null,null,null,null,null,0]
[null,null,null,null,null,0,null,null,null,null,null,0]
[null,null,null,null,null,0,null,null,null,null,null,0]
[null,null,null,null,null,0,null,null,null,null,null,0]
[null,null,null,null,null,0,null,null,null,null,null,0]
[null,null,null,null,null,0,null,null,null,null,null,0]
[null,null,null,null,null,0,null,null,null,null,null,0]
[null,null,null,null,null,0,null,null,null,null,null,0]
[null,null,null,null,null,0,null,null,null,null,null,0]
[null,null,null,null,null,0,null,null,null,null,null,0]
[null,null,null,null,null,0,null,null,null,null,null,0]
[null,null,null,null,null,0,null,null,null,null,null,0]
[null,null,null,null,null,0,null,null,null,null,null,0]
[null,null,null,null,null,0,null,null,null,null,null,0]
[null,null,null,null,null,0,null,null,null,null,null,0]
[null,null,null,null,null,0,null,null,null,null,null,0]
[null,null,null,null,null,0,null,null,null,null,null,0]
[null,null,null,null,null,0,null,null,null,null,null,0]
[null,null,null,null,null,0,null,null,null,null,null,0]
[null,null,null,null,null,0,null,null,null,null,null,0]
[null,null,null,null,null,0,null,null,null,null,null,0]
[null,null,null,null,null,0,null,null,null,null,null,0]
[null,null,null,null,null,0,null,null,null,null,null,0]
[null,null,null,null,null,0,null,null,null,null,null,0]
[null,null,null,null,null,0,null,null,null,null,null,0]
[null,null,null,null,null,0,null,null,null,null,null,0]
[null,null,null,null,null,0,null,null,null,null,null,0]
[null,null,null,null,null,0,null,null,null,null,null,{"$f":"(IF(D393=0,0,D393)+IF(E393=0,0,E393))*(IF(D393>0,$K$5,1))+F392","v":0}]
[null,null,null,null,null,0,null,null,null,null,null,0]
[null,null,null,null,null,0,null,null,null,null,null,0]
[null,null,null,null,null,{"$f":"IF(D393+E393=0,0,L390)","v":0},null,null,null,null,null,0]
[null,null,null,null,null,0,null,null,null,null,null,0]
[null,null,null,null,null,0,null,null,null,null,null,0]
[null,null,null,null,null,0,null,null,null,null,null,0]
[null,null,null,null,null,0,null,null,null,null,null,0]
[null,null,null,null,null,0,null,null,null,null,null,0]
[null,null,null,null,null,0,null,null,null,null,null,0]
[null,null,null,null,null,0,null,null,null,null,null,0]
[null,null,null,null,null,0,null,null,null,null,null,0]
[null,null,null,null,null,0,null,null,null,null,null,0]
[null,null,null,null,null,0,null,null,null,null,null,0]
[null,null,null,null,null,0,null,null,null,null,null,0]
[null,null,null,null,null,0,null,null,null,null,null,0]
[null,null,null,null,null,0,null,null,null,null,null,0]
[null,null,null,null,null,0,null,null,null,null,null,0]
[null,null,null,null,null,0,null,null,null,null,null,0]
[null,null,null,null,null,0,null,null,null,null,null,0]
[null,null,null,null,null,0,null,null,null,null,null,0]
[null,null,null,null,null,0,null,null,null,null,null,0]
[null,null,null,null,null,0,null,null,null,null,null,0]
[null,null,null,null,null,0,null,null,null,null,null,0]
[null,null,null,null,null,0,null,null,null,null,null,0]
[null,null,null,null,null,0,null,null,null,null,null,0]
[null,null,null,null,null,0,null,null,null,null,null,0]
[null,null,null,null,null,0,null,null,null,null,null,0]
[null,null,null,null,null,0,null,null,null,null,null,0]
[null,null,null,null,null,0,null,null,null,null,null,0]
[null,null,null,null,null,0,null,null,null,null,null,0]
[null,null,null,null,null,0,null,null,null,null,null,0]
[null,null,null,null,null,0,null,null,null,null,null,0]
[null,null,null,null,null,0,null,null,null,null,null,0]
[null,null,null,null,null,0,null,null,null,null,null,0]
[null,null,null,null,null,0,null,null,null,null,null,0]
[null,null,null,null,null,0,null,null,null,null,null,0]
[null,null,null,null,null,0,null,null,null,null,null,0]
[null,null,null,null,null,0,null,null,null,null,null,0]
[null,null,null,null,null,0,null,null,null,null,null,0]
[null,null,null,null,null,0,null,null,null,null,null,0]
[null,null,null,null,null,0,null,null,null,null,null,0]
[null,null,null,null,null,0,null,null,null,null,null,0]
[null,null,null,null,null,0,null,null,null,null,null,0]
[null,null,null,null,null,0,null,null,null,null,null,0]
[null,null,null,null,null,0,null,null,null,null,null,0]
[null,null,null,null,null,0,null,null,null,null,null,0]
[null,null,null,null,null,0,null,null,null,null,null,0]
[null,null,null,null,null,0,null,null,null,null,null,0]
[null,null,null,null,null,0,null,null,null,null,null,0]
[null,null,null,null,null,0,null,null,null,null,null,0]
[null,null,null,null,null,0,null,null,null,null,null,0]
[null,null,null,null,null,0,null,null,null,null,null,0]
[null,null,null,null,null,0,null,null,null,null,null,0]
[null,null,null,null,null,0,null,null,null,null,null,0]
[null,null,null,null,null,0,null,null,null,null,null,0]
[null,null,null,null,null,0,null,null,null,null,null,0]
[null,null,null,null,null,0,null,null,null,null,null,0]
[null,null,null,null,null,0,null,null,null,null,null,0]
[null,null,null,null,null,0,null,null,null,null,null,0]
[null,null,null,null,null,0,null,null,null,null,null,0]
[null,null,null,null,null,0,null,null,null,null,null,0]
[null,null,null,null,null,0,null,null,null,null,null,0]
[null,null,null,null,null,0,null,null,null,null,null,0]
[null,null,null,null,null,0,null,null,null,null,null,{"$f":"(IF(D457=0,0,D457)+IF(E457=0,0,E457))*(IF(D457>0,$K$5,1))+F456","v":0}]
[null,null,null,null,null,0,null,null,null,null,null,0]
[null,null,null,null,null,0,null,null,null,null,null,0]
[null,null,null,null,null,{"$f":"IF(D457+E457=0,0,L454)","v":0},null,null,null,null,null,0]
[null,null,null,null,null,0,null,null,null,null,null,0]
[null,null,null,null,null,0,null,null,null,null,null,0]
[null,null,null,null,null,0,null,null,null,null,null,0]
[null,null,null,null,null,0,null,null,null,null,null,0]
[null,null,null,null,null,0,null,null,null,null,null,0]
[null,null,null,null,null,0,null,null,null,null,null,0]
[null,null,null,null,null,0,null,null,null,null,null,0]
[null,null,null,null,null,0,null,null,null,null,null,0]
[null,null,null,null,null,0,null,null,null,null,null,0]
[null,null,null,null,null,0,null,null,null,null,null,0]
[null,null,null,null,null,0,null,null,null,null,null,0]
[null,null,null,null,null,0,null,null,null,null,null,0]
[null,null,null,null,null,0,null,null,null,null,null,0]
[null,null,null,null,null,0,null,null,null,null,null,0]
[null,null,null,null,null,0,null,null,null,null,null,0]
[null,null,null,null,null,0,null,null,null,null,null,0]
[null,null,null,null,null,0,null,null,null,null,null,0]
[null,null,null,null,null,0,null,null,null,null,null,0]
[null,null,null,null,null,0,null,null,null,null,null,0]
[null,null,null,null,null,0,null,null,null,null,null,0]
[null,null,null,null,null,0,null,null,null,null,null,0]
[null,null,null,null,null,0,null,null,null,null,null,0]
[null,null,null,null,null,0,null,null,null,null,null,0]
[null,null,null,null,null,0,null,null,null,null,null,0]
[null,null,null,null,null,0,null,null,null,null,null,0]
[null,null,null,null,null,0,null,null,null,null,null,0]
[null,null,null,null,null,0,null,null,null,null,null,0]
[null,null,null,null,null,0,null,null,null,null,null,0]
[null,null,null,null,null,0,null,null,null,null,null,0]
[null,null,null,null,null,0,null,null,null,null,null,0]
[null,null,null,null,null,0,null,null,null,null,null,0]
[null,null,null,null,null,0,null,null,null,null,null,0]
[null,null,null,null,null,0,null,null,null,null,null,0]
[null,null,null,null,null,0,null,null,null,null,null,0]
[null,null,null,null,null,0,null,null,null,null,null,0]
[null,null,null,null,null,0,null,null,null,null,null,0]
[null,null,null,null,null,0,null,null,null,null,null,0]
[null,null,null,null,null,0,null,null,null,null,null,0]
[null,null,null,null,null,0,null,null,null,null,null,0]
[null,null,null,null,null,0,null,null,null,null,null,0]
[null,null,null,null,null,0,null,null,null,null,null,0]
[null,null,null,null,null,0,null,null,null,null,null,0]
[null,null,null,null,null,0,null,null,null,null,null,0]
[null,null,null,null,null,0,null,null,null,null,null,0]
[null,null,null,null,null,0,null,null,null,null,null,0]
[null,null,null,null,null,0,null,null,null,null,null,0]
[null,null,null,null,null,0,null,null,null,null,null,0]
[null,null,null,null,null,0,null,null,null,null,null,0]
[null,null,null,null,null,0,null,null,null,null,null,0]
[null,null,null,null,null,0,null,null,null,null,null,0]
[null,null,null,null,null,0,null,null,null,null,null,0]
[null,null,null,null,null,0,null,null,null,null,null,0]
[null,null,null,null,null,0,null,null,null,null,null,0]
[null,null,null,null,null,0,null,null,null,null,null,0]
[null,null,null,null,null,0,null,null,null,null,null,0]
[null,null,null,null,null,0,null,null,null,null,null,0]
[null,null,null,null,null,0,null,null,null,null,null,0]
[null,null,null,null,null,0,null,null,null,null,null,0]
[null,null,null,null,null,0,null,null,null,null,null,0]
[null,null,null,null,null,0,null,null,null,null,null,0]
[null,null,null,null,null,0,null,null,null,null,null,{"$f":"(IF(D521=0,0,D521)+IF(E521=0,0,E521))*(IF(D521>0,$K$5,1))+F520","v":0}]
[null,null,null,null,null,0,null,null,null,null,null,0]
[null,null,null,null,null,0,null,null,null,null,null,0]
[null,null,null,null,null,{"$f":"IF(D521+E521=0,0,L518)","v":0},null,null,null,null,null,0]
[null,null,null,null,null,0,null,null,null,null,null,0]
[null,null,null,null,null,0,null,null,null,null,null,0]
[null,null,null,null,null,0,null,null,null,null,null,0]
[null,null,null,null,null,0,null,null,null,null,null,0]
[null,null,null,null,null,0,null,null,null,null,null,0]
[null,null,null,null,null,0,null,null,null,null,null,0]
[null,null,null,null,null,0,null,null,null,null,null,0]
[null,null,null,null,null,0,null,null,null,null,null,0]
[null,null,null,null,null,0,null,null,null,null,null,0]
[null,null,null,null,null,0,null,null,null,null,null,0]
[null,null,null,null,null,0,null,null,null,null,null,0]
[null,null,null,null,null,0,null,null,null,null,null,0]
[null,null,null,null,null,0,null,null,null,null,null,0]
[null,null,null,null,null,0,null,null,null,null,null,0]
[null,null,null,null,null,0,null,null,null,null,null,0]
[null,null,null,null,null,0,null,null,null,null,null,0]
[null,null,null,null,null,0,null,null,null,null,null,0]
[null,null,null,null,null,0,null,null,null,null,null,0]
[null,null,null,null,null,0,null,null,null,null,null,0]
[null,null,null,null,null,0,null,null,null,null,null,0]
[null,null,null,null,null,0,null,null,null,null,null,0]
[null,null,null,null,null,0,null,null,null,null,null,0]
[null,null,null,null,null,0,null,null,null,null,null,0]
[null,null,null,null,null,0,null,null,null,null,null,0]
[null,null,null,null,null,0,null,null,null,null,null,0]
[null,null,null,null,null,0,null,null,null,null,null,0]
[null,null,null,null,null,0,null,null,null,null,null,0]
[null,null,null,null,null,0,null,null,null,null,null,0]
[null,null,null,null,null,0,null,null,null,null,null,0]
[null,null,null,null,null,0,null,null,null,null,null,0]
[null,null,null,null,null,0,null,null,null,null,null,0]
[null,null,null,null,null,0,null,null,null,null,null,0]
[null,null,null,null,null,0,null,null,null,null,null,0]
[null,null,null,null,null,0,null,null,null,null,null,0]
[null,null,null,null,null,0,null,null,null,null,null,0]
[null,null,null,null,null,0,null,null,null,null,null,0]
[null,null,null,null,null,0,null,null,null,null,null,0]
[null,null,null,null,null,0,null,null,null,null,null,0]
[null,null,null,null,null,0,null,null,null,null,null,0]
[null,null,null,null,null,0,null,null,null,null,null,0]
[null,null,null,null,null,0,null,null,null,null,null,0]
[null,null,null,null,null,0,null,null,null,null,null,0]
[null,null,null,null,null,0,null,null,null,null,null,0]
[null,null,null,null,null,0,null,null,null,null,null,0]
[null,null,null,null,null,0,null,null,null,null,null,0]
[null,null,null,null,null,0,null,null,null,null,null,0]
[null,null,null,null,null,0,null,null,null,null,null,0]
[null,null,null,null,null,0,null,null,null,null,null,0]
[null,null,null,null,null,0,null,null,null,null,null,0]
[null,null,null,null,null,0,null,null,null,null,null,0]
[null,null,null,null,null,0,null,null,null,null,null,0]
[null,null,null,null,null,0,null,null,null,null,null,0]
[null,null,null,null,null,0,null,null,null,null,null,0]
[null,null,null,null,null,0,null,null,null,null,null,0]
[null,null,null,null,null,0,null,null,null,null,null,0]
[null,null,null,null,null,0,null,null,null,null,null,0]
[null,null,null,null,null,0,null,null,null,null,null,0]
[null,null,null,null,null,0,null,null,null,null,null,0]
[null,null,null,null,null,0,null,null,null,null,null,0]
[null,null,null,null,null,0,null,null,null,null,null,0]
[null,null,null,null,null,0,null,null,null,null,null,{"$f":"(IF(D585=0,0,D585)+IF(E585=0,0,E585))*(IF(D585>0,$K$5,1))+F584","v":0}]
[null,null,null,null,null,0,null,null,null,null,null,0]
[null,null,null,null,null,0,null,null,null,null,null,0]
[null,null,null,null,null,{"$f":"IF(D585+E585=0,0,L582)","v":0},null,null,null,null,null,0]
[null,null,null,null,null,0,null,null,null,null,null,0]
[null,null,null,null,null,0,null,null,null,null,null,0]
[null,null,null,null,null,0,null,null,null,null,null,0]
[null,null,null,null,null,0,null,null,null,null,null,0]
[null,null,null,null,null,0,null,null,null,null,null,0]
[null,null,null,null,null,0,null,null,null,null,null,0]
[null,null,null,null,null,0,null,null,null,null,null,0]
[null,null,null,null,null,0,null,null,null,null,null,0]
[null,null,null,null,null,0,null,null,null,null,null,0]
[null,null,null,null,null,0,null,null,null,null,null,0]
[null,null,null,null,null,0,null,null,null,null,null,0]
[null,null,null,null,null,0,null,null,null,null,null,0]
[null,null,null,null,null,0,null,null,null,null,null,0]
[null,null,null,null,null,0,null,null,null,null,null,0]
[null,null,null,null,null,0,null,null,null,null,null,0]
[null,null,null,null,null,0]
[null,null,null,null,null,0]
[null,null,null,null,null,0]

{"sheet":"Client-Matter Name 4","index":4,"n_rows":603,"n_cols":12,"rows_kept":603,"cut":false,"hidden":false,"merged":[[3,0,3,1],[4,0,4,1],[3,9,3,12]]}
[null,null,"Trust Account of "]
["Fiscal Year 20xx",null,"Client-Matter Ledger"]
[]
["Client Name and/or Number",null,null,"Date Opened",null,null,null,null,null,"MAKE NO CHANGES IN THESE COLUMNS"]
["Matter Name and/or Number",null,null,null,null,null,null,null,null,null,-1,{"$f":"(IF(D8=0,0,D8)+IF(E8=0,0,E8))*(IF(D8>0,$K5,1))","v":0}]
[null,null,null,null,null,"Caution:  Calculated Column - Make No Changes Here",null,null,null,null,null,{"$f":"(IF(D9=0,0,D9)+IF(E9=0,0,E9))*(IF(D9>0,$K$5,1))+F8","v":0}]
["Date","Item # or Type Transaction","Description","Disbursements","Receipts","Balance",null,null,null,null,null,0]
[null,null,null,null,null,{"$f":"(IF(D8=0,0,D8)+IF(E8=0,0,E8))*(IF(D8>0,$K$5,1))","v":0},null,null,null,null,null,0]
[null,null,null,null,null,{"$f":"IF(D9+E9=0,0,L6)","v":0},null,null,null,null,null,0]
[null,null,null,null,null,0,null,null,null,null,null,0]
[null,null,null,null,null,0,null,null,null,null,null,0]
[null,null,null,null,null,0,null,null,null,null,null,0]
[null,null,null,null,null,0,null,null,null,null,null,0]
[null,null,null,null,null,0,null,null,null,null,null,0]
[null,null,null,null,null,0,null,null,null,null,null,0]
[null,null,null,null,null,0,null,null,null,null,null,0]
[null,null,null,null,null,0,null,null,null,null,null,0]
[null,null,null,null,null,0,null,null,null,null,null,0]
[null,null,null,null,null,0,null,null,null,null,null,0]
[null,null,null,null,null,0,null,null,null,null,null,0]
[null,null,null,null,null,0,null,null,null,null,null,0]
[null,null,null,null,null,0,null,null,null,null,null,0]
[null,null,null,null,null,0,null,null,null,null,null,0]
[null,null,null,null,null,0,null,null,null,null,null,0]
[null,null,null,null,null,0,null,null,null,null,null,0]
[null,null,null,null,null,0,null,null,null,null,null,0]
[null,null,null,null,null,0,null,null,null,null,null,0]
[null,null,null,null,null,0,null,null,null,null,null,0]
[null,null,null,null,null,0,null,null,null,null,null,0]
[null,null,null,null,null,0,null,null,null,null,null,0]
[null,null,null,null,null,0,null,null,null,null,null,0]
[null,null,null,null,null,0,null,null,null,null,null,0]
[null,null,null,null,null,0,null,null,null,null,null,0]
[null,null,null,null,null,0,null,null,null,null,null,0]
[null,null,null,null,null,0,null,null,null,null,null,0]
[null,null,null,null,null,0,null,null,null,null,null,0]
[null,null,null,null,null,0,null,null,null,null,null,0]
[null,null,null,null,null,0,null,null,null,null,null,0]
[null,null,null,null,null,0,null,null,null,null,null,0]
[null,null,null,null,null,0,null,null,null,null,null,0]
[null,null,null,null,null,0,null,null,null,null,null,0]
[null,null,null,null,null,0,null,null,null,null,null,0]
[null,null,null,null,null,0,null,null,null,null,null,0]
[null,null,null,null,null,0,null,null,null,null,null,0]
[null,null,null,null,null,0,null,null,null,null,null,0]
[null,null,null,null,null,0,null,null,null,null,null,0]
[null,null,null,null,null,0,null,null,null,null,null,0]
[null,null,null,null,null,0,null,null,null,null,null,0]
[null,null,null,null,null,0,null,null,null,null,null,0]
[null,null,null,null,null,0,null,null,null,null,null,0]
[null,null,null,null,null,0,null,null,null,null,null,0]
[null,null,null,null,null,0,null,null,null,null,null,0]
[null,null,null,null,null,0,null,null,null,null,null,0]
[null,null,null,null,null,0,null,null,null,null,null,0]
[null,null,null,null,null,0,null,null,null,null,null,0]
[null,null,null,null,null,0,null,null,null,null,null,0]
[null,null,null,null,null,0,null,null,null,null,null,0]
[null,null,null,null,null,0,null,null,null,null,null,0]
[null,null,null,null,null,0,null,null,null,null,null,0]
[null,null,null,null,null,0,null,null,null,null,null,0]
[null,null,null,null,null,0,null,null,null,null,null,0]
[null,null,null,null,null,0,null,null,null,null,null,0]
[null,null,null,null,null,0,null,null,null,null,null,0]
[null,null,null,null,null,0,null,null,null,null,null,0]
[null,null,null,null,null,0,null,null,null,null,null,0]
[null,null,null,null,null,0,null,null,null,null,null,0]
[null,null,null,null,null,0,null,null,null,null,null,0]
[null,null,null,null,null,0,null,null,null,null,null,0]
[null,null,null,null,null,0,null,null,null,null,null,0]
[null,null,null,null,null,0,null,null,null,null,null,{"$f":"(IF(D73=0,0,D73)+IF(E73=0,0,E73))*(IF(D73>0,$K$5,1))+F72","v":0}]
[null,null,null,null,null,0,null,null,null,null,null,0]
[null,null,null,null,null,0,null,null,null,null,null,0]
[null,null,null,null,null,{"$f":"IF(D73+E73=0,0,L70)","v":0},null,null,null,null,null,0]
[null,null,null,null,null,0,null,null,null,null,null,0]
[null,null,null,null,null,0,null,null,null,null,null,0]
[null,null,null,null,null,0,null,null,null,null,null,0]
[null,null,null,null,null,0,null,null,null,null,null,0]
[null,null,null,null,null,0,null,null,null,null,null,0]
[null,null,null,null,null,0,null,null,null,null,null,0]
[null,null,null,null,null,0,null,null,null,null,null,0]
[null,null,null,null,null,0,null,null,null,null,null,0]
[null,null,null,null,null,0,null,null,null,null,null,0]
[null,null,null,null,null,0,null,null,null,null,null,0]
[null,null,null,null,null,0,null,null,null,null,null,0]
[null,null,null,null,null,0,null,null,null,null,null,0]
[null,null,null,null,null,0,null,null,null,null,null,0]
[null,null,null,null,null,0,null,null,null,null,null,0]
[null,null,null,null,null,0,null,null,null,null,null,0]
[null,null,null,null,null,0,null,null,null,null,null,0]
[null,null,null,null,null,0,null,null,null,null,null,0]
[null,null,null,null,null,0,null,null,null,null,null,0]
[null,null,null,null,null,0,null,null,null,null,null,0]
[null,null,null,null,null,0,null,null,null,null,null,0]
[null,null,null,null,null,0,null,null,null,null,null,0]
[null,null,null,null,null,0,null,null,null,null,null,0]
[null,null,null,null,null,0,null,null,null,null,null,0]
[null,null,null,null,null,0,null,null,null,null,null,0]
[null,null,null,null,null,0,null,null,null,null,null,0]
[null,null,null,null,null,0,null,null,null,null,null,0]
[null,null,null,null,null,0,null,null,null,null,null,0]
[null,null,null,null,null,0,null,null,null,null,null,0]
[null,null,null,null,null,0,null,null,null,null,null,0]
[null,null,null,null,null,0,null,null,null,null,null,0]
[null,null,null,null,null,0,null,null,null,null,null,0]
[null,null,null,null,null,0,null,null,null,null,null,0]
[null,null,null,null,null,0,null,null,null,null,null,0]
[null,null,null,null,null,0,null,null,null,null,null,0]
[null,null,null,null,null,0,null,null,null,null,null,0]
[null,null,null,null,null,0,null,null,null,null,null,0]
[null,null,null,null,null,0,null,null,null,null,null,0]
[null,null,null,null,null,0,null,null,null,null,null,0]
[null,null,null,null,null,0,null,null,null,null,null,0]
[null,null,null,null,null,0,null,null,null,null,null,0]
[null,null,null,null,null,0,null,null,null,null,null,0]
[null,null,null,null,null,0,null,null,null,null,null,0]
[null,null,null,null,null,0,null,null,null,null,null,0]
[null,null,null,null,null,0,null,null,null,null,null,0]
[null,null,null,null,null,0,null,null,null,null,null,0]
[null,null,null,null,null,0,null,null,null,null,null,0]
[null,null,null,null,null,0,null,null,null,null,null,0]
[null,null,null,null,null,0,null,null,null,null,null,0]
[null,null,null,null,null,0,null,null,null,null,null,0]
[null,null,null,null,null,0,null,null,null,null,null,0]
[null,null,null,null,null,0,null,null,null,null,null,0]
[null,null,null,null,null,0,null,null,null,null,null,0]
[null,null,null,null,null,0,null,null,null,null,null,0]
[null,null,null,null,null,0,null,null,null,null,null,0]
[null,null,null,null,null,0,null,null,null,null,null,0]
[null,null,null,null,null,0,null,null,null,null,null,0]
[null,null,null,null,null,0,null,null,null,null,null,0]
[null,null,null,null,null,0,null,null,null,null,null,0]
[null,null,null,null,null,0,null,null,null,null,null,0]
[null,null,null,null,null,0,null,null,null,null,null,0]
[null,null,null,null,null,0,null,null,null,null,null,{"$f":"(IF(D137=0,0,D137)+IF(E137=0,0,E137))*(IF(D137>0,$K$5,1))+F136","v":0}]
[null,null,null,null,null,0,null,null,null,null,null,0]
[null,null,null,null,null,0,null,null,null,null,null,0]
[null,null,null,null,null,{"$f":"IF(D137+E137=0,0,L134)","v":0},null,null,null,null,null,0]
[null,null,null,null,null,0,null,null,null,null,null,0]
[null,null,null,null,null,0,null,null,null,null,null,0]
[null,null,null,null,null,0,null,null,null,null,null,0]
[null,null,null,null,null,0,null,null,null,null,null,0]
[null,null,null,null,null,0,null,null,null,null,null,0]
[null,null,null,null,null,0,null,null,null,null,null,0]
[null,null,null,null,null,0,null,null,null,null,null,0]
[null,null,null,null,null,0,null,null,null,null,null,0]
[null,null,null,null,null,0,null,null,null,null,null,0]
[null,null,null,null,null,0,null,null,null,null,null,0]
[null,null,null,null,null,0,null,null,null,null,null,0]
[null,null,null,null,null,0,null,null,null,null,null,0]
[null,null,null,null,null,0,null,null,null,null,null,0]
[null,null,null,null,null,0,null,null,null,null,null,0]
[null,null,null,null,null,0,null,null,null,null,null,0]
[null,null,null,null,null,0,null,null,null,null,null,0]
[null,null,null,null,null,0,null,null,null,null,null,0]
[null,null,null,null,null,0,null,null,null,null,null,0]
[null,null,null,null,null,0,null,null,null,null,null,0]
[null,null,null,null,null,0,null,null,null,null,null,0]
[null,null,null,null,null,0,null,null,null,null,null,0]
[null,null,null,null,null,0,null,null,null,null,null,0]
[null,null,null,null,null,0,null,null,null,null,null,0]
[null,null,null,null,null,0,null,null,null,null,null,0]
[null,null,null,null,null,0,null,null,null,null,null,0]
[null,null,null,null,null,0,null,null,null,null,null,0]
[null,null,null,null,null,0,null,null,null,null,null,0]
[null,null,null,null,null,0,null,null,null,null,null,0]
[null,null,null,null,null,0,null,null,null,null,null,0]
[null,null,null,null,null,0,null,null,null,null,null,0]
[null,null,null,null,null,0,null,null,null,null,null,0]
[null,null,null,null,null,0,null,null,null,null,null,0]
[null,null,null,null,null,0,null,null,null,null,null,0]
[null,null,null,null,null,0,null,null,null,null,null,0]
[null,null,null,null,null,0,null,null,null,null,null,0]
[null,null,null,null,null,0,null,null,null,null,null,0]
[null,null,null,null,null,0,null,null,null,null,null,0]
[null,null,null,null,null,0,null,null,null,null,null,0]
[null,null,null,null,null,0,null,null,null,null,null,0]
[null,null,null,null,null,0,null,null,null,null,null,0]
[null,null,null,null,null,0,null,null,null,null,null,0]
[null,null,null,null,null,0,null,null,null,null,null,0]
[null,null,null,null,null,0,null,null,null,null,null,0]
[null,null,null,null,null,0,null,null,null,null,null,0]
[null,null,null,null,null,0,null,null,null,null,null,0]
[null,null,null,null,null,0,null,null,null,null,null,0]
[null,null,null,null,null,0,null,null,null,null,null,0]
[null,null,null,null,null,0,null,null,null,null,null,0]
[null,null,null,null,null,0,null,null,null,null,null,0]
[null,null,null,null,null,0,null,null,null,null,null,0]
[null,null,null,null,null,0,null,null,null,null,null,0]
[null,null,null,null,null,0,null,null,null,null,null,0]
[null,null,null,null,null,0,null,null,null,null,null,0]
[null,null,null,null,null,0,null,null,null,null,null,0]
[null,null,null,null,null,0,null,null,null,null,null,0]
[null,null,null,null,null,0,null,null,null,null,null,0]
[null,null,null,null,null,0,null,null,null,null,null,0]
[null,null,null,null,null,0,null,null,null,null,null,0]
[null,null,null,null,null,0,null,null,null,null,null,0]
[null,null,null,null,null,0,null,null,null,null,null,0]
[null,null,null,null,null,0,null,null,null,null,null,{"$f":"(IF(D201=0,0,D201)+IF(E201=0,0,E201))*(IF(D201>0,$K$5,1))+F200","v":0}]
[null,null,null,null,null,0,null,null,null,null,null,0]
[null,null,null,null,null,0,null,null,null,null,null,0]
[null,null,null,null,null,{"$f":"IF(D201+E201=0,0,L198)","v":0},null,null,null,null,null,0]
[null,null,null,null,null,0,null,null,null,null,null,0]
[null,null,null,null,null,0,null,null,null,null,null,0]
[null,null,null,null,null,0,null,null,null,null,null,0]
[null,null,null,null,null,0,null,null,null,null,null,0]
[null,null,null,null,null,0,null,null,null,null,null,0]
[null,null,null,null,null,0,null,null,null,null,null,0]
[null,null,null,null,null,0,null,null,null,null,null,0]
[null,null,null,null,null,0,null,null,null,null,null,0]
[null,null,null,null,null,0,null,null,null,null,null,0]
[null,null,null,null,null,0,null,null,null,null,null,0]
[null,null,null,null,null,0,null,null,null,null,null,0]
[null,null,null,null,null,0,null,null,null,null,null,0]
[null,null,null,null,null,0,null,null,null,null,null,0]
[null,null,null,null,null,0,null,null,null,null,null,0]
[null,null,null,null,null,0,null,null,null,null,null,0]
[null,null,null,null,null,0,null,null,null,null,null,0]
[null,null,null,null,null,0,null,null,null,null,null,0]
[null,null,null,null,null,0,null,null,null,null,null,0]
[null,null,null,null,null,0,null,null,null,null,null,0]
[null,null,null,null,null,0,null,null,null,null,null,0]
[null,null,null,null,null,0,null,null,null,null,null,0]
[null,null,null,null,null,0,null,null,null,null,null,0]
[null,null,null,null,null,0,null,null,null,null,null,0]
[null,null,null,null,null,0,null,null,null,null,null,0]
[null,null,null,null,null,0,null,null,null,null,null,0]
[null,null,null,null,null,0,null,null,null,null,null,0]
[null,null,null,null,null,0,null,null,null,null,null,0]
[null,null,null,null,null,0,null,null,null,null,null,0]
[null,null,null,null,null,0,null,null,null,null,null,0]
[null,null,null,null,null,0,null,null,null,null,null,0]
[null,null,null,null,null,0,null,null,null,null,null,0]
[null,null,null,null,null,0,null,null,null,null,null,0]
[null,null,null,null,null,0,null,null,null,null,null,0]
[null,null,null,null,null,0,null,null,null,null,null,0]
[null,null,null,null,null,0,null,null,null,null,null,0]
[null,null,null,null,null,0,null,null,null,null,null,0]
[null,null,null,null,null,0,null,null,null,null,null,0]
[null,null,null,null,null,0,null,null,null,null,null,0]
[null,null,null,null,null,0,null,null,null,null,null,0]
[null,null,null,null,null,0,null,null,null,null,null,0]
[null,null,null,null,null,0,null,null,null,null,null,0]
[null,null,null,null,null,0,null,null,null,null,null,0]
[null,null,null,null,null,0,null,null,null,null,null,0]
[null,null,null,null,null,0,null,null,null,null,null,0]
[null,null,null,null,null,0,null,null,null,null,null,0]
[null,null,null,null,null,0,null,null,null,null,null,0]
[null,null,null,null,null,0,null,null,null,null,null,0]
[null,null,null,null,null,0,null,null,null,null,null,0]
[null,null,null,null,null,0,null,null,null,null,null,0]
[null,null,null,null,null,0,null,null,null,null,null,0]
[null,null,null,null,null,0,null,null,null,null,null,0]
[null,null,null,null,null,0,null,null,null,null,null,0]
[null,null,null,null,null,0,null,null,null,null,null,0]
[null,null,null,null,null,0,null,null,null,null,null,0]
[null,null,null,null,null,0,null,null,null,null,null,0]
[null,null,null,null,null,0,null,null,null,null,null,0]
[null,null,null,null,null,0,null,null,null,null,null,0]
[null,null,null,null,null,0,null,null,null,null,null,0]
[null,null,null,null,null,0,null,null,null,null,null,0]
[null,null,null,null,null,0,null,null,null,null,null,0]
[null,null,null,null,null,0,null,null,null,null,null,{"$f":"(IF(D265=0,0,D265)+IF(E265=0,0,E265))*(IF(D265>0,$K$5,1))+F264","v":0}]
[null,null,null,null,null,0,null,null,null,null,null,0]
[null,null,null,null,null,0,null,null,null,null,null,0]
[null,null,null,null,null,{"$f":"IF(D265+E265=0,0,L262)","v":0},null,null,null,null,null,0]
[null,null,null,null,null,0,null,null,null,null,null,0]
[null,null,null,null,null,0,null,null,null,null,null,0]
[null,null,null,null,null,0,null,null,null,null,null,0]
[null,null,null,null,null,0,null,null,null,null,null,0]
[null,null,null,null,null,0,null,null,null,null,null,0]
[null,null,null,null,null,0,null,null,null,null,null,0]
[null,null,null,null,null,0,null,null,null,null,null,0]
[null,null,null,null,null,0,null,null,null,null,null,0]
[null,null,null,null,null,0,null,null,null,null,null,0]
[null,null,null,null,null,0,null,null,null,null,null,0]
[null,null,null,null,null,0,null,null,null,null,null,0]
[null,null,null,null,null,0,null,null,null,null,null,0]
[null,null,null,null,null,0,null,null,null,null,null,0]
[null,null,null,null,null,0,null,null,null,null,null,0]
[null,null,null,null,null,0,null,null,null,null,null,0]
[null,null,null,null,null,0,null,null,null,null,null,0]
[null,null,null,null,null,0,null,null,null,null,null,0]
[null,null,null,null,null,0,null,null,null,null,null,0]
[null,null,null,null,null,0,null,null,null,null,null,0]
[null,null,null,null,null,0,null,null,null,null,null,0]
[null,null,null,null,null,0,null,null,null,null,null,0]
[null,null,null,null,null,0,null,null,null,null,null,0]
[null,null,null,null,null,0,null,null,null,null,null,0]
[null,null,null,null,null,0,null,null,null,null,null,0]
[null,null,null,null,null,0,null,null,null,null,null,0]
[null,null,null,null,null,0,null,null,null,null,null,0]
[null,null,null,null,null,0,null,null,null,null,null,0]
[null,null,null,null,null,0,null,null,null,null,null,0]
[null,null,null,null,null,0,null,null,null,null,null,0]
[null,null,null,null,null,0,null,null,null,null,null,0]
[null,null,null,null,null,0,null,null,null,null,null,0]
[null,null,null,null,null,0,null,null,null,null,null,0]
[null,null,null,null,null,0,null,null,null,null,null,0]
[null,null,null,null,null,0,null,null,null,null,null,0]
[null,null,null,null,null,0,null,null,null,null,null,0]
[null,null,null,null,null,0,null,null,null,null,null,0]
[null,null,null,null,null,0,null,null,null,null,null,0]
[null,null,null,null,null,0,null,null,null,null,null,0]
[null,null,null,null,null,0,null,null,null,null,null,0]
[null,null,null,null,null,0,null,null,null,null,null,0]
[null,null,null,null,null,0,null,null,null,null,null,0]
[null,null,null,null,null,0,null,null,null,null,null,0]
[null,null,null,null,null,0,null,null,null,null,null,0]
[null,null,null,null,null,0,null,null,null,null,null,0]
[null,null,null,null,null,0,null,null,null,null,null,0]
[null,null,null,null,null,0,null,null,null,null,null,0]
[null,null,null,null,null,0,null,null,null,null,null,0]
[null,null,null,null,null,0,null,null,null,null,null,0]
[null,null,null,null,null,0,null,null,null,null,null,0]
[null,null,null,null,null,0,null,null,null,null,null,0]
[null,null,null,null,null,0,null,null,null,null,null,0]
[null,null,null,null,null,0,null,null,null,null,null,0]
[null,null,null,null,null,0,null,null,null,null,null,0]
[null,null,null,null,null,0,null,null,null,null,null,0]
[null,null,null,null,null,0,null,null,null,null,null,0]
[null,null,null,null,null,0,null,null,null,null,null,0]
[null,null,null,null,null,0,null,null,null,null,null,0]
[null,null,null,null,null,0,null,null,null,null,null,0]
[null,null,null,null,null,0,null,null,null,null,null,0]
[null,null,null,null,null,0,null,null,null,null,null,0]
[null,null,null,null,null,0,null,null,null,null,null,{"$f":"(IF(D329=0,0,D329)+IF(E329=0,0,E329))*(IF(D329>0,$K$5,1))+F328","v":0}]
[null,null,null,null,null,0,null,null,null,null,null,0]
[null,null,null,null,null,0,null,null,null,null,null,0]
[null,null,null,null,null,{"$f":"IF(D329+E329=0,0,L326)","v":0},null,null,null,null,null,0]
[null,null,null,null,null,0,null,null,null,null,null,0]
[null,null,null,null,null,0,null,null,null,null,null,0]
[null,null,null,null,null,0,null,null,null,null,null,0]
[null,null,null,null,null,0,null,null,null,null,null,0]
[null,null,null,null,null,0,null,null,null,null,null,0]
[null,null,null,null,null,0,null,null,null,null,null,0]
[null,null,null,null,null,0,null,null,null,null,null,0]
[null,null,null,null,null,0,null,null,null,null,null,0]
[null,null,null,null,null,0,null,null,null,null,null,0]
[null,null,null,null,null,0,null,null,null,null,null,0]
[null,null,null,null,null,0,null,null,null,null,null,0]
[null,null,null,null,null,0,null,null,null,null,null,0]
[null,null,null,null,null,0,null,null,null,null,null,0]
[null,null,null,null,null,0,null,null,null,null,null,0]
[null,null,null,null,null,0,null,null,null,null,null,0]
[null,null,null,null,null,0,null,null,null,null,null,0]
[null,null,null,null,null,0,null,null,null,null,null,0]
[null,null,null,null,null,0,null,null,null,null,null,0]
[null,null,null,null,null,0,null,null,null,null,null,0]
[null,null,null,null,null,0,null,null,null,null,null,0]
[null,null,null,null,null,0,null,null,null,null,null,0]
[null,null,null,null,null,0,null,null,null,null,null,0]
[null,null,null,null,null,0,null,null,null,null,null,0]
[null,null,null,null,null,0,null,null,null,null,null,0]
[null,null,null,null,null,0,null,null,null,null,null,0]
[null,null,null,null,null,0,null,null,null,null,null,0]
[null,null,null,null,null,0,null,null,null,null,null,0]
[null,null,null,null,null,0,null,null,null,null,null,0]
[null,null,null,null,null,0,null,null,null,null,null,0]
[null,null,null,null,null,0,null,null,null,null,null,0]
[null,null,null,null,null,0,null,null,null,null,null,0]
[null,null,null,null,null,0,null,null,null,null,null,0]
[null,null,null,null,null,0,null,null,null,null,null,0]
[null,null,null,null,null,0,null,null,null,null,null,0]
[null,null,null,null,null,0,null,null,null,null,null,0]
[null,null,null,null,null,0,null,null,null,null,null,0]
[null,null,null,null,null,0,null,null,null,null,null,0]
[null,null,null,null,null,0,null,null,null,null,null,0]
[null,null,null,null,null,0,null,null,null,null,null,0]
[null,null,null,null,null,0,null,null,null,null,null,0]
[null,null,null,null,null,0,null,null,null,null,null,0]
[null,null,null,null,null,0,null,null,null,null,null,0]
[null,null,null,null,null,0,null,null,null,null,null,0]
[null,null,null,null,null,0,null,null,null,null,null,0]
[null,null,null,null,null,0,null,null,null,null,null,0]
[null,null,null,null,null,0,null,null,null,null,null,0]
[null,null,null,null,null,0,null,null,null,null,null,0]
[null,null,null,null,null,0,null,null,null,null,null,0]
[null,null,null,null,null,0,null,null,null,null,null,0]
[null,null,null,null,null,0,null,null,null,null,null,0]
[null,null,null,null,null,0,null,null,null,null,null,0]
[null,null,null,null,null,0,null,null,null,null,null,0]
[null,null,null,null,null,0,null,null,null,null,null,0]
[null,null,null,null,null,0,null,null,null,null,null,0]
[null,null,null,null,null,0,null,null,null,null,null,0]
[null,null,null,null,null,0,null,null,null,null,null,0]
[null,null,null,null,null,0,null,null,null,null,null,0]
[null,null,null,null,null,0,null,null,null,null,null,0]
[null,null,null,null,null,0,null,null,null,null,null,0]
[null,null,null,null,null,0,null,null,null,null,null,0]
[null,null,null,null,null,0,null,null,null,null,null,{"$f":"(IF(D393=0,0,D393)+IF(E393=0,0,E393))*(IF(D393>0,$K$5,1))+F392","v":0}]
[null,null,null,null,null,0,null,null,null,null,null,0]
[null,null,null,null,null,0,null,null,null,null,null,0]
[null,null,null,null,null,{"$f":"IF(D393+E393=0,0,L390)","v":0},null,null,null,null,null,0]
[null,null,null,null,null,0,null,null,null,null,null,0]
[null,null,null,null,null,0,null,null,null,null,null,0]
[null,null,null,null,null,0,null,null,null,null,null,0]
[null,null,null,null,null,0,null,null,null,null,null,0]
[null,null,null,null,null,0,null,null,null,null,null,0]
[null,null,null,null,null,0,null,null,null,null,null,0]
[null,null,null,null,null,0,null,null,null,null,null,0]
[null,null,null,null,null,0,null,null,null,null,null,0]
[null,null,null,null,null,0,null,null,null,null,null,0]
[null,null,null,null,null,0,null,null,null,null,null,0]
[null,null,null,null,null,0,null,null,null,null,null,0]
[null,null,null,null,null,0,null,null,null,null,null,0]
[null,null,null,null,null,0,null,null,null,null,null,0]
[null,null,null,null,null,0,null,null,null,null,null,0]
[null,null,null,null,null,0,null,null,null,null,null,0]
[null,null,null,null,null,0,null,null,null,null,null,0]
[null,null,null,null,null,0,null,null,null,null,null,0]
[null,null,null,null,null,0,null,null,null,null,null,0]
[null,null,null,null,null,0,null,null,null,null,null,0]
[null,null,null,null,null,0,null,null,null,null,null,0]
[null,null,null,null,null,0,null,null,null,null,null,0]
[null,null,null,null,null,0,null,null,null,null,null,0]
[null,null,null,null,null,0,null,null,null,null,null,0]
[null,null,null,null,null,0,null,null,null,null,null,0]
[null,null,null,null,null,0,null,null,null,null,null,0]
[null,null,null,null,null,0,null,null,null,null,null,0]
[null,null,null,null,null,0,null,null,null,null,null,0]
[null,null,null,null,null,0,null,null,null,null,null,0]
[null,null,null,null,null,0,null,null,null,null,null,0]
[null,null,null,null,null,0,null,null,null,null,null,0]
[null,null,null,null,null,0,null,null,null,null,null,0]
[null,null,null,null,null,0,null,null,null,null,null,0]
[null,null,null,null,null,0,null,null,null,null,null,0]
[null,null,null,null,null,0,null,null,null,null,null,0]
[null,null,null,null,null,0,null,null,null,null,null,0]
[null,null,null,null,null,0,null,null,null,null,null,0]
[null,null,null,null,null,0,null,null,null,null,null,0]
[null,null,null,null,null,0,null,null,null,null,null,0]
[null,null,null,null,null,0,null,null,null,null,null,0]
[null,null,null,null,null,0,null,null,null,null,null,0]
[null,null,null,null,null,0,null,null,null,null,null,0]
[null,null,null,null,null,0,null,null,null,null,null,0]
[null,null,null,null,null,0,null,null,null,null,null,0]
[null,null,null,null,null,0,null,null,null,null,null,0]
[null,null,null,null,null,0,null,null,null,null,null,0]
[null,null,null,null,null,0,null,null,null,null,null,0]
[null,null,null,null,null,0,null,null,null,null,null,0]
[null,null,null,null,null,0,null,null,null,null,null,0]
[null,null,null,null,null,0,null,null,null,null,null,0]
[null,null,null,null,null,0,null,null,null,null,null,0]
[null,null,null,null,null,0,null,null,null,null,null,0]
[null,null,null,null,null,0,null,null,null,null,null,0]
[null,null,null,null,null,0,null,null,null,null,null,0]
[null,null,null,null,null,0,null,null,null,null,null,0]
[null,null,null,null,null,0,null,null,null,null,null,0]
[null,null,null,null,null,0,null,null,null,null,null,0]
[null,null,null,null,null,0,null,null,null,null,null,0]
[null,null,null,null,null,0,null,null,null,null,null,0]
[null,null,null,null,null,0,null,null,null,null,null,0]
[null,null,null,null,null,0,null,null,null,null,null,0]
[null,null,null,null,null,0,null,null,null,null,null,{"$f":"(IF(D457=0,0,D457)+IF(E457=0,0,E457))*(IF(D457>0,$K$5,1))+F456","v":0}]
[null,null,null,null,null,0,null,null,null,null,null,0]
[null,null,null,null,null,0,null,null,null,null,null,0]
[null,null,null,null,null,{"$f":"IF(D457+E457=0,0,L454)","v":0},null,null,null,null,null,0]
[null,null,null,null,null,0,null,null,null,null,null,0]
[null,null,null,null,null,0,null,null,null,null,null,0]
[null,null,null,null,null,0,null,null,null,null,null,0]
[null,null,null,null,null,0,null,null,null,null,null,0]
[null,null,null,null,null,0,null,null,null,null,null,0]
[null,null,null,null,null,0,null,null,null,null,null,0]
[null,null,null,null,null,0,null,null,null,null,null,0]
[null,null,null,null,null,0,null,null,null,null,null,0]
[null,null,null,null,null,0,null,null,null,null,null,0]
[null,null,null,null,null,0,null,null,null,null,null,0]
[null,null,null,null,null,0,null,null,null,null,null,0]
[null,null,null,null,null,0,null,null,null,null,null,0]
[null,null,null,null,null,0,null,null,null,null,null,0]
[null,null,null,null,null,0,null,null,null,null,null,0]
[null,null,null,null,null,0,null,null,null,null,null,0]
[null,null,null,null,null,0,null,null,null,null,null,0]
[null,null,null,null,null,0,null,null,null,null,null,0]
[null,null,null,null,null,0,null,null,null,null,null,0]
[null,null,null,null,null,0,null,null,null,null,null,0]
[null,null,null,null,null,0,null,null,null,null,null,0]
[null,null,null,null,null,0,null,null,null,null,null,0]
[null,null,null,null,null,0,null,null,null,null,null,0]
[null,null,null,null,null,0,null,null,null,null,null,0]
[null,null,null,null,null,0,null,null,null,null,null,0]
[null,null,null,null,null,0,null,null,null,null,null,0]
[null,null,null,null,null,0,null,null,null,null,null,0]
[null,null,null,null,null,0,null,null,null,null,null,0]
[null,null,null,null,null,0,null,null,null,null,null,0]
[null,null,null,null,null,0,null,null,null,null,null,0]
[null,null,null,null,null,0,null,null,null,null,null,0]
[null,null,null,null,null,0,null,null,null,null,null,0]
[null,null,null,null,null,0,null,null,null,null,null,0]
[null,null,null,null,null,0,null,null,null,null,null,0]
[null,null,null,null,null,0,null,null,null,null,null,0]
[null,null,null,null,null,0,null,null,null,null,null,0]
[null,null,null,null,null,0,null,null,null,null,null,0]
[null,null,null,null,null,0,null,null,null,null,null,0]
[null,null,null,null,null,0,null,null,null,null,null,0]
[null,null,null,null,null,0,null,null,null,null,null,0]
[null,null,null,null,null,0,null,null,null,null,null,0]
[null,null,null,null,null,0,null,null,null,null,null,0]
[null,null,null,null,null,0,null,null,null,null,null,0]
[null,null,null,null,null,0,null,null,null,null,null,0]
[null,null,null,null,null,0,null,null,null,null,null,0]
[null,null,null,null,null,0,null,null,null,null,null,0]
[null,null,null,null,null,0,null,null,null,null,null,0]
[null,null,null,null,null,0,null,null,null,null,null,0]
[null,null,null,null,null,0,null,null,null,null,null,0]
[null,null,null,null,null,0,null,null,null,null,null,0]
[null,null,null,null,null,0,null,null,null,null,null,0]
[null,null,null,null,null,0,null,null,null,null,null,0]
[null,null,null,null,null,0,null,null,null,null,null,0]
[null,null,null,null,null,0,null,null,null,null,null,0]
[null,null,null,null,null,0,null,null,null,null,null,0]
[null,null,null,null,null,0,null,null,null,null,null,0]
[null,null,null,null,null,0,null,null,null,null,null,0]
[null,null,null,null,null,0,null,null,null,null,null,0]
[null,null,null,null,null,0,null,null,null,null,null,0]
[null,null,null,null,null,0,null,null,null,null,null,0]
[null,null,null,null,null,0,null,null,null,null,null,0]
[null,null,null,null,null,0,null,null,null,null,null,{"$f":"(IF(D521=0,0,D521)+IF(E521=0,0,E521))*(IF(D521>0,$K$5,1))+F520","v":0}]
[null,null,null,null,null,0,null,null,null,null,null,0]
[null,null,null,null,null,0,null,null,null,null,null,0]
[null,null,null,null,null,{"$f":"IF(D521+E521=0,0,L518)","v":0},null,null,null,null,null,0]
[null,null,null,null,null,0,null,null,null,null,null,0]
[null,null,null,null,null,0,null,null,null,null,null,0]
[null,null,null,null,null,0,null,null,null,null,null,0]
[null,null,null,null,null,0,null,null,null,null,null,0]
[null,null,null,null,null,0,null,null,null,null,null,0]
[null,null,null,null,null,0,null,null,null,null,null,0]
[null,null,null,null,null,0,null,null,null,null,null,0]
[null,null,null,null,null,0,null,null,null,null,null,0]
[null,null,null,null,null,0,null,null,null,null,null,0]
[null,null,null,null,null,0,null,null,null,null,null,0]
[null,null,null,null,null,0,null,null,null,null,null,0]
[null,null,null,null,null,0,null,null,null,null,null,0]
[null,null,null,null,null,0,null,null,null,null,null,0]
[null,null,null,null,null,0,null,null,null,null,null,0]
[null,null,null,null,null,0,null,null,null,null,null,0]
[null,null,null,null,null,0,null,null,null,null,null,0]
[null,null,null,null,null,0,null,null,null,null,null,0]
[null,null,null,null,null,0,null,null,null,null,null,0]
[null,null,null,null,null,0,null,null,null,null,null,0]
[null,null,null,null,null,0,null,null,null,null,null,0]
[null,null,null,null,null,0,null,null,null,null,null,0]
[null,null,null,null,null,0,null,null,null,null,null,0]
[null,null,null,null,null,0,null,null,null,null,null,0]
[null,null,null,null,null,0,null,null,null,null,null,0]
[null,null,null,null,null,0,null,null,null,null,null,0]
[null,null,null,null,null,0,null,null,null,null,null,0]
[null,null,null,null,null,0,null,null,null,null,null,0]
[null,null,null,null,null,0,null,null,null,null,null,0]
[null,null,null,null,null,0,null,null,null,null,null,0]
[null,null,null,null,null,0,null,null,null,null,null,0]
[null,null,null,null,null,0,null,null,null,null,null,0]
[null,null,null,null,null,0,null,null,null,null,null,0]
[null,null,null,null,null,0,null,null,null,null,null,0]
[null,null,null,null,null,0,null,null,null,null,null,0]
[null,null,null,null,null,0,null,null,null,null,null,0]
[null,null,null,null,null,0,null,null,null,null,null,0]
[null,null,null,null,null,0,null,null,null,null,null,0]
[null,null,null,null,null,0,null,null,null,null,null,0]
[null,null,null,null,null,0,null,null,null,null,null,0]
[null,null,null,null,null,0,null,null,null,null,null,0]
[null,null,null,null,null,0,null,null,null,null,null,0]
[null,null,null,null,null,0,null,null,null,null,null,0]
[null,null,null,null,null,0,null,null,null,null,null,0]
[null,null,null,null,null,0,null,null,null,null,null,0]
[null,null,null,null,null,0,null,null,null,null,null,0]
[null,null,null,null,null,0,null,null,null,null,null,0]
[null,null,null,null,null,0,null,null,null,null,null,0]
[null,null,null,null,null,0,null,null,null,null,null,0]
[null,null,null,null,null,0,null,null,null,null,null,0]
[null,null,null,null,null,0,null,null,null,null,null,0]
[null,null,null,null,null,0,null,null,null,null,null,0]
[null,null,null,null,null,0,null,null,null,null,null,0]
[null,null,null,null,null,0,null,null,null,null,null,0]
[null,null,null,null,null,0,null,null,null,null,null,0]
[null,null,null,null,null,0,null,null,null,null,null,0]
[null,null,null,null,null,0,null,null,null,null,null,0]
[null,null,null,null,null,0,null,null,null,null,null,0]
[null,null,null,null,null,0,null,null,null,null,null,0]
[null,null,null,null,null,0,null,null,null,null,null,0]
[null,null,null,null,null,0,null,null,null,null,null,0]
[null,null,null,null,null,0,null,null,null,null,null,{"$f":"(IF(D585=0,0,D585)+IF(E585=0,0,E585))*(IF(D585>0,$K$5,1))+F584","v":0}]
[null,null,null,null,null,0,null,null,null,null,null,0]
[null,null,null,null,null,0,null,null,null,null,null,0]
[null,null,null,null,null,{"$f":"IF(D585+E585=0,0,L582)","v":0},null,null,null,null,null,0]
[null,null,null,null,null,0,null,null,null,null,null,0]
[null,null,null,null,null,0,null,null,null,null,null,0]
[null,null,null,null,null,0,null,null,null,null,null,0]
[null,null,null,null,null,0,null,null,null,null,null,0]
[null,null,null,null,null,0,null,null,null,null,null,0]
[null,null,null,null,null,0,null,null,null,null,null,0]
[null,null,null,null,null,0,null,null,null,null,null,0]
[null,null,null,null,null,0,null,null,null,null,null,0]
[null,null,null,null,null,0,null,null,null,null,null,0]
[null,null,null,null,null,0,null,null,null,null,null,0]
[null,null,null,null,null,0,null,null,null,null,null,0]
[null,null,null,null,null,0,null,null,null,null,null,0]
[null,null,null,null,null,0,null,null,null,null,null,0]
[null,null,null,null,null,0,null,null,null,null,null,0]
[null,null,null,null,null,0,null,null,null,null,null,0]
[null,null,null,null,null,0]
[null,null,null,null,null,0]
[null,null,null,null,null,0]

{"sheet":"Client-Matter Name 5","index":5,"n_rows":603,"n_cols":12,"rows_kept":603,"cut":false,"hidden":false,"merged":[[3,0,3,1],[4,0,4,1],[3,9,3,12]]}
[null,null,"Trust Account of "]
["Fiscal Year 20xx",null,"Client-Matter Ledger"]
[]
["Client Name and/or Number",null,null,"Date Opened",null,null,null,null,null,"MAKE NO CHANGES IN THESE COLUMNS"]
["Matter Name and/or Number",null,null,null,null,null,null,null,null,null,-1,{"$f":"(IF(D8=0,0,D8)+IF(E8=0,0,E8))*(IF(D8>0,$K5,1))","v":0}]
[null,null,null,null,null,"Caution:  Calculated Column - Make No Changes Here",null,null,null,null,null,{"$f":"(IF(D9=0,0,D9)+IF(E9=0,0,E9))*(IF(D9>0,$K$5,1))+F8","v":0}]
["Date","Item # or Type Transaction","Description","Disbursements","Receipts","Balance",null,null,null,null,null,0]
[null,null,null,null,null,{"$f":"(IF(D8=0,0,D8)+IF(E8=0,0,E8))*(IF(D8>0,$K$5,1))","v":0},null,null,null,null,null,0]
[null,null,null,null,null,{"$f":"IF(D9+E9=0,0,L6)","v":0},null,null,null,null,null,0]
[null,null,null,null,null,0,null,null,null,null,null,0]
[null,null,null,null,null,0,null,null,null,null,null,0]
[null,null,null,null,null,0,null,null,null,null,null,0]
[null,null,null,null,null,0,null,null,null,null,null,0]
[null,null,null,null,null,0,null,null,null,null,null,0]
[null,null,null,null,null,0,null,null,null,null,null,0]
[null,null,null,null,null,0,null,null,null,null,null,0]
[null,null,null,null,null,0,null,null,null,null,null,0]
[null,null,null,null,null,0,null,null,null,null,null,0]
[null,null,null,null,null,0,null,null,null,null,null,0]
[null,null,null,null,null,0,null,null,null,null,null,0]
[null,null,null,null,null,0,null,null,null,null,null,0]
[null,null,null,null,null,0,null,null,null,null,null,0]
[null,null,null,null,null,0,null,null,null,null,null,0]
[null,null,null,null,null,0,null,null,null,null,null,0]
[null,null,null,null,null,0,null,null,null,null,null,0]
[null,null,null,null,null,0,null,null,null,null,null,0]
[null,null,null,null,null,0,null,null,null,null,null,0]
[null,null,null,null,null,0,null,null,null,null,null,0]
[null,null,null,null,null,0,null,null,null,null,null,0]
[null,null,null,null,null,0,null,null,null,null,null,0]
[null,null,null,null,null,0,null,null,null,null,null,0]
[null,null,null,null,null,0,null,null,null,null,null,0]
[null,null,null,null,null,0,null,null,null,null,null,0]
[null,null,null,null,null,0,null,null,null,null,null,0]
[null,null,null,null,null,0,null,null,null,null,null,0]
[null,null,null,null,null,0,null,null,null,null,null,0]
[null,null,null,null,null,0,null,null,null,null,null,0]
[null,null,null,null,null,0,null,null,null,null,null,0]
[null,null,null,null,null,0,null,null,null,null,null,0]
[null,null,null,null,null,0,null,null,null,null,null,0]
[null,null,null,null,null,0,null,null,null,null,null,0]
[null,null,null,null,null,0,null,null,null,null,null,0]
[null,null,null,null,null,0,null,null,null,null,null,0]
[null,null,null,null,null,0,null,null,null,null,null,0]
[null,null,null,null,null,0,null,null,null,null,null,0]
[null,null,null,null,null,0,null,null,null,null,null,0]
[null,null,null,null,null,0,null,null,null,null,null,0]
[null,null,null,null,null,0,null,null,null,null,null,0]
[null,null,null,null,null,0,null,null,null,null,null,0]
[null,null,null,null,null,0,null,null,null,null,null,0]
[null,null,null,null,null,0,null,null,null,null,null,0]
[null,null,null,null,null,0,null,null,null,null,null,0]
[null,null,null,null,null,0,null,null,null,null,null,0]
[null,null,null,null,null,0,null,null,null,null,null,0]
[null,null,null,null,null,0,null,null,null,null,null,0]
[null,null,null,null,null,0,null,null,null,null,null,0]
[null,null,null,null,null,0,null,null,null,null,null,0]
[null,null,null,null,null,0,null,null,null,null,null,0]
[null,null,null,null,null,0,null,null,null,null,null,0]
[null,null,null,null,null,0,null,null,null,null,null,0]
[null,null,null,null,null,0,null,null,null,null,null,0]
[null,null,null,null,null,0,null,null,null,null,null,0]
[null,null,null,null,null,0,null,null,null,null,null,0]
[null,null,null,null,null,0,null,null,null,null,null,0]
[null,null,null,null,null,0,null,null,null,null,null,0]
[null,null,null,null,null,0,null,null,null,null,null,0]
[null,null,null,null,null,0,null,null,null,null,null,0]
[null,null,null,null,null,0,null,null,null,null,null,0]
[null,null,null,null,null,0,null,null,null,null,null,0]
[null,null,null,null,null,0,null,null,null,null,null,{"$f":"(IF(D73=0,0,D73)+IF(E73=0,0,E73))*(IF(D73>0,$K$5,1))+F72","v":0}]
[null,null,null,null,null,0,null,null,null,null,null,0]
[null,null,null,null,null,0,null,null,null,null,null,0]
[null,null,null,null,null,{"$f":"IF(D73+E73=0,0,L70)","v":0},null,null,null,null,null,0]
[null,null,null,null,null,0,null,null,null,null,null,0]
[null,null,null,null,null,0,null,null,null,null,null,0]
[null,null,null,null,null,0,null,null,null,null,null,0]
[null,null,null,null,null,0,null,null,null,null,null,0]
[null,null,null,null,null,0,null,null,null,null,null,0]
[null,null,null,null,null,0,null,null,null,null,null,0]
[null,null,null,null,null,0,null,null,null,null,null,0]
[null,null,null,null,null,0,null,null,null,null,null,0]
[null,null,null,null,null,0,null,null,null,null,null,0]
[null,null,null,null,null,0,null,null,null,null,null,0]
[null,null,null,null,null,0,null,null,null,null,null,0]
[null,null,null,null,null,0,null,null,null,null,null,0]
[null,null,null,null,null,0,null,null,null,null,null,0]
[null,null,null,null,null,0,null,null,null,null,null,0]
[null,null,null,null,null,0,null,null,null,null,null,0]
[null,null,null,null,null,0,null,null,null,null,null,0]
[null,null,null,null,null,0,null,null,null,null,null,0]
[null,null,null,null,null,0,null,null,null,null,null,0]
[null,null,null,null,null,0,null,null,null,null,null,0]
[null,null,null,null,null,0,null,null,null,null,null,0]
[null,null,null,null,null,0,null,null,null,null,null,0]
[null,null,null,null,null,0,null,null,null,null,null,0]
[null,null,null,null,null,0,null,null,null,null,null,0]
[null,null,null,null,null,0,null,null,null,null,null,0]
[null,null,null,null,null,0,null,null,null,null,null,0]
[null,null,null,null,null,0,null,null,null,null,null,0]
[null,null,null,null,null,0,null,null,null,null,null,0]
[null,null,null,null,null,0,null,null,null,null,null,0]
[null,null,null,null,null,0,null,null,null,null,null,0]
[null,null,null,null,null,0,null,null,null,null,null,0]
[null,null,null,null,null,0,null,null,null,null,null,0]
[null,null,null,null,null,0,null,null,null,null,null,0]
[null,null,null,null,null,0,null,null,null,null,null,0]
[null,null,null,null,null,0,null,null,null,null,null,0]
[null,null,null,null,null,0,null,null,null,null,null,0]
[null,null,null,null,null,0,null,null,null,null,null,0]
[null,null,null,null,null,0,null,null,null,null,null,0]
[null,null,null,null,null,0,null,null,null,null,null,0]
[null,null,null,null,null,0,null,null,null,null,null,0]
[null,null,null,null,null,0,null,null,null,null,null,0]
[null,null,null,null,null,0,null,null,null,null,null,0]
[null,null,null,null,null,0,null,null,null,null,null,0]
[null,null,null,null,null,0,null,null,null,null,null,0]
[null,null,null,null,null,0,null,null,null,null,null,0]
[null,null,null,null,null,0,null,null,null,null,null,0]
[null,null,null,null,null,0,null,null,null,null,null,0]
[null,null,null,null,null,0,null,null,null,null,null,0]
[null,null,null,null,null,0,null,null,null,null,null,0]
[null,null,null,null,null,0,null,null,null,null,null,0]
[null,null,null,null,null,0,null,null,null,null,null,0]
[null,null,null,null,null,0,null,null,null,null,null,0]
[null,null,null,null,null,0,null,null,null,null,null,0]
[null,null,null,null,null,0,null,null,null,null,null,0]
[null,null,null,null,null,0,null,null,null,null,null,0]
[null,null,null,null,null,0,null,null,null,null,null,0]
[null,null,null,null,null,0,null,null,null,null,null,0]
[null,null,null,null,null,0,null,null,null,null,null,0]
[null,null,null,null,null,0,null,null,null,null,null,0]
[null,null,null,null,null,0,null,null,null,null,null,0]
[null,null,null,null,null,0,null,null,null,null,null,0]
[null,null,null,null,null,0,null,null,null,null,null,{"$f":"(IF(D137=0,0,D137)+IF(E137=0,0,E137))*(IF(D137>0,$K$5,1))+F136","v":0}]
[null,null,null,null,null,0,null,null,null,null,null,0]
[null,null,null,null,null,0,null,null,null,null,null,0]
[null,null,null,null,null,{"$f":"IF(D137+E137=0,0,L134)","v":0},null,null,null,null,null,0]
[null,null,null,null,null,0,null,null,null,null,null,0]
[null,null,null,null,null,0,null,null,null,null,null,0]
[null,null,null,null,null,0,null,null,null,null,null,0]
[null,null,null,null,null,0,null,null,null,null,null,0]
[null,null,null,null,null,0,null,null,null,null,null,0]
[null,null,null,null,null,0,null,null,null,null,null,0]
[null,null,null,null,null,0,null,null,null,null,null,0]
[null,null,null,null,null,0,null,null,null,null,null,0]
[null,null,null,null,null,0,null,null,null,null,null,0]
[null,null,null,null,null,0,null,null,null,null,null,0]
[null,null,null,null,null,0,null,null,null,null,null,0]
[null,null,null,null,null,0,null,null,null,null,null,0]
[null,null,null,null,null,0,null,null,null,null,null,0]
[null,null,null,null,null,0,null,null,null,null,null,0]
[null,null,null,null,null,0,null,null,null,null,null,0]
[null,null,null,null,null,0,null,null,null,null,null,0]
[null,null,null,null,null,0,null,null,null,null,null,0]
[null,null,null,null,null,0,null,null,null,null,null,0]
[null,null,null,null,null,0,null,null,null,null,null,0]
[null,null,null,null,null,0,null,null,null,null,null,0]
[null,null,null,null,null,0,null,null,null,null,null,0]
[null,null,null,null,null,0,null,null,null,null,null,0]
[null,null,null,null,null,0,null,null,null,null,null,0]
[null,null,null,null,null,0,null,null,null,null,null,0]
[null,null,null,null,null,0,null,null,null,null,null,0]
[null,null,null,null,null,0,null,null,null,null,null,0]
[null,null,null,null,null,0,null,null,null,null,null,0]
[null,null,null,null,null,0,null,null,null,null,null,0]
[null,null,null,null,null,0,null,null,null,null,null,0]
[null,null,null,null,null,0,null,null,null,null,null,0]
[null,null,null,null,null,0,null,null,null,null,null,0]
[null,null,null,null,null,0,null,null,null,null,null,0]
[null,null,null,null,null,0,null,null,null,null,null,0]
[null,null,null,null,null,0,null,null,null,null,null,0]
[null,null,null,null,null,0,null,null,null,null,null,0]
[null,null,null,null,null,0,null,null,null,null,null,0]
[null,null,null,null,null,0,null,null,null,null,null,0]
[null,null,null,null,null,0,null,null,null,null,null,0]
[null,null,null,null,null,0,null,null,null,null,null,0]
[null,null,null,null,null,0,null,null,null,null,null,0]
[null,null,null,null,null,0,null,null,null,null,null,0]
[null,null,null,null,null,0,null,null,null,null,null,0]
[null,null,null,null,null,0,null,null,null,null,null,0]
[null,null,null,null,null,0,null,null,null,null,null,0]
[null,null,null,null,null,0,null,null,null,null,null,0]
[null,null,null,null,null,0,null,null,null,null,null,0]
[null,null,null,null,null,0,null,null,null,null,null,0]
[null,null,null,null,null,0,null,null,null,null,null,0]
[null,null,null,null,null,0,null,null,null,null,null,0]
[null,null,null,null,null,0,null,null,null,null,null,0]
[null,null,null,null,null,0,null,null,null,null,null,0]
[null,null,null,null,null,0,null,null,null,null,null,0]
[null,null,null,null,null,0,null,null,null,null,null,0]
[null,null,null,null,null,0,null,null,null,null,null,0]
[null,null,null,null,null,0,null,null,null,null,null,0]
[null,null,null,null,null,0,null,null,null,null,null,0]
[null,null,null,null,null,0,null,null,null,null,null,0]
[null,null,null,null,null,0,null,null,null,null,null,0]
[null,null,null,null,null,0,null,null,null,null,null,0]
[null,null,null,null,null,0,null,null,null,null,null,0]
[null,null,null,null,null,0,null,null,null,null,null,{"$f":"(IF(D201=0,0,D201)+IF(E201=0,0,E201))*(IF(D201>0,$K$5,1))+F200","v":0}]
[null,null,null,null,null,0,null,null,null,null,null,0]
[null,null,null,null,null,0,null,null,null,null,null,0]
[null,null,null,null,null,{"$f":"IF(D201+E201=0,0,L198)","v":0},null,null,null,null,null,0]
[null,null,null,null,null,0,null,null,null,null,null,0]
[null,null,null,null,null,0,null,null,null,null,null,0]
[null,null,null,null,null,0,null,null,null,null,null,0]
[null,null,null,null,null,0,null,null,null,null,null,0]
[null,null,null,null,null,0,null,null,null,null,null,0]
[null,null,null,null,null,0,null,null,null,null,null,0]
[null,null,null,null,null,0,null,null,null,null,null,0]
[null,null,null,null,null,0,null,null,null,null,null,0]
[null,null,null,null,null,0,null,null,null,null,null,0]
[null,null,null,null,null,0,null,null,null,null,null,0]
[null,null,null,null,null,0,null,null,null,null,null,0]
[null,null,null,null,null,0,null,null,null,null,null,0]
[null,null,null,null,null,0,null,null,null,null,null,0]
[null,null,null,null,null,0,null,null,null,null,null,0]
[null,null,null,null,null,0,null,null,null,null,null,0]
[null,null,null,null,null,0,null,null,null,null,null,0]
[null,null,null,null,null,0,null,null,null,null,null,0]
[null,null,null,null,null,0,null,null,null,null,null,0]
[null,null,null,null,null,0,null,null,null,null,null,0]
[null,null,null,null,null,0,null,null,null,null,null,0]
[null,null,null,null,null,0,null,null,null,null,null,0]
[null,null,null,null,null,0,null,null,null,null,null,0]
[null,null,null,null,null,0,null,null,null,null,null,0]
[null,null,null,null,null,0,null,null,null,null,null,0]
[null,null,null,null,null,0,null,null,null,null,null,0]
[null,null,null,null,null,0,null,null,null,null,null,0]
[null,null,null,null,null,0,null,null,null,null,null,0]
[null,null,null,null,null,0,null,null,null,null,null,0]
[null,null,null,null,null,0,null,null,null,null,null,0]
[null,null,null,null,null,0,null,null,null,null,null,0]
[null,null,null,null,null,0,null,null,null,null,null,0]
[null,null,null,null,null,0,null,null,null,null,null,0]
[null,null,null,null,null,0,null,null,null,null,null,0]
[null,null,null,null,null,0,null,null,null,null,null,0]
[null,null,null,null,null,0,null,null,null,null,null,0]
[null,null,null,null,null,0,null,null,null,null,null,0]
[null,null,null,null,null,0,null,null,null,null,null,0]
[null,null,null,null,null,0,null,null,null,null,null,0]
[null,null,null,null,null,0,null,null,null,null,null,0]
[null,null,null,null,null,0,null,null,null,null,null,0]
[null,null,null,null,null,0,null,null,null,null,null,0]
[null,null,null,null,null,0,null,null,null,null,null,0]
[null,null,null,null,null,0,null,null,null,null,null,0]
[null,null,null,null,null,0,null,null,null,null,null,0]
[null,null,null,null,null,0,null,null,null,null,null,0]
[null,null,null,null,null,0,null,null,null,null,null,0]
[null,null,null,null,null,0,null,null,null,null,null,0]
[null,null,null,null,null,0,null,null,null,null,null,0]
[null,null,null,null,null,0,null,null,null,null,null,0]
[null,null,null,null,null,0,null,null,null,null,null,0]
[null,null,null,null,null,0,null,null,null,null,null,0]
[null,null,null,null,null,0,null,null,null,null,null,0]
[null,null,null,null,null,0,null,null,null,null,null,0]
[null,null,null,null,null,0,null,null,null,null,null,0]
[null,null,null,null,null,0,null,null,null,null,null,0]
[null,null,null,null,null,0,null,null,null,null,null,0]
[null,null,null,null,null,0,null,null,null,null,null,0]
[null,null,null,null,null,0,null,null,null,null,null,0]
[null,null,null,null,null,0,null,null,null,null,null,0]
[null,null,null,null,null,0,null,null,null,null,null,0]
[null,null,null,null,null,0,null,null,null,null,null,{"$f":"(IF(D265=0,0,D265)+IF(E265=0,0,E265))*(IF(D265>0,$K$5,1))+F264","v":0}]
[null,null,null,null,null,0,null,null,null,null,null,0]
[null,null,null,null,null,0,null,null,null,null,null,0]
[null,null,null,null,null,{"$f":"IF(D265+E265=0,0,L262)","v":0},null,null,null,null,null,0]
[null,null,null,null,null,0,null,null,null,null,null,0]
[null,null,null,null,null,0,null,null,null,null,null,0]
[null,null,null,null,null,0,null,null,null,null,null,0]
[null,null,null,null,null,0,null,null,null,null,null,0]
[null,null,null,null,null,0,null,null,null,null,null,0]
[null,null,null,null,null,0,null,null,null,null,null,0]
[null,null,null,null,null,0,null,null,null,null,null,0]
[null,null,null,null,null,0,null,null,null,null,null,0]
[null,null,null,null,null,0,null,null,null,null,null,0]
[null,null,null,null,null,0,null,null,null,null,null,0]
[null,null,null,null,null,0,null,null,null,null,null,0]
[null,null,null,null,null,0,null,null,null,null,null,0]
[null,null,null,null,null,0,null,null,null,null,null,0]
[null,null,null,null,null,0,null,null,null,null,null,0]
[null,null,null,null,null,0,null,null,null,null,null,0]
[null,null,null,null,null,0,null,null,null,null,null,0]
[null,null,null,null,null,0,null,null,null,null,null,0]
[null,null,null,null,null,0,null,null,null,null,null,0]
[null,null,null,null,null,0,null,null,null,null,null,0]
[null,null,null,null,null,0,null,null,null,null,null,0]
[null,null,null,null,null,0,null,null,null,null,null,0]
[null,null,null,null,null,0,null,null,null,null,null,0]
[null,null,null,null,null,0,null,null,null,null,null,0]
[null,null,null,null,null,0,null,null,null,null,null,0]
[null,null,null,null,null,0,null,null,null,null,null,0]
[null,null,null,null,null,0,null,null,null,null,null,0]
[null,null,null,null,null,0,null,null,null,null,null,0]
[null,null,null,null,null,0,null,null,null,null,null,0]
[null,null,null,null,null,0,null,null,null,null,null,0]
[null,null,null,null,null,0,null,null,null,null,null,0]
[null,null,null,null,null,0,null,null,null,null,null,0]
[null,null,null,null,null,0,null,null,null,null,null,0]
[null,null,null,null,null,0,null,null,null,null,null,0]
[null,null,null,null,null,0,null,null,null,null,null,0]
[null,null,null,null,null,0,null,null,null,null,null,0]
[null,null,null,null,null,0,null,null,null,null,null,0]
[null,null,null,null,null,0,null,null,null,null,null,0]
[null,null,null,null,null,0,null,null,null,null,null,0]
[null,null,null,null,null,0,null,null,null,null,null,0]
[null,null,null,null,null,0,null,null,null,null,null,0]
[null,null,null,null,null,0,null,null,null,null,null,0]
[null,null,null,null,null,0,null,null,null,null,null,0]
[null,null,null,null,null,0,null,null,null,null,null,0]
[null,null,null,null,null,0,null,null,null,null,null,0]
[null,null,null,null,null,0,null,null,null,null,null,0]
[null,null,null,null,null,0,null,null,null,null,null,0]
[null,null,null,null,null,0,null,null,null,null,null,0]
[null,null,null,null,null,0,null,null,null,null,null,0]
[null,null,null,null,null,0,null,null,null,null,null,0]
[null,null,null,null,null,0,null,null,null,null,null,0]
[null,null,null,null,null,0,null,null,null,null,null,0]
[null,null,null,null,null,0,null,null,null,null,null,0]
[null,null,null,null,null,0,null,null,null,null,null,0]
[null,null,null,null,null,0,null,null,null,null,null,0]
[null,null,null,null,null,0,null,null,null,null,null,0]
[null,null,null,null,null,0,null,null,null,null,null,0]
[null,null,null,null,null,0,null,null,null,null,null,0]
[null,null,null,null,null,0,null,null,null,null,null,0]
[null,null,null,null,null,0,null,null,null,null,null,0]
[null,null,null,null,null,0,null,null,null,null,null,0]
[null,null,null,null,null,0,null,null,null,null,null,{"$f":"(IF(D329=0,0,D329)+IF(E329=0,0,E329))*(IF(D329>0,$K$5,1))+F328","v":0}]
[null,null,null,null,null,0,null,null,null,null,null,0]
[null,null,null,null,null,0,null,null,null,null,null,0]
[null,null,null,null,null,{"$f":"IF(D329+E329=0,0,L326)","v":0},null,null,null,null,null,0]
[null,null,null,null,null,0,null,null,null,null,null,0]
[null,null,null,null,null,0,null,null,null,null,null,0]
[null,null,null,null,null,0,null,null,null,null,null,0]
[null,null,null,null,null,0,null,null,null,null,null,0]
[null,null,null,null,null,0,null,null,null,null,null,0]
[null,null,null,null,null,0,null,null,null,null,null,0]
[null,null,null,null,null,0,null,null,null,null,null,0]
[null,null,null,null,null,0,null,null,null,null,null,0]
[null,null,null,null,null,0,null,null,null,null,null,0]
[null,null,null,null,null,0,null,null,null,null,null,0]
[null,null,null,null,null,0,null,null,null,null,null,0]
[null,null,null,null,null,0,null,null,null,null,null,0]
[null,null,null,null,null,0,null,null,null,null,null,0]
[null,null,null,null,null,0,null,null,null,null,null,0]
[null,null,null,null,null,0,null,null,null,null,null,0]
[null,null,null,null,null,0,null,null,null,null,null,0]
[null,null,null,null,null,0,null,null,null,null,null,0]
[null,null,null,null,null,0,null,null,null,null,null,0]
[null,null,null,null,null,0,null,null,null,null,null,0]
[null,null,null,null,null,0,null,null,null,null,null,0]
[null,null,null,null,null,0,null,null,null,null,null,0]
[null,null,null,null,null,0,null,null,null,null,null,0]
[null,null,null,null,null,0,null,null,null,null,null,0]
[null,null,null,null,null,0,null,null,null,null,null,0]
[null,null,null,null,null,0,null,null,null,null,null,0]
[null,null,null,null,null,0,null,null,null,null,null,0]
[null,null,null,null,null,0,null,null,null,null,null,0]
[null,null,null,null,null,0,null,null,null,null,null,0]
[null,null,null,null,null,0,null,null,null,null,null,0]
[null,null,null,null,null,0,null,null,null,null,null,0]
[null,null,null,null,null,0,null,null,null,null,null,0]
[null,null,null,null,null,0,null,null,null,null,null,0]
[null,null,null,null,null,0,null,null,null,null,null,0]
[null,null,null,null,null,0,null,null,null,null,null,0]
[null,null,null,null,null,0,null,null,null,null,null,0]
[null,null,null,null,null,0,null,null,null,null,null,0]
[null,null,null,null,null,0,null,null,null,null,null,0]
[null,null,null,null,null,0,null,null,null,null,null,0]
[null,null,null,null,null,0,null,null,null,null,null,0]
[null,null,null,null,null,0,null,null,null,null,null,0]
[null,null,null,null,null,0,null,null,null,null,null,0]
[null,null,null,null,null,0,null,null,null,null,null,0]
[null,null,null,null,null,0,null,null,null,null,null,0]
[null,null,null,null,null,0,null,null,null,null,null,0]
[null,null,null,null,null,0,null,null,null,null,null,0]
[null,null,null,null,null,0,null,null,null,null,null,0]
[null,null,null,null,null,0,null,null,null,null,null,0]
[null,null,null,null,null,0,null,null,null,null,null,0]
[null,null,null,null,null,0,null,null,null,null,null,0]
[null,null,null,null,null,0,null,null,null,null,null,0]
[null,null,null,null,null,0,null,null,null,null,null,0]
[null,null,null,null,null,0,null,null,null,null,null,0]
[null,null,null,null,null,0,null,null,null,null,null,0]
[null,null,null,null,null,0,null,null,null,null,null,0]
[null,null,null,null,null,0,null,null,null,null,null,0]
[null,null,null,null,null,0,null,null,null,null,null,0]
[null,null,null,null,null,0,null,null,null,null,null,0]
[null,null,null,null,null,0,null,null,null,null,null,0]
[null,null,null,null,null,0,null,null,null,null,null,0]
[null,null,null,null,null,0,null,null,null,null,null,0]
[null,null,null,null,null,0,null,null,null,null,null,{"$f":"(IF(D393=0,0,D393)+IF(E393=0,0,E393))*(IF(D393>0,$K$5,1))+F392","v":0}]
[null,null,null,null,null,0,null,null,null,null,null,0]
[null,null,null,null,null,0,null,null,null,null,null,0]
[null,null,null,null,null,{"$f":"IF(D393+E393=0,0,L390)","v":0},null,null,null,null,null,0]
[null,null,null,null,null,0,null,null,null,null,null,0]
[null,null,null,null,null,0,null,null,null,null,null,0]
[null,null,null,null,null,0,null,null,null,null,null,0]
[null,null,null,null,null,0,null,null,null,null,null,0]
[null,null,null,null,null,0,null,null,null,null,null,0]
[null,null,null,null,null,0,null,null,null,null,null,0]
[null,null,null,null,null,0,null,null,null,null,null,0]
[null,null,null,null,null,0,null,null,null,null,null,0]
[null,null,null,null,null,0,null,null,null,null,null,0]
[null,null,null,null,null,0,null,null,null,null,null,0]
[null,null,null,null,null,0,null,null,null,null,null,0]
[null,null,null,null,null,0,null,null,null,null,null,0]
[null,null,null,null,null,0,null,null,null,null,null,0]
[null,null,null,null,null,0,null,null,null,null,null,0]
[null,null,null,null,null,0,null,null,null,null,null,0]
[null,null,null,null,null,0,null,null,null,null,null,0]
[null,null,null,null,null,0,null,null,null,null,null,0]
[null,null,null,null,null,0,null,null,null,null,null,0]
[null,null,null,null,null,0,null,null,null,null,null,0]
[null,null,null,null,null,0,null,null,null,null,null,0]
[null,null,null,null,null,0,null,null,null,null,null,0]
[null,null,null,null,null,0,null,null,null,null,null,0]
[null,null,null,null,null,0,null,null,null,null,null,0]
[null,null,null,null,null,0,null,null,null,null,null,0]
[null,null,null,null,null,0,null,null,null,null,null,0]
[null,null,null,null,null,0,null,null,null,null,null,0]
[null,null,null,null,null,0,null,null,null,null,null,0]
[null,null,null,null,null,0,null,null,null,null,null,0]
[null,null,null,null,null,0,null,null,null,null,null,0]
[null,null,null,null,null,0,null,null,null,null,null,0]
[null,null,null,null,null,0,null,null,null,null,null,0]
[null,null,null,null,null,0,null,null,null,null,null,0]
[null,null,null,null,null,0,null,null,null,null,null,0]
[null,null,null,null,null,0,null,null,null,null,null,0]
[null,null,null,null,null,0,null,null,null,null,null,0]
[null,null,null,null,null,0,null,null,null,null,null,0]
[null,null,null,null,null,0,null,null,null,null,null,0]
[null,null,null,null,null,0,null,null,null,null,null,0]
[null,null,null,null,null,0,null,null,null,null,null,0]
[null,null,null,null,null,0,null,null,null,null,null,0]
[null,null,null,null,null,0,null,null,null,null,null,0]
[null,null,null,null,null,0,null,null,null,null,null,0]
[null,null,null,null,null,0,null,null,null,null,null,0]
[null,null,null,null,null,0,null,null,null,null,null,0]
[null,null,null,null,null,0,null,null,null,null,null,0]
[null,null,null,null,null,0,null,null,null,null,null,0]
[null,null,null,null,null,0,null,null,null,null,null,0]
[null,null,null,null,null,0,null,null,null,null,null,0]
[null,null,null,null,null,0,null,null,null,null,null,0]
[null,null,null,null,null,0,null,null,null,null,null,0]
[null,null,null,null,null,0,null,null,null,null,null,0]
[null,null,null,null,null,0,null,null,null,null,null,0]
[null,null,null,null,null,0,null,null,null,null,null,0]
[null,null,null,null,null,0,null,null,null,null,null,0]
[null,null,null,null,null,0,null,null,null,null,null,0]
[null,null,null,null,null,0,null,null,null,null,null,0]
[null,null,null,null,null,0,null,null,null,null,null,0]
[null,null,null,null,null,0,null,null,null,null,null,0]
[null,null,null,null,null,0,null,null,null,null,null,0]
[null,null,null,null,null,0,null,null,null,null,null,0]
[null,null,null,null,null,0,null,null,null,null,null,{"$f":"(IF(D457=0,0,D457)+IF(E457=0,0,E457))*(IF(D457>0,$K$5,1))+F456","v":0}]
[null,null,null,null,null,0,null,null,null,null,null,0]
[null,null,null,null,null,0,null,null,null,null,null,0]
[null,null,null,null,null,{"$f":"IF(D457+E457=0,0,L454)","v":0},null,null,null,null,null,0]
[null,null,null,null,null,0,null,null,null,null,null,0]
[null,null,null,null,null,0,null,null,null,null,null,0]
[null,null,null,null,null,0,null,null,null,null,null,0]
[null,null,null,null,null,0,null,null,null,null,null,0]
[null,null,null,null,null,0,null,null,null,null,null,0]
[null,null,null,null,null,0,null,null,null,null,null,0]
[null,null,null,null,null,0,null,null,null,null,null,0]
[null,null,null,null,null,0,null,null,null,null,null,0]
[null,null,null,null,null,0,null,null,null,null,null,0]
[null,null,null,null,null,0,null,null,null,null,null,0]
[null,null,null,null,null,0,null,null,null,null,null,0]
[null,null,null,null,null,0,null,null,null,null,null,0]
[null,null,null,null,null,0,null,null,null,null,null,0]
[null,null,null,null,null,0,null,null,null,null,null,0]
[null,null,null,null,null,0,null,null,null,null,null,0]
[null,null,null,null,null,0,null,null,null,null,null,0]
[null,null,null,null,null,0,null,null,null,null,null,0]
[null,null,null,null,null,0,null,null,null,null,null,0]
[null,null,null,null,null,0,null,null,null,null,null,0]
[null,null,null,null,null,0,null,null,null,null,null,0]
[null,null,null,null,null,0,null,null,null,null,null,0]
[null,null,null,null,null,0,null,null,null,null,null,0]
[null,null,null,null,null,0,null,null,null,null,null,0]
[null,null,null,null,null,0,null,null,null,null,null,0]
[null,null,null,null,null,0,null,null,null,null,null,0]
[null,null,null,null,null,0,null,null,null,null,null,0]
[null,null,null,null,null,0,null,null,null,null,null,0]
[null,null,null,null,null,0,null,null,null,null,null,0]
[null,null,null,null,null,0,null,null,null,null,null,0]
[null,null,null,null,null,0,null,null,null,null,null,0]
[null,null,null,null,null,0,null,null,null,null,null,0]
[null,null,null,null,null,0,null,null,null,null,null,0]
[null,null,null,null,null,0,null,null,null,null,null,0]
[null,null,null,null,null,0,null,null,null,null,null,0]
[null,null,null,null,null,0,null,null,null,null,null,0]
[null,null,null,null,null,0,null,null,null,null,null,0]
[null,null,null,null,null,0,null,null,null,null,null,0]
[null,null,null,null,null,0,null,null,null,null,null,0]
[null,null,null,null,null,0,null,null,null,null,null,0]
[null,null,null,null,null,0,null,null,null,null,null,0]
[null,null,null,null,null,0,null,null,null,null,null,0]
[null,null,null,null,null,0,null,null,null,null,null,0]
[null,null,null,null,null,0,null,null,null,null,null,0]
[null,null,null,null,null,0,null,null,null,null,null,0]
[null,null,null,null,null,0,null,null,null,null,null,0]
[null,null,null,null,null,0,null,null,null,null,null,0]
[null,null,null,null,null,0,null,null,null,null,null,0]
[null,null,null,null,null,0,null,null,null,null,null,0]
[null,null,null,null,null,0,null,null,null,null,null,0]
[null,null,null,null,null,0,null,null,null,null,null,0]
[null,null,null,null,null,0,null,null,null,null,null,0]
[null,null,null,null,null,0,null,null,null,null,null,0]
[null,null,null,null,null,0,null,null,null,null,null,0]
[null,null,null,null,null,0,null,null,null,null,null,0]
[null,null,null,null,null,0,null,null,null,null,null,0]
[null,null,null,null,null,0,null,null,null,null,null,0]
[null,null,null,null,null,0,null,null,null,null,null,0]
[null,null,null,null,null,0,null,null,null,null,null,0]
[null,null,null,null,null,0,null,null,null,null,null,0]
[null,null,null,null,null,0,null,null,null,null,null,0]
[null,null,null,null,null,0,null,null,null,null,null,{"$f":"(IF(D521=0,0,D521)+IF(E521=0,0,E521))*(IF(D521>0,$K$5,1))+F520","v":0}]
[null,null,null,null,null,0,null,null,null,null,null,0]
[null,null,null,null,null,0,null,null,null,null,null,0]
[null,null,null,null,null,{"$f":"IF(D521+E521=0,0,L518)","v":0},null,null,null,null,null,0]
[null,null,null,null,null,0,null,null,null,null,null,0]
[null,null,null,null,null,0,null,null,null,null,null,0]
[null,null,null,null,null,0,null,null,null,null,null,0]
[null,null,null,null,null,0,null,null,null,null,null,0]
[null,null,null,null,null,0,null,null,null,null,null,0]
[null,null,null,null,null,0,null,null,null,null,null,0]
[null,null,null,null,null,0,null,null,null,null,null,0]
[null,null,null,null,null,0,null,null,null,null,null,0]
[null,null,null,null,null,0,null,null,null,null,null,0]
[null,null,null,null,null,0,null,null,null,null,null,0]
[null,null,null,null,null,0,null,null,null,null,null,0]
[null,null,null,null,null,0,null,null,null,null,null,0]
[null,null,null,null,null,0,null,null,null,null,null,0]
[null,null,null,null,null,0,null,null,null,null,null,0]
[null,null,null,null,null,0,null,null,null,null,null,0]
[null,null,null,null,null,0,null,null,null,null,null,0]
[null,null,null,null,null,0,null,null,null,null,null,0]
[null,null,null,null,null,0,null,null,null,null,null,0]
[null,null,null,null,null,0,null,null,null,null,null,0]
[null,null,null,null,null,0,null,null,null,null,null,0]
[null,null,null,null,null,0,null,null,null,null,null,0]
[null,null,null,null,null,0,null,null,null,null,null,0]
[null,null,null,null,null,0,null,null,null,null,null,0]
[null,null,null,null,null,0,null,null,null,null,null,0]
[null,null,null,null,null,0,null,null,null,null,null,0]
[null,null,null,null,null,0,null,null,null,null,null,0]
[null,null,null,null,null,0,null,null,null,null,null,0]
[null,null,null,null,null,0,null,null,null,null,null,0]
[null,null,null,null,null,0,null,null,null,null,null,0]
[null,null,null,null,null,0,null,null,null,null,null,0]
[null,null,null,null,null,0,null,null,null,null,null,0]
[null,null,null,null,null,0,null,null,null,null,null,0]
[null,null,null,null,null,0,null,null,null,null,null,0]
[null,null,null,null,null,0,null,null,null,null,null,0]
[null,null,null,null,null,0,null,null,null,null,null,0]
[null,null,null,null,null,0,null,null,null,null,null,0]
[null,null,null,null,null,0,null,null,null,null,null,0]
[null,null,null,null,null,0,null,null,null,null,null,0]
[null,null,null,null,null,0,null,null,null,null,null,0]
[null,null,null,null,null,0,null,null,null,null,null,0]
[null,null,null,null,null,0,null,null,null,null,null,0]
[null,null,null,null,null,0,null,null,null,null,null,0]
[null,null,null,null,null,0,null,null,null,null,null,0]
[null,null,null,null,null,0,null,null,null,null,null,0]
[null,null,null,null,null,0,null,null,null,null,null,0]
[null,null,null,null,null,0,null,null,null,null,null,0]
[null,null,null,null,null,0,null,null,null,null,null,0]
[null,null,null,null,null,0,null,null,null,null,null,0]
[null,null,null,null,null,0,null,null,null,null,null,0]
[null,null,null,null,null,0,null,null,null,null,null,0]
[null,null,null,null,null,0,null,null,null,null,null,0]
[null,null,null,null,null,0,null,null,null,null,null,0]
[null,null,null,null,null,0,null,null,null,null,null,0]
[null,null,null,null,null,0,null,null,null,null,null,0]
[null,null,null,null,null,0,null,null,null,null,null,0]
[null,null,null,null,null,0,null,null,null,null,null,0]
[null,null,null,null,null,0,null,null,null,null,null,0]
[null,null,null,null,null,0,null,null,null,null,null,0]
[null,null,null,null,null,0,null,null,null,null,null,0]
[null,null,null,null,null,0,null,null,null,null,null,0]
[null,null,null,null,null,0,null,null,null,null,null,{"$f":"(IF(D585=0,0,D585)+IF(E585=0,0,E585))*(IF(D585>0,$K$5,1))+F584","v":0}]
[null,null,null,null,null,0,null,null,null,null,null,0]
[null,null,null,null,null,0,null,null,null,null,null,0]
[null,null,null,null,null,{"$f":"IF(D585+E585=0,0,L582)","v":0},null,null,null,null,null,0]
[null,null,null,null,null,0,null,null,null,null,null,0]
[null,null,null,null,null,0,null,null,null,null,null,0]
[null,null,null,null,null,0,null,null,null,null,null,0]
[null,null,null,null,null,0,null,null,null,null,null,0]
[null,null,null,null,null,0,null,null,null,null,null,0]
[null,null,null,null,null,0,null,null,null,null,null,0]
[null,null,null,null,null,0,null,null,null,null,null,0]
[null,null,null,null,null,0,null,null,null,null,null,0]
[null,null,null,null,null,0,null,null,null,null,null,0]
[null,null,null,null,null,0,null,null,null,null,null,0]
[null,null,null,null,null,0,null,null,null,null,null,0]
[null,null,null,null,null,0,null,null,null,null,null,0]
[null,null,null,null,null,0,null,null,null,null,null,0]
[null,null,null,null,null,0,null,null,null,null,null,0]
[null,null,null,null,null,0,null,null,null,null,null,0]
[null,null,null,null,null,0]
[null,null,null,null,null,0]
[null,null,null,null,null,0]

{"sheet":"Client-Matter Name 6","index":6,"n_rows":603,"n_cols":12,"rows_kept":603,"cut":false,"hidden":false,"merged":[[3,0,3,1],[4,0,4,1],[3,9,3,12]]}
[null,null,"Trust Account of "]
["Fiscal Year 20xx",null,"Client-Matter Ledger"]
[]
["Client Name and/or Number",null,null,"Date Opened",null,null,null,null,null,"MAKE NO CHANGES IN THESE COLUMNS"]
["Matter Name and/or Number",null,null,null,null,null,null,null,null,null,-1,{"$f":"(IF(D8=0,0,D8)+IF(E8=0,0,E8))*(IF(D8>0,$K5,1))","v":0}]
[null,null,null,null,null,"Caution:  Calculated Column - Make No Changes Here",null,null,null,null,null,{"$f":"(IF(D9=0,0,D9)+IF(E9=0,0,E9))*(IF(D9>0,$K$5,1))+F8","v":0}]
["Date","Item # or Type Transaction","Description","Disbursements","Receipts","Balance",null,null,null,null,null,0]
[null,null,null,null,null,{"$f":"(IF(D8=0,0,D8)+IF(E8=0,0,E8))*(IF(D8>0,$K$5,1))","v":0},null,null,null,null,null,0]
[null,null,null,null,null,{"$f":"IF(D9+E9=0,0,L6)","v":0},null,null,null,null,null,0]
[null,null,null,null,null,0,null,null,null,null,null,0]
[null,null,null,null,null,0,null,null,null,null,null,0]
[null,null,null,null,null,0,null,null,null,null,null,0]
[null,null,null,null,null,0,null,null,null,null,null,0]
[null,null,null,null,null,0,null,null,null,null,null,0]
[null,null,null,null,null,0,null,null,null,null,null,0]
[null,null,null,null,null,0,null,null,null,null,null,0]
[null,null,null,null,null,0,null,null,null,null,null,0]
[null,null,null,null,null,0,null,null,null,null,null,0]
[null,null,null,null,null,0,null,null,null,null,null,0]
[null,null,null,null,null,0,null,null,null,null,null,0]
[null,null,null,null,null,0,null,null,null,null,null,0]
[null,null,null,null,null,0,null,null,null,null,null,0]
[null,null,null,null,null,0,null,null,null,null,null,0]
[null,null,null,null,null,0,null,null,null,null,null,0]
[null,null,null,null,null,0,null,null,null,null,null,0]
[null,null,null,null,null,0,null,null,null,null,null,0]
[null,null,null,null,null,0,null,null,null,null,null,0]
[null,null,null,null,null,0,null,null,null,null,null,0]
[null,null,null,null,null,0,null,null,null,null,null,0]
[null,null,null,null,null,0,null,null,null,null,null,0]
[null,null,null,null,null,0,null,null,null,null,null,0]
[null,null,null,null,null,0,null,null,null,null,null,0]
[null,null,null,null,null,0,null,null,null,null,null,0]
[null,null,null,null,null,0,null,null,null,null,null,0]
[null,null,null,null,null,0,null,null,null,null,null,0]
[null,null,null,null,null,0,null,null,null,null,null,0]
[null,null,null,null,null,0,null,null,null,null,null,0]
[null,null,null,null,null,0,null,null,null,null,null,0]
[null,null,null,null,null,0,null,null,null,null,null,0]
[null,null,null,null,null,0,null,null,null,null,null,0]
[null,null,null,null,null,0,null,null,null,null,null,0]
[null,null,null,null,null,0,null,null,null,null,null,0]
[null,null,null,null,null,0,null,null,null,null,null,0]
[null,null,null,null,null,0,null,null,null,null,null,0]
[null,null,null,null,null,0,null,null,null,null,null,0]
[null,null,null,null,null,0,null,null,null,null,null,0]
[null,null,null,null,null,0,null,null,null,null,null,0]
[null,null,null,null,null,0,null,null,null,null,null,0]
[null,null,null,null,null,0,null,null,null,null,null,0]
[null,null,null,null,null,0,null,null,null,null,null,0]
[null,null,null,null,null,0,null,null,null,null,null,0]
[null,null,null,null,null,0,null,null,null,null,null,0]
[null,null,null,null,null,0,null,null,null,null,null,0]
[null,null,null,null,null,0,null,null,null,null,null,0]
[null,null,null,null,null,0,null,null,null,null,null,0]
[null,null,null,null,null,0,null,null,null,null,null,0]
[null,null,null,null,null,0,null,null,null,null,null,0]
[null,null,null,null,null,0,null,null,null,null,null,0]
[null,null,null,null,null,0,null,null,null,null,null,0]
[null,null,null,null,null,0,null,null,null,null,null,0]
[null,null,null,null,null,0,null,null,null,null,null,0]
[null,null,null,null,null,0,null,null,null,null,null,0]
[null,null,null,null,null,0,null,null,null,null,null,0]
[null,null,null,null,null,0,null,null,null,null,null,0]
[null,null,null,null,null,0,null,null,null,null,null,0]
[null,null,null,null,null,0,null,null,null,null,null,0]
[null,null,null,null,null,0,null,null,null,null,null,0]
[null,null,null,null,null,0,null,null,null,null,null,0]
[null,null,null,null,null,0,null,null,null,null,null,0]
[null,null,null,null,null,0,null,null,null,null,null,{"$f":"(IF(D73=0,0,D73)+IF(E73=0,0,E73))*(IF(D73>0,$K$5,1))+F72","v":0}]
[null,null,null,null,null,0,null,null,null,null,null,0]
[null,null,null,null,null,0,null,null,null,null,null,0]
[null,null,null,null,null,{"$f":"IF(D73+E73=0,0,L70)","v":0},null,null,null,null,null,0]
[null,null,null,null,null,0,null,null,null,null,null,0]
[null,null,null,null,null,0,null,null,null,null,null,0]
[null,null,null,null,null,0,null,null,null,null,null,0]
[null,null,null,null,null,0,null,null,null,null,null,0]
[null,null,null,null,null,0,null,null,null,null,null,0]
[null,null,null,null,null,0,null,null,null,null,null,0]
[null,null,null,null,null,0,null,null,null,null,null,0]
[null,null,null,null,null,0,null,null,null,null,null,0]
[null,null,null,null,null,0,null,null,null,null,null,0]
[null,null,null,null,null,0,null,null,null,null,null,0]
[null,null,null,null,null,0,null,null,null,null,null,0]
[null,null,null,null,null,0,null,null,null,null,null,0]
[null,null,null,null,null,0,null,null,null,null,null,0]
[null,null,null,null,null,0,null,null,null,null,null,0]
[null,null,null,null,null,0,null,null,null,null,null,0]
[null,null,null,null,null,0,null,null,null,null,null,0]
[null,null,null,null,null,0,null,null,null,null,null,0]
[null,null,null,null,null,0,null,null,null,null,null,0]
[null,null,null,null,null,0,null,null,null,null,null,0]
[null,null,null,null,null,0,null,null,null,null,null,0]
[null,null,null,null,null,0,null,null,null,null,null,0]
[null,null,null,null,null,0,null,null,null,null,null,0]
[null,null,null,null,null,0,null,null,null,null,null,0]
[null,null,null,null,null,0,null,null,null,null,null,0]
[null,null,null,null,null,0,null,null,null,null,null,0]
[null,null,null,null,null,0,null,null,null,null,null,0]
[null,null,null,null,null,0,null,null,null,null,null,0]
[null,null,null,null,null,0,null,null,null,null,null,0]
[null,null,null,null,null,0,null,null,null,null,null,0]
[null,null,null,null,null,0,null,null,null,null,null,0]
[null,null,null,null,null,0,null,null,null,null,null,0]
[null,null,null,null,null,0,null,null,null,null,null,0]
[null,null,null,null,null,0,null,null,null,null,null,0]
[null,null,null,null,null,0,null,null,null,null,null,0]
[null,null,null,null,null,0,null,null,null,null,null,0]
[null,null,null,null,null,0,null,null,null,null,null,0]
[null,null,null,null,null,0,null,null,null,null,null,0]
[null,null,null,null,null,0,null,null,null,null,null,0]
[null,null,null,null,null,0,null,null,null,null,null,0]
[null,null,null,null,null,0,null,null,null,null,null,0]
[null,null,null,null,null,0,null,null,null,null,null,0]
[null,null,null,null,null,0,null,null,null,null,null,0]
[null,null,null,null,null,0,null,null,null,null,null,0]
[null,null,null,null,null,0,null,null,null,null,null,0]
[null,null,null,null,null,0,null,null,null,null,null,0]
[null,null,null,null,null,0,null,null,null,null,null,0]
[null,null,null,null,null,0,null,null,null,null,null,0]
[null,null,null,null,null,0,null,null,null,null,null,0]
[null,null,null,null,null,0,null,null,null,null,null,0]
[null,null,null,null,null,0,null,null,null,null,null,0]
[null,null,null,null,null,0,null,null,null,null,null,0]
[null,null,null,null,null,0,null,null,null,null,null,0]
[null,null,null,null,null,0,null,null,null,null,null,0]
[null,null,null,null,null,0,null,null,null,null,null,0]
[null,null,null,null,null,0,null,null,null,null,null,0]
[null,null,null,null,null,0,null,null,null,null,null,0]
[null,null,null,null,null,0,null,null,null,null,null,0]
[null,null,null,null,null,0,null,null,null,null,null,0]
[null,null,null,null,null,0,null,null,null,null,null,0]
[null,null,null,null,null,0,null,null,null,null,null,0]
[null,null,null,null,null,0,null,null,null,null,null,{"$f":"(IF(D137=0,0,D137)+IF(E137=0,0,E137))*(IF(D137>0,$K$5,1))+F136","v":0}]
[null,null,null,null,null,0,null,null,null,null,null,0]
[null,null,null,null,null,0,null,null,null,null,null,0]
[null,null,null,null,null,{"$f":"IF(D137+E137=0,0,L134)","v":0},null,null,null,null,null,0]
[null,null,null,null,null,0,null,null,null,null,null,0]
[null,null,null,null,null,0,null,null,null,null,null,0]
[null,null,null,null,null,0,null,null,null,null,null,0]
[null,null,null,null,null,0,null,null,null,null,null,0]
[null,null,null,null,null,0,null,null,null,null,null,0]
[null,null,null,null,null,0,null,null,null,null,null,0]
[null,null,null,null,null,0,null,null,null,null,null,0]
[null,null,null,null,null,0,null,null,null,null,null,0]
[null,null,null,null,null,0,null,null,null,null,null,0]
[null,null,null,null,null,0,null,null,null,null,null,0]
[null,null,null,null,null,0,null,null,null,null,null,0]
[null,null,null,null,null,0,null,null,null,null,null,0]
[null,null,null,null,null,0,null,null,null,null,null,0]
[null,null,null,null,null,0,null,null,null,null,null,0]
[null,null,null,null,null,0,null,null,null,null,null,0]
[null,null,null,null,null,0,null,null,null,null,null,0]
[null,null,null,null,null,0,null,null,null,null,null,0]
[null,null,null,null,null,0,null,null,null,null,null,0]
[null,null,null,null,null,0,null,null,null,null,null,0]
[null,null,null,null,null,0,null,null,null,null,null,0]
[null,null,null,null,null,0,null,null,null,null,null,0]
[null,null,null,null,null,0,null,null,null,null,null,0]
[null,null,null,null,null,0,null,null,null,null,null,0]
[null,null,null,null,null,0,null,null,null,null,null,0]
[null,null,null,null,null,0,null,null,null,null,null,0]
[null,null,null,null,null,0,null,null,null,null,null,0]
[null,null,null,null,null,0,null,null,null,null,null,0]
[null,null,null,null,null,0,null,null,null,null,null,0]
[null,null,null,null,null,0,null,null,null,null,null,0]
[null,null,null,null,null,0,null,null,null,null,null,0]
[null,null,null,null,null,0,null,null,null,null,null,0]
[null,null,null,null,null,0,null,null,null,null,null,0]
[null,null,null,null,null,0,null,null,null,null,null,0]
[null,null,null,null,null,0,null,null,null,null,null,0]
[null,null,null,null,null,0,null,null,null,null,null,0]
[null,null,null,null,null,0,null,null,null,null,null,0]
[null,null,null,null,null,0,null,null,null,null,null,0]
[null,null,null,null,null,0,null,null,null,null,null,0]
[null,null,null,null,null,0,null,null,null,null,null,0]
[null,null,null,null,null,0,null,null,null,null,null,0]
[null,null,null,null,null,0,null,null,null,null,null,0]
[null,null,null,null,null,0,null,null,null,null,null,0]
[null,null,null,null,null,0,null,null,null,null,null,0]
[null,null,null,null,null,0,null,null,null,null,null,0]
[null,null,null,null,null,0,null,null,null,null,null,0]
[null,null,null,null,null,0,null,null,null,null,null,0]
[null,null,null,null,null,0,null,null,null,null,null,0]
[null,null,null,null,null,0,null,null,null,null,null,0]
[null,null,null,null,null,0,null,null,null,null,null,0]
[null,null,null,null,null,0,null,null,null,null,null,0]
[null,null,null,null,null,0,null,null,null,null,null,0]
[null,null,null,null,null,0,null,null,null,null,null,0]
[null,null,null,null,null,0,null,null,null,null,null,0]
[null,null,null,null,null,0,null,null,null,null,null,0]
[null,null,null,null,null,0,null,null,null,null,null,0]
[null,null,null,null,null,0,null,null,null,null,null,0]
[null,null,null,null,null,0,null,null,null,null,null,0]
[null,null,null,null,null,0,null,null,null,null,null,0]
[null,null,null,null,null,0,null,null,null,null,null,0]
[null,null,null,null,null,0,null,null,null,null,null,0]
[null,null,null,null,null,0,null,null,null,null,null,{"$f":"(IF(D201=0,0,D201)+IF(E201=0,0,E201))*(IF(D201>0,$K$5,1))+F200","v":0}]
[null,null,null,null,null,0,null,null,null,null,null,0]
[null,null,null,null,null,0,null,null,null,null,null,0]
[null,null,null,null,null,{"$f":"IF(D201+E201=0,0,L198)","v":0},null,null,null,null,null,0]
[null,null,null,null,null,0,null,null,null,null,null,0]
[null,null,null,null,null,0,null,null,null,null,null,0]
[null,null,null,null,null,0,null,null,null,null,null,0]
[null,null,null,null,null,0,null,null,null,null,null,0]
[null,null,null,null,null,0,null,null,null,null,null,0]
[null,null,null,null,null,0,null,null,null,null,null,0]
[null,null,null,null,null,0,null,null,null,null,null,0]
[null,null,null,null,null,0,null,null,null,null,null,0]
[null,null,null,null,null,0,null,null,null,null,null,0]
[null,null,null,null,null,0,null,null,null,null,null,0]
[null,null,null,null,null,0,null,null,null,null,null,0]
[null,null,null,null,null,0,null,null,null,null,null,0]
[null,null,null,null,null,0,null,null,null,null,null,0]
[null,null,null,null,null,0,null,null,null,null,null,0]
[null,null,null,null,null,0,null,null,null,null,null,0]
[null,null,null,null,null,0,null,null,null,null,null,0]
[null,null,null,null,null,0,null,null,null,null,null,0]
[null,null,null,null,null,0,null,null,null,null,null,0]
[null,null,null,null,null,0,null,null,null,null,null,0]
[null,null,null,null,null,0,null,null,null,null,null,0]
[null,null,null,null,null,0,null,null,null,null,null,0]
[null,null,null,null,null,0,null,null,null,null,null,0]
[null,null,null,null,null,0,null,null,null,null,null,0]
[null,null,null,null,null,0,null,null,null,null,null,0]
[null,null,null,null,null,0,null,null,null,null,null,0]
[null,null,null,null,null,0,null,null,null,null,null,0]
[null,null,null,null,null,0,null,null,null,null,null,0]
[null,null,null,null,null,0,null,null,null,null,null,0]
[null,null,null,null,null,0,null,null,null,null,null,0]
[null,null,null,null,null,0,null,null,null,null,null,0]
[null,null,null,null,null,0,null,null,null,null,null,0]
[null,null,null,null,null,0,null,null,null,null,null,0]
[null,null,null,null,null,0,null,null,null,null,null,0]
[null,null,null,null,null,0,null,null,null,null,null,0]
[null,null,null,null,null,0,null,null,null,null,null,0]
[null,null,null,null,null,0,null,null,null,null,null,0]
[null,null,null,null,null,0,null,null,null,null,null,0]
[null,null,null,null,null,0,null,null,null,null,null,0]
[null,null,null,null,null,0,null,null,null,null,null,0]
[null,null,null,null,null,0,null,null,null,null,null,0]
[null,null,null,null,null,0,null,null,null,null,null,0]
[null,null,null,null,null,0,null,null,null,null,null,0]
[null,null,null,null,null,0,null,null,null,null,null,0]
[null,null,null,null,null,0,null,null,null,null,null,0]
[null,null,null,null,null,0,null,null,null,null,null,0]
[null,null,null,null,null,0,null,null,null,null,null,0]
[null,null,null,null,null,0,null,null,null,null,null,0]
[null,null,null,null,null,0,null,null,null,null,null,0]
[null,null,null,null,null,0,null,null,null,null,null,0]
[null,null,null,null,null,0,null,null,null,null,null,0]
[null,null,null,null,null,0,null,null,null,null,null,0]
[null,null,null,null,null,0,null,null,null,null,null,0]
[null,null,null,null,null,0,null,null,null,null,null,0]
[null,null,null,null,null,0,null,null,null,null,null,0]
[null,null,null,null,null,0,null,null,null,null,null,0]
[null,null,null,null,null,0,null,null,null,null,null,0]
[null,null,null,null,null,0,null,null,null,null,null,0]
[null,null,null,null,null,0,null,null,null,null,null,0]
[null,null,null,null,null,0,null,null,null,null,null,0]
[null,null,null,null,null,0,null,null,null,null,null,0]
[null,null,null,null,null,0,null,null,null,null,null,{"$f":"(IF(D265=0,0,D265)+IF(E265=0,0,E265))*(IF(D265>0,$K$5,1))+F264","v":0}]
[null,null,null,null,null,0,null,null,null,null,null,0]
[null,null,null,null,null,0,null,null,null,null,null,0]
[null,null,null,null,null,{"$f":"IF(D265+E265=0,0,L262)","v":0},null,null,null,null,null,0]
[null,null,null,null,null,0,null,null,null,null,null,0]
[null,null,null,null,null,0,null,null,null,null,null,0]
[null,null,null,null,null,0,null,null,null,null,null,0]
[null,null,null,null,null,0,null,null,null,null,null,0]
[null,null,null,null,null,0,null,null,null,null,null,0]
[null,null,null,null,null,0,null,null,null,null,null,0]
[null,null,null,null,null,0,null,null,null,null,null,0]
[null,null,null,null,null,0,null,null,null,null,null,0]
[null,null,null,null,null,0,null,null,null,null,null,0]
[null,null,null,null,null,0,null,null,null,null,null,0]
[null,null,null,null,null,0,null,null,null,null,null,0]
[null,null,null,null,null,0,null,null,null,null,null,0]
[null,null,null,null,null,0,null,null,null,null,null,0]
[null,null,null,null,null,0,null,null,null,null,null,0]
[null,null,null,null,null,0,null,null,null,null,null,0]
[null,null,null,null,null,0,null,null,null,null,null,0]
[null,null,null,null,null,0,null,null,null,null,null,0]
[null,null,null,null,null,0,null,null,null,null,null,0]
[null,null,null,null,null,0,null,null,null,null,null,0]
[null,null,null,null,null,0,null,null,null,null,null,0]
[null,null,null,null,null,0,null,null,null,null,null,0]
[null,null,null,null,null,0,null,null,null,null,null,0]
[null,null,null,null,null,0,null,null,null,null,null,0]
[null,null,null,null,null,0,null,null,null,null,null,0]
[null,null,null,null,null,0,null,null,null,null,null,0]
[null,null,null,null,null,0,null,null,null,null,null,0]
[null,null,null,null,null,0,null,null,null,null,null,0]
[null,null,null,null,null,0,null,null,null,null,null,0]
[null,null,null,null,null,0,null,null,null,null,null,0]
[null,null,null,null,null,0,null,null,null,null,null,0]
[null,null,null,null,null,0,null,null,null,null,null,0]
[null,null,null,null,null,0,null,null,null,null,null,0]
[null,null,null,null,null,0,null,null,null,null,null,0]
[null,null,null,null,null,0,null,null,null,null,null,0]
[null,null,null,null,null,0,null,null,null,null,null,0]
[null,null,null,null,null,0,null,null,null,null,null,0]
[null,null,null,null,null,0,null,null,null,null,null,0]
[null,null,null,null,null,0,null,null,null,null,null,0]
[null,null,null,null,null,0,null,null,null,null,null,0]
[null,null,null,null,null,0,null,null,null,null,null,0]
[null,null,null,null,null,0,null,null,null,null,null,0]
[null,null,null,null,null,0,null,null,null,null,null,0]
[null,null,null,null,null,0,null,null,null,null,null,0]
[null,null,null,null,null,0,null,null,null,null,null,0]
[null,null,null,null,null,0,null,null,null,null,null,0]
[null,null,null,null,null,0,null,null,null,null,null,0]
[null,null,null,null,null,0,null,null,null,null,null,0]
[null,null,null,null,null,0,null,null,null,null,null,0]
[null,null,null,null,null,0,null,null,null,null,null,0]
[null,null,null,null,null,0,null,null,null,null,null,0]
[null,null,null,null,null,0,null,null,null,null,null,0]
[null,null,null,null,null,0,null,null,null,null,null,0]
[null,null,null,null,null,0,null,null,null,null,null,0]
[null,null,null,null,null,0,null,null,null,null,null,0]
[null,null,null,null,null,0,null,null,null,null,null,0]
[null,null,null,null,null,0,null,null,null,null,null,0]
[null,null,null,null,null,0,null,null,null,null,null,0]
[null,null,null,null,null,0,null,null,null,null,null,0]
[null,null,null,null,null,0,null,null,null,null,null,0]
[null,null,null,null,null,0,null,null,null,null,null,0]
[null,null,null,null,null,0,null,null,null,null,null,{"$f":"(IF(D329=0,0,D329)+IF(E329=0,0,E329))*(IF(D329>0,$K$5,1))+F328","v":0}]
[null,null,null,null,null,0,null,null,null,null,null,0]
[null,null,null,null,null,0,null,null,null,null,null,0]
[null,null,null,null,null,{"$f":"IF(D329+E329=0,0,L326)","v":0},null,null,null,null,null,0]
[null,null,null,null,null,0,null,null,null,null,null,0]
[null,null,null,null,null,0,null,null,null,null,null,0]
[null,null,null,null,null,0,null,null,null,null,null,0]
[null,null,null,null,null,0,null,null,null,null,null,0]
[null,null,null,null,null,0,null,null,null,null,null,0]
[null,null,null,null,null,0,null,null,null,null,null,0]
[null,null,null,null,null,0,null,null,null,null,null,0]
[null,null,null,null,null,0,null,null,null,null,null,0]
[null,null,null,null,null,0,null,null,null,null,null,0]
[null,null,null,null,null,0,null,null,null,null,null,0]
[null,null,null,null,null,0,null,null,null,null,null,0]
[null,null,null,null,null,0,null,null,null,null,null,0]
[null,null,null,null,null,0,null,null,null,null,null,0]
[null,null,null,null,null,0,null,null,null,null,null,0]
[null,null,null,null,null,0,null,null,null,null,null,0]
[null,null,null,null,null,0,null,null,null,null,null,0]
[null,null,null,null,null,0,null,null,null,null,null,0]
[null,null,null,null,null,0,null,null,null,null,null,0]
[null,null,null,null,null,0,null,null,null,null,null,0]
[null,null,null,null,null,0,null,null,null,null,null,0]
[null,null,null,null,null,0,null,null,null,null,null,0]
[null,null,null,null,null,0,null,null,null,null,null,0]
[null,null,null,null,null,0,null,null,null,null,null,0]
[null,null,null,null,null,0,null,null,null,null,null,0]
[null,null,null,null,null,0,null,null,null,null,null,0]
[null,null,null,null,null,0,null,null,null,null,null,0]
[null,null,null,null,null,0,null,null,null,null,null,0]
[null,null,null,null,null,0,null,null,null,null,null,0]
[null,null,null,null,null,0,null,null,null,null,null,0]
[null,null,null,null,null,0,null,null,null,null,null,0]
[null,null,null,null,null,0,null,null,null,null,null,0]
[null,null,null,null,null,0,null,null,null,null,null,0]
[null,null,null,null,null,0,null,null,null,null,null,0]
[null,null,null,null,null,0,null,null,null,null,null,0]
[null,null,null,null,null,0,null,null,null,null,null,0]
[null,null,null,null,null,0,null,null,null,null,null,0]
[null,null,null,null,null,0,null,null,null,null,null,0]
[null,null,null,null,null,0,null,null,null,null,null,0]
[null,null,null,null,null,0,null,null,null,null,null,0]
[null,null,null,null,null,0,null,null,null,null,null,0]
[null,null,null,null,null,0,null,null,null,null,null,0]
[null,null,null,null,null,0,null,null,null,null,null,0]
[null,null,null,null,null,0,null,null,null,null,null,0]
[null,null,null,null,null,0,null,null,null,null,null,0]
[null,null,null,null,null,0,null,null,null,null,null,0]
[null,null,null,null,null,0,null,null,null,null,null,0]
[null,null,null,null,null,0,null,null,null,null,null,0]
[null,null,null,null,null,0,null,null,null,null,null,0]
[null,null,null,null,null,0,null,null,null,null,null,0]
[null,null,null,null,null,0,null,null,null,null,null,0]
[null,null,null,null,null,0,null,null,null,null,null,0]
[null,null,null,null,null,0,null,null,null,null,null,0]
[null,null,null,null,null,0,null,null,null,null,null,0]
[null,null,null,null,null,0,null,null,null,null,null,0]
[null,null,null,null,null,0,null,null,null,null,null,0]
[null,null,null,null,null,0,null,null,null,null,null,0]
[null,null,null,null,null,0,null,null,null,null,null,0]
[null,null,null,null,null,0,null,null,null,null,null,0]
[null,null,null,null,null,0,null,null,null,null,null,0]
[null,null,null,null,null,0,null,null,null,null,null,0]
[null,null,null,null,null,0,null,null,null,null,null,{"$f":"(IF(D393=0,0,D393)+IF(E393=0,0,E393))*(IF(D393>0,$K$5,1))+F392","v":0}]
[null,null,null,null,null,0,null,null,null,null,null,0]
[null,null,null,null,null,0,null,null,null,null,null,0]
[null,null,null,null,null,{"$f":"IF(D393+E393=0,0,L390)","v":0},null,null,null,null,null,0]
[null,null,null,null,null,0,null,null,null,null,null,0]
[null,null,null,null,null,0,null,null,null,null,null,0]
[null,null,null,null,null,0,null,null,null,null,null,0]
[null,null,null,null,null,0,null,null,null,null,null,0]
[null,null,null,null,null,0,null,null,null,null,null,0]
[null,null,null,null,null,0,null,null,null,null,null,0]
[null,null,null,null,null,0,null,null,null,null,null,0]
[null,null,null,null,null,0,null,null,null,null,null,0]
[null,null,null,null,null,0,null,null,null,null,null,0]
[null,null,null,null,null,0,null,null,null,null,null,0]
[null,null,null,null,null,0,null,null,null,null,null,0]
[null,null,null,null,null,0,null,null,null,null,null,0]
[null,null,null,null,null,0,null,null,null,null,null,0]
[null,null,null,null,null,0,null,null,null,null,null,0]
[null,null,null,null,null,0,null,null,null,null,null,0]
[null,null,null,null,null,0,null,null,null,null,null,0]
[null,null,null,null,null,0,null,null,null,null,null,0]
[null,null,null,null,null,0,null,null,null,null,null,0]
[null,null,null,null,null,0,null,null,null,null,null,0]
[null,null,null,null,null,0,null,null,null,null,null,0]
[null,null,null,null,null,0,null,null,null,null,null,0]
[null,null,null,null,null,0,null,null,null,null,null,0]
[null,null,null,null,null,0,null,null,null,null,null,0]
[null,null,null,null,null,0,null,null,null,null,null,0]
[null,null,null,null,null,0,null,null,null,null,null,0]
[null,null,null,null,null,0,null,null,null,null,null,0]
[null,null,null,null,null,0,null,null,null,null,null,0]
[null,null,null,null,null,0,null,null,null,null,null,0]
[null,null,null,null,null,0,null,null,null,null,null,0]
[null,null,null,null,null,0,null,null,null,null,null,0]
[null,null,null,null,null,0,null,null,null,null,null,0]
[null,null,null,null,null,0,null,null,null,null,null,0]
[null,null,null,null,null,0,null,null,null,null,null,0]
[null,null,null,null,null,0,null,null,null,null,null,0]
[null,null,null,null,null,0,null,null,null,null,null,0]
[null,null,null,null,null,0,null,null,null,null,null,0]
[null,null,null,null,null,0,null,null,null,null,null,0]
[null,null,null,null,null,0,null,null,null,null,null,0]
[null,null,null,null,null,0,null,null,null,null,null,0]
[null,null,null,null,null,0,null,null,null,null,null,0]
[null,null,null,null,null,0,null,null,null,null,null,0]
[null,null,null,null,null,0,null,null,null,null,null,0]
[null,null,null,null,null,0,null,null,null,null,null,0]
[null,null,null,null,null,0,null,null,null,null,null,0]
[null,null,null,null,null,0,null,null,null,null,null,0]
[null,null,null,null,null,0,null,null,null,null,null,0]
[null,null,null,null,null,0,null,null,null,null,null,0]
[null,null,null,null,null,0,null,null,null,null,null,0]
[null,null,null,null,null,0,null,null,null,null,null,0]
[null,null,null,null,null,0,null,null,null,null,null,0]
[null,null,null,null,null,0,null,null,null,null,null,0]
[null,null,null,null,null,0,null,null,null,null,null,0]
[null,null,null,null,null,0,null,null,null,null,null,0]
[null,null,null,null,null,0,null,null,null,null,null,0]
[null,null,null,null,null,0,null,null,null,null,null,0]
[null,null,null,null,null,0,null,null,null,null,null,0]
[null,null,null,null,null,0,null,null,null,null,null,0]
[null,null,null,null,null,0,null,null,null,null,null,0]
[null,null,null,null,null,0,null,null,null,null,null,0]
[null,null,null,null,null,0,null,null,null,null,null,0]
[null,null,null,null,null,0,null,null,null,null,null,{"$f":"(IF(D457=0,0,D457)+IF(E457=0,0,E457))*(IF(D457>0,$K$5,1))+F456","v":0}]
[null,null,null,null,null,0,null,null,null,null,null,0]
[null,null,null,null,null,0,null,null,null,null,null,0]
[null,null,null,null,null,{"$f":"IF(D457+E457=0,0,L454)","v":0},null,null,null,null,null,0]
[null,null,null,null,null,0,null,null,null,null,null,0]
[null,null,null,null,null,0,null,null,null,null,null,0]
[null,null,null,null,null,0,null,null,null,null,null,0]
[null,null,null,null,null,0,null,null,null,null,null,0]
[null,null,null,null,null,0,null,null,null,null,null,0]
[null,null,null,null,null,0,null,null,null,null,null,0]
[null,null,null,null,null,0,null,null,null,null,null,0]
[null,null,null,null,null,0,null,null,null,null,null,0]
[null,null,null,null,null,0,null,null,null,null,null,0]
[null,null,null,null,null,0,null,null,null,null,null,0]
[null,null,null,null,null,0,null,null,null,null,null,0]
[null,null,null,null,null,0,null,null,null,null,null,0]
[null,null,null,null,null,0,null,null,null,null,null,0]
[null,null,null,null,null,0,null,null,null,null,null,0]
[null,null,null,null,null,0,null,null,null,null,null,0]
[null,null,null,null,null,0,null,null,null,null,null,0]
[null,null,null,null,null,0,null,null,null,null,null,0]
[null,null,null,null,null,0,null,null,null,null,null,0]
[null,null,null,null,null,0,null,null,null,null,null,0]
[null,null,null,null,null,0,null,null,null,null,null,0]
[null,null,null,null,null,0,null,null,null,null,null,0]
[null,null,null,null,null,0,null,null,null,null,null,0]
[null,null,null,null,null,0,null,null,null,null,null,0]
[null,null,null,null,null,0,null,null,null,null,null,0]
[null,null,null,null,null,0,null,null,null,null,null,0]
[null,null,null,null,null,0,null,null,null,null,null,0]
[null,null,null,null,null,0,null,null,null,null,null,0]
[null,null,null,null,null,0,null,null,null,null,null,0]
[null,null,null,null,null,0,null,null,null,null,null,0]
[null,null,null,null,null,0,null,null,null,null,null,0]
[null,null,null,null,null,0,null,null,null,null,null,0]
[null,null,null,null,null,0,null,null,null,null,null,0]
[null,null,null,null,null,0,null,null,null,null,null,0]
[null,null,null,null,null,0,null,null,null,null,null,0]
[null,null,null,null,null,0,null,null,null,null,null,0]
[null,null,null,null,null,0,null,null,null,null,null,0]
[null,null,null,null,null,0,null,null,null,null,null,0]
[null,null,null,null,null,0,null,null,null,null,null,0]
[null,null,null,null,null,0,null,null,null,null,null,0]
[null,null,null,null,null,0,null,null,null,null,null,0]
[null,null,null,null,null,0,null,null,null,null,null,0]
[null,null,null,null,null,0,null,null,null,null,null,0]
[null,null,null,null,null,0,null,null,null,null,null,0]
[null,null,null,null,null,0,null,null,null,null,null,0]
[null,null,null,null,null,0,null,null,null,null,null,0]
[null,null,null,null,null,0,null,null,null,null,null,0]
[null,null,null,null,null,0,null,null,null,null,null,0]
[null,null,null,null,null,0,null,null,null,null,null,0]
[null,null,null,null,null,0,null,null,null,null,null,0]
[null,null,null,null,null,0,null,null,null,null,null,0]
[null,null,null,null,null,0,null,null,null,null,null,0]
[null,null,null,null,null,0,null,null,null,null,null,0]
[null,null,null,null,null,0,null,null,null,null,null,0]
[null,null,null,null,null,0,null,null,null,null,null,0]
[null,null,null,null,null,0,null,null,null,null,null,0]
[null,null,null,null,null,0,null,null,null,null,null,0]
[null,null,null,null,null,0,null,null,null,null,null,0]
[null,null,null,null,null,0,null,null,null,null,null,0]
[null,null,null,null,null,0,null,null,null,null,null,0]
[null,null,null,null,null,0,null,null,null,null,null,0]
[null,null,null,null,null,0,null,null,null,null,null,{"$f":"(IF(D521=0,0,D521)+IF(E521=0,0,E521))*(IF(D521>0,$K$5,1))+F520","v":0}]
[null,null,null,null,null,0,null,null,null,null,null,0]
[null,null,null,null,null,0,null,null,null,null,null,0]
[null,null,null,null,null,{"$f":"IF(D521+E521=0,0,L518)","v":0},null,null,null,null,null,0]
[null,null,null,null,null,0,null,null,null,null,null,0]
[null,null,null,null,null,0,null,null,null,null,null,0]
[null,null,null,null,null,0,null,null,null,null,null,0]
[null,null,null,null,null,0,null,null,null,null,null,0]
[null,null,null,null,null,0,null,null,null,null,null,0]
[null,null,null,null,null,0,null,null,null,null,null,0]
[null,null,null,null,null,0,null,null,null,null,null,0]
[null,null,null,null,null,0,null,null,null,null,null,0]
[null,null,null,null,null,0,null,null,null,null,null,0]
[null,null,null,null,null,0,null,null,null,null,null,0]
[null,null,null,null,null,0,null,null,null,null,null,0]
[null,null,null,null,null,0,null,null,null,null,null,0]
[null,null,null,null,null,0,null,null,null,null,null,0]
[null,null,null,null,null,0,null,null,null,null,null,0]
[null,null,null,null,null,0,null,null,null,null,null,0]
[null,null,null,null,null,0,null,null,null,null,null,0]
[null,null,null,null,null,0,null,null,null,null,null,0]
[null,null,null,null,null,0,null,null,null,null,null,0]
[null,null,null,null,null,0,null,null,null,null,null,0]
[null,null,null,null,null,0,null,null,null,null,null,0]
[null,null,null,null,null,0,null,null,null,null,null,0]
[null,null,null,null,null,0,null,null,null,null,null,0]
[null,null,null,null,null,0,null,null,null,null,null,0]
[null,null,null,null,null,0,null,null,null,null,null,0]
[null,null,null,null,null,0,null,null,null,null,null,0]
[null,null,null,null,null,0,null,null,null,null,null,0]
[null,null,null,null,null,0,null,null,null,null,null,0]
[null,null,null,null,null,0,null,null,null,null,null,0]
[null,null,null,null,null,0,null,null,null,null,null,0]
[null,null,null,null,null,0,null,null,null,null,null,0]
[null,null,null,null,null,0,null,null,null,null,null,0]
[null,null,null,null,null,0,null,null,null,null,null,0]
[null,null,null,null,null,0,null,null,null,null,null,0]
[null,null,null,null,null,0,null,null,null,null,null,0]
[null,null,null,null,null,0,null,null,null,null,null,0]
[null,null,null,null,null,0,null,null,null,null,null,0]
[null,null,null,null,null,0,null,null,null,null,null,0]
[null,null,null,null,null,0,null,null,null,null,null,0]
[null,null,null,null,null,0,null,null,null,null,null,0]
[null,null,null,null,null,0,null,null,null,null,null,0]
[null,null,null,null,null,0,null,null,null,null,null,0]
[null,null,null,null,null,0,null,null,null,null,null,0]
[null,null,null,null,null,0,null,null,null,null,null,0]
[null,null,null,null,null,0,null,null,null,null,null,0]
[null,null,null,null,null,0,null,null,null,null,null,0]
[null,null,null,null,null,0,null,null,null,null,null,0]
[null,null,null,null,null,0,null,null,null,null,null,0]
[null,null,null,null,null,0,null,null,null,null,null,0]
[null,null,null,null,null,0,null,null,null,null,null,0]
[null,null,null,null,null,0,null,null,null,null,null,0]
[null,null,null,null,null,0,null,null,null,null,null,0]
[null,null,null,null,null,0,null,null,null,null,null,0]
[null,null,null,null,null,0,null,null,null,null,null,0]
[null,null,null,null,null,0,null,null,null,null,null,0]
[null,null,null,null,null,0,null,null,null,null,null,0]
[null,null,null,null,null,0,null,null,null,null,null,0]
[null,null,null,null,null,0,null,null,null,null,null,0]
[null,null,null,null,null,0,null,null,null,null,null,0]
[null,null,null,null,null,0,null,null,null,null,null,0]
[null,null,null,null,null,0,null,null,null,null,null,0]
[null,null,null,null,null,0,null,null,null,null,null,{"$f":"(IF(D585=0,0,D585)+IF(E585=0,0,E585))*(IF(D585>0,$K$5,1))+F584","v":0}]
[null,null,null,null,null,0,null,null,null,null,null,0]
[null,null,null,null,null,0,null,null,null,null,null,0]
[null,null,null,null,null,{"$f":"IF(D585+E585=0,0,L582)","v":0},null,null,null,null,null,0]
[null,null,null,null,null,0,null,null,null,null,null,0]
[null,null,null,null,null,0,null,null,null,null,null,0]
[null,null,null,null,null,0,null,null,null,null,null,0]
[null,null,null,null,null,0,null,null,null,null,null,0]
[null,null,null,null,null,0,null,null,null,null,null,0]
[null,null,null,null,null,0,null,null,null,null,null,0]
[null,null,null,null,null,0,null,null,null,null,null,0]
[null,null,null,null,null,0,null,null,null,null,null,0]
[null,null,null,null,null,0,null,null,null,null,null,0]
[null,null,null,null,null,0,null,null,null,null,null,0]
[null,null,null,null,null,0,null,null,null,null,null,0]
[null,null,null,null,null,0,null,null,null,null,null,0]
[null,null,null,null,null,0,null,null,null,null,null,0]
[null,null,null,null,null,0,null,null,null,null,null,0]
[null,null,null,null,null,0,null,null,null,null,null,0]
[null,null,null,null,null,0]
[null,null,null,null,null,0]
[null,null,null,null,null,0]

{"sheet":"Ledger Template","index":7,"n_rows":603,"n_cols":12,"rows_kept":603,"cut":false,"hidden":false,"merged":[[3,0,3,1],[4,0,4,1],[3,9,3,12]]}
[null,null,"Trust Account of "]
["Fiscal Year 20xx",null,"Client-Matter Ledger"]
[]
["Client Name and/or Number",null,null,"Date Opened",null,null,null,null,null,"MAKE NO CHANGES IN THESE COLUMNS"]
["Matter Name and/or Number",null,null,null,null,null,null,null,null,null,-1,{"$f":"(IF(D8=0,0,D8)+IF(E8=0,0,E8))*(IF(D8>0,$K5,1))","v":0}]
[null,null,null,null,null,"Caution:  Calculated Column - Make No Changes Here",null,null,null,null,null,{"$f":"(IF(D9=0,0,D9)+IF(E9=0,0,E9))*(IF(D9>0,$K$5,1))+F8","v":0}]
["Date","Item # or Type Transaction","Description","Disbursements","Receipts","Balance",null,null,null,null,null,{"$f":"(IF(D10=0,0,D10)+IF(E10=0,0,E10))*(IF(D10>0,$K$5,1))+F9","v":0}]
[null,null,null,null,null,{"$f":"(IF(D8=0,0,D8)+IF(E8=0,0,E8))*(IF(D8>0,$K$5,1))","v":0},null,null,null,null,null,0]
[null,null,null,null,null,{"$f":"IF(D9+E9=0,0,L6)","v":0},null,null,null,null,null,0]
[null,null,null,null,null,{"$f":"IF(D10+E10=0,0,L7)","v":0},null,null,null,null,null,0]
[null,null,null,null,null,0,null,null,null,null,null,0]
[null,null,null,null,null,0,null,null,null,null,null,0]
[null,null,null,null,null,0,null,null,null,null,null,0]
[null,null,null,null,null,0,null,null,null,null,null,0]
[null,null,null,null,null,0,null,null,null,null,null,0]
[null,null,null,null,null,0,null,null,null,null,null,0]
[null,null,null,null,null,0,null,null,null,null,null,0]
[null,null,null,null,null,0,null,null,null,null,null,0]
[null,null,null,null,null,0,null,null,null,null,null,0]
[null,null,null,null,null,0,null,null,null,null,null,0]
[null,null,null,null,null,0,null,null,null,null,null,0]
[null,null,null,null,null,0,null,null,null,null,null,0]
[null,null,null,null,null,0,null,null,null,null,null,0]
[null,null,null,null,null,0,null,null,null,null,null,0]
[null,null,null,null,null,0,null,null,null,null,null,0]
[null,null,null,null,null,0,null,null,null,null,null,0]
[null,null,null,null,null,0,null,null,null,null,null,0]
[null,null,null,null,null,0,null,null,null,null,null,0]
[null,null,null,null,null,0,null,null,null,null,null,0]
[null,null,null,null,null,0,null,null,null,null,null,0]
[null,null,null,null,null,0,null,null,null,null,null,0]
[null,null,null,null,null,0,null,null,null,null,null,0]
[null,null,null,null,null,0,null,null,null,null,null,0]
[null,null,null,null,null,0,null,null,null,null,null,0]
[null,null,null,null,null,0,null,null,null,null,null,0]
[null,null,null,null,null,0,null,null,null,null,null,0]
[null,null,null,null,null,0,null,null,null,null,null,0]
[null,null,null,null,null,0,null,null,null,null,null,0]
[null,null,null,null,null,0,null,null,null,null,null,0]
[null,null,null,null,null,0,null,null,null,null,null,0]
[null,null,null,null,null,0,null,null,null,null,null,0]
[null,null,null,null,null,0,null,null,null,null,null,0]
[null,null,null,null,null,0,null,null,null,null,null,0]
[null,null,null,null,null,0,null,null,null,null,null,0]
[null,null,null,null,null,0,null,null,null,null,null,0]
[null,null,null,null,null,0,null,null,null,null,null,0]
[null,null,null,null,null,0,null,null,null,null,null,0]
[null,null,null,null,null,0,null,null,null,null,null,0]
[null,null,null,null,null,0,null,null,null,null,null,0]
[null,null,null,null,null,0,null,null,null,null,null,0]
[null,null,null,null,null,0,null,null,null,null,null,0]
[null,null,null,null,null,0,null,null,null,null,null,0]
[null,null,null,null,null,0,null,null,null,null,null,0]
[null,null,null,null,null,0,null,null,null,null,null,0]
[null,null,null,null,null,0,null,null,null,null,null,0]
[null,null,null,null,null,0,null,null,null,null,null,0]
[null,null,null,null,null,0,null,null,null,null,null,0]
[null,null,null,null,null,0,null,null,null,null,null,0]
[null,null,null,null,null,0,null,null,null,null,null,0]
[null,null,null,null,null,0,null,null,null,null,null,0]
[null,null,null,null,null,0,null,null,null,null,null,0]
[null,null,null,null,null,0,null,null,null,null,null,0]
[null,null,null,null,null,0,null,null,null,null,null,0]
[null,null,null,null,null,0,null,null,null,null,null,0]
[null,null,null,null,null,0,null,null,null,null,null,0]
[null,null,null,null,null,0,null,null,null,null,null,0]
[null,null,null,null,null,0,null,null,null,null,null,0]
[null,null,null,null,null,0,null,null,null,null,null,0]
[null,null,null,null,null,0,null,null,null,null,null,0]
[null,null,null,null,null,0,null,null,null,null,null,0]
[null,null,null,null,null,0,null,null,null,null,null,{"$f":"(IF(D74=0,0,D74)+IF(E74=0,0,E74))*(IF(D74>0,$K$5,1))+F73","v":0}]
[null,null,null,null,null,0,null,null,null,null,null,0]
[null,null,null,null,null,0,null,null,null,null,null,0]
[null,null,null,null,null,{"$f":"IF(D74+E74=0,0,L71)","v":0},null,null,null,null,null,0]
[null,null,null,null,null,0,null,null,null,null,null,0]
[null,null,null,null,null,0,null,null,null,null,null,0]
[null,null,null,null,null,0,null,null,null,null,null,0]
[null,null,null,null,null,0,null,null,null,null,null,0]
[null,null,null,null,null,0,null,null,null,null,null,0]
[null,null,null,null,null,0,null,null,null,null,null,0]
[null,null,null,null,null,0,null,null,null,null,null,0]
[null,null,null,null,null,0,null,null,null,null,null,0]
[null,null,null,null,null,0,null,null,null,null,null,0]
[null,null,null,null,null,0,null,null,null,null,null,0]
[null,null,null,null,null,0,null,null,null,null,null,0]
[null,null,null,null,null,0,null,null,null,null,null,0]
[null,null,null,null,null,0,null,null,null,null,null,0]
[null,null,null,null,null,0,null,null,null,null,null,0]
[null,null,null,null,null,0,null,null,null,null,null,0]
[null,null,null,null,null,0,null,null,null,null,null,0]
[null,null,null,null,null,0,null,null,null,null,null,0]
[null,null,null,null,null,0,null,null,null,null,null,0]
[null,null,null,null,null,0,null,null,null,null,null,0]
[null,null,null,null,null,0,null,null,null,null,null,0]
[null,null,null,null,null,0,null,null,null,null,null,0]
[null,null,null,null,null,0,null,null,null,null,null,0]
[null,null,null,null,null,0,null,null,null,null,null,0]
[null,null,null,null,null,0,null,null,null,null,null,0]
[null,null,null,null,null,0,null,null,null,null,null,0]
[null,null,null,null,null,0,null,null,null,null,null,0]
[null,null,null,null,null,0,null,null,null,null,null,0]
[null,null,null,null,null,0,null,null,null,null,null,0]
[null,null,null,null,null,0,null,null,null,null,null,0]
[null,null,null,null,null,0,null,null,null,null,null,0]
[null,null,null,null,null,0,null,null,null,null,null,0]
[null,null,null,null,null,0,null,null,null,null,null,0]
[null,null,null,null,null,0,null,null,null,null,null,0]
[null,null,null,null,null,0,null,null,null,null,null,0]
[null,null,null,null,null,0,null,null,null,null,null,0]
[null,null,null,null,null,0,null,null,null,null,null,0]
[null,null,null,null,null,0,null,null,null,null,null,0]
[null,null,null,null,null,0,null,null,null,null,null,0]
[null,null,null,null,null,0,null,null,null,null,null,0]
[null,null,null,null,null,0,null,null,null,null,null,0]
[null,null,null,null,null,0,null,null,null,null,null,0]
[null,null,null,null,null,0,null,null,null,null,null,0]
[null,null,null,null,null,0,null,null,null,null,null,0]
[null,null,null,null,null,0,null,null,null,null,null,0]
[null,null,null,null,null,0,null,null,null,null,null,0]
[null,null,null,null,null,0,null,null,null,null,null,0]
[null,null,null,null,null,0,null,null,null,null,null,0]
[null,null,null,null,null,0,null,null,null,null,null,0]
[null,null,null,null,null,0,null,null,null,null,null,0]
[null,null,null,null,null,0,null,null,null,null,null,0]
[null,null,null,null,null,0,null,null,null,null,null,0]
[null,null,null,null,null,0,null,null,null,null,null,0]
[null,null,null,null,null,0,null,null,null,null,null,0]
[null,null,null,null,null,0,null,null,null,null,null,0]
[null,null,null,null,null,0,null,null,null,null,null,0]
[null,null,null,null,null,0,null,null,null,null,null,0]
[null,null,null,null,null,0,null,null,null,null,null,0]
[null,null,null,null,null,0,null,null,null,null,null,0]
[null,null,null,null,null,0,null,null,null,null,null,0]
[null,null,null,null,null,0,null,null,null,null,null,0]
[null,null,null,null,null,0,null,null,null,null,null,{"$f":"(IF(D138=0,0,D138)+IF(E138=0,0,E138))*(IF(D138>0,$K$5,1))+F137","v":0}]
[null,null,null,null,null,0,null,null,null,null,null,0]
[null,null,null,null,null,0,null,null,null,null,null,0]
[null,null,null,null,null,{"$f":"IF(D138+E138=0,0,L135)","v":0},null,null,null,null,null,0]
[null,null,null,null,null,0,null,null,null,null,null,0]
[null,null,null,null,null,0,null,null,null,null,null,0]
[null,null,null,null,null,0,null,null,null,null,null,0]
[null,null,null,null,null,0,null,null,null,null,null,0]
[null,null,null,null,null,0,null,null,null,null,null,0]
[null,null,null,null,null,0,null,null,null,null,null,0]
[null,null,null,null,null,0,null,null,null,null,null,0]
[null,null,null,null,null,0,null,null,null,null,null,0]
[null,null,null,null,null,0,null,null,null,null,null,0]
[null,null,null,null,null,0,null,null,null,null,null,0]
[null,null,null,null,null,0,null,null,null,null,null,0]
[null,null,null,null,null,0,null,null,null,null,null,0]
[null,null,null,null,null,0,null,null,null,null,null,0]
[null,null,null,null,null,0,null,null,null,null,null,0]
[null,null,null,null,null,0,null,null,null,null,null,0]
[null,null,null,null,null,0,null,null,null,null,null,0]
[null,null,null,null,null,0,null,null,null,null,null,0]
[null,null,null,null,null,0,null,null,null,null,null,0]
[null,null,null,null,null,0,null,null,null,null,null,0]
[null,null,null,null,null,0,null,null,null,null,null,0]
[null,null,null,null,null,0,null,null,null,null,null,0]
[null,null,null,null,null,0,null,null,null,null,null,0]
[null,null,null,null,null,0,null,null,null,null,null,0]
[null,null,null,null,null,0,null,null,null,null,null,0]
[null,null,null,null,null,0,null,null,null,null,null,0]
[null,null,null,null,null,0,null,null,null,null,null,0]
[null,null,null,null,null,0,null,null,null,null,null,0]
[null,null,null,null,null,0,null,null,null,null,null,0]
[null,null,null,null,null,0,null,null,null,null,null,0]
[null,null,null,null,null,0,null,null,null,null,null,0]
[null,null,null,null,null,0,null,null,null,null,null,0]
[null,null,null,null,null,0,null,null,null,null,null,0]
[null,null,null,null,null,0,null,null,null,null,null,0]
[null,null,null,null,null,0,null,null,null,null,null,0]
[null,null,null,null,null,0,null,null,null,null,null,0]
[null,null,null,null,null,0,null,null,null,null,null,0]
[null,null,null,null,null,0,null,null,null,null,null,0]
[null,null,null,null,null,0,null,null,null,null,null,0]
[null,null,null,null,null,0,null,null,null,null,null,0]
[null,null,null,null,null,0,null,null,null,null,null,0]
[null,null,null,null,null,0,null,null,null,null,null,0]
[null,null,null,null,null,0,null,null,null,null,null,0]
[null,null,null,null,null,0,null,null,null,null,null,0]
[null,null,null,null,null,0,null,null,null,null,null,0]
[null,null,null,null,null,0,null,null,null,null,null,0]
[null,null,null,null,null,0,null,null,null,null,null,0]
[null,null,null,null,null,0,null,null,null,null,null,0]
[null,null,null,null,null,0,null,null,null,null,null,0]
[null,null,null,null,null,0,null,null,null,null,null,0]
[null,null,null,null,null,0,null,null,null,null,null,0]
[null,null,null,null,null,0,null,null,null,null,null,0]
[null,null,null,null,null,0,null,null,null,null,null,0]
[null,null,null,null,null,0,null,null,null,null,null,0]
[null,null,null,null,null,0,null,null,null,null,null,0]
[null,null,null,null,null,0,null,null,null,null,null,0]
[null,null,null,null,null,0,null,null,null,null,null,0]
[null,null,null,null,null,0,null,null,null,null,null,0]
[null,null,null,null,null,0,null,null,null,null,null,0]
[null,null,null,null,null,0,null,null,null,null,null,0]
[null,null,null,null,null,0,null,null,null,null,null,0]
[null,null,null,null,null,0,null,null,null,null,null,{"$f":"(IF(D202=0,0,D202)+IF(E202=0,0,E202))*(IF(D202>0,$K$5,1))+F201","v":0}]
[null,null,null,null,null,0,null,null,null,null,null,0]
[null,null,null,null,null,0,null,null,null,null,null,0]
[null,null,null,null,null,{"$f":"IF(D202+E202=0,0,L199)","v":0},null,null,null,null,null,0]
[null,null,null,null,null,0,null,null,null,null,null,0]
[null,null,null,null,null,0,null,null,null,null,null,0]
[null,null,null,null,null,0,null,null,null,null,null,0]
[null,null,null,null,null,0,null,null,null,null,null,0]
[null,null,null,null,null,0,null,null,null,null,null,0]
[null,null,null,null,null,0,null,null,null,null,null,0]
[null,null,null,null,null,0,null,null,null,null,null,0]
[null,null,null,null,null,0,null,null,null,null,null,0]
[null,null,null,null,null,0,null,null,null,null,null,0]
[null,null,null,null,null,0,null,null,null,null,null,0]
[null,null,null,null,null,0,null,null,null,null,null,0]
[null,null,null,null,null,0,null,null,null,null,null,0]
[null,null,null,null,null,0,null,null,null,null,null,0]
[null,null,null,null,null,0,null,null,null,null,null,0]
[null,null,null,null,null,0,null,null,null,null,null,0]
[null,null,null,null,null,0,null,null,null,null,null,0]
[null,null,null,null,null,0,null,null,null,null,null,0]
[null,null,null,null,null,0,null,null,null,null,null,0]
[null,null,null,null,null,0,null,null,null,null,null,0]
[null,null,null,null,null,0,null,null,null,null,null,0]
[null,null,null,null,null,0,null,null,null,null,null,0]
[null,null,null,null,null,0,null,null,null,null,null,0]
[null,null,null,null,null,0,null,null,null,null,null,0]
[null,null,null,null,null,0,null,null,null,null,null,0]
[null,null,null,null,null,0,null,null,null,null,null,0]
[null,null,null,null,null,0,null,null,null,null,null,0]
[null,null,null,null,null,0,null,null,null,null,null,0]
[null,null,null,null,null,0,null,null,null,null,null,0]
[null,null,null,null,null,0,null,null,null,null,null,0]
[null,null,null,null,null,0,null,null,null,null,null,0]
[null,null,null,null,null,0,null,null,null,null,null,0]
[null,null,null,null,null,0,null,null,null,null,null,0]
[null,null,null,null,null,0,null,null,null,null,null,0]
[null,null,null,null,null,0,null,null,null,null,null,0]
[null,null,null,null,null,0,null,null,null,null,null,0]
[null,null,null,null,null,0,null,null,null,null,null,0]
[null,null,null,null,null,0,null,null,null,null,null,0]
[null,null,null,null,null,0,null,null,null,null,null,0]
[null,null,null,null,null,0,null,null,null,null,null,0]
[null,null,null,null,null,0,null,null,null,null,null,0]
[null,null,null,null,null,0,null,null,null,null,null,0]
[null,null,null,null,null,0,null,null,null,null,null,0]
[null,null,null,null,null,0,null,null,null,null,null,0]
[null,null,null,null,null,0,null,null,null,null,null,0]
[null,null,null,null,null,0,null,null,null,null,null,0]
[null,null,null,null,null,0,null,null,null,null,null,0]
[null,null,null,null,null,0,null,null,null,null,null,0]
[null,null,null,null,null,0,null,null,null,null,null,0]
[null,null,null,null,null,0,null,null,null,null,null,0]
[null,null,null,null,null,0,null,null,null,null,null,0]
[null,null,null,null,null,0,null,null,null,null,null,0]
[null,null,null,null,null,0,null,null,null,null,null,0]
[null,null,null,null,null,0,null,null,null,null,null,0]
[null,null,null,null,null,0,null,null,null,null,null,0]
[null,null,null,null,null,0,null,null,null,null,null,0]
[null,null,null,null,null,0,null,null,null,null,null,0]
[null,null,null,null,null,0,null,null,null,null,null,0]
[null,null,null,null,null,0,null,null,null,null,null,0]
[null,null,null,null,null,0,null,null,null,null,null,0]
[null,null,null,null,null,0,null,null,null,null,null,0]
[null,null,null,null,null,0,null,null,null,null,null,{"$f":"(IF(D266=0,0,D266)+IF(E266=0,0,E266))*(IF(D266>0,$K$5,1))+F265","v":0}]
[null,null,null,null,null,0,null,null,null,null,null,0]
[null,null,null,null,null,0,null,null,null,null,null,0]
[null,null,null,null,null,{"$f":"IF(D266+E266=0,0,L263)","v":0},null,null,null,null,null,0]
[null,null,null,null,null,0,null,null,null,null,null,0]
[null,null,null,null,null,0,null,null,null,null,null,0]
[null,null,null,null,null,0,null,null,null,null,null,0]
[null,null,null,null,null,0,null,null,null,null,null,0]
[null,null,null,null,null,0,null,null,null,null,null,0]
[null,null,null,null,null,0,null,null,null,null,null,0]
[null,null,null,null,null,0,null,null,null,null,null,0]
[null,null,null,null,null,0,null,null,null,null,null,0]
[null,null,null,null,null,0,null,null,null,null,null,0]
[null,null,null,null,null,0,null,null,null,null,null,0]
[null,null,null,null,null,0,null,null,null,null,null,0]
[null,null,null,null,null,0,null,null,null,null,null,0]
[null,null,null,null,null,0,null,null,null,null,null,0]
[null,null,null,null,null,0,null,null,null,null,null,0]
[null,null,null,null,null,0,null,null,null,null,null,0]
[null,null,null,null,null,0,null,null,null,null,null,0]
[null,null,null,null,null,0,null,null,null,null,null,0]
[null,null,null,null,null,0,null,null,null,null,null,0]
[null,null,null,null,null,0,null,null,null,null,null,0]
[null,null,null,null,null,0,null,null,null,null,null,0]
[null,null,null,null,null,0,null,null,null,null,null,0]
[null,null,null,null,null,0,null,null,null,null,null,0]
[null,null,null,null,null,0,null,null,null,null,null,0]
[null,null,null,null,null,0,null,null,null,null,null,0]
[null,null,null,null,null,0,null,null,null,null,null,0]
[null,null,null,null,null,0,null,null,null,null,null,0]
[null,null,null,null,null,0,null,null,null,null,null,0]
[null,null,null,null,null,0,null,null,null,null,null,0]
[null,null,null,null,null,0,null,null,null,null,null,0]
[null,null,null,null,null,0,null,null,null,null,null,0]
[null,null,null,null,null,0,null,null,null,null,null,0]
[null,null,null,null,null,0,null,null,null,null,null,0]
[null,null,null,null,null,0,null,null,null,null,null,0]
[null,null,null,null,null,0,null,null,null,null,null,0]
[null,null,null,null,null,0,null,null,null,null,null,0]
[null,null,null,null,null,0,null,null,null,null,null,0]
[null,null,null,null,null,0,null,null,null,null,null,0]
[null,null,null,null,null,0,null,null,null,null,null,0]
[null,null,null,null,null,0,null,null,null,null,null,0]
[null,null,null,null,null,0,null,null,null,null,null,0]
[null,null,null,null,null,0,null,null,null,null,null,0]
[null,null,null,null,null,0,null,null,null,null,null,0]
[null,null,null,null,null,0,null,null,null,null,null,0]
[null,null,null,null,null,0,null,null,null,null,null,0]
[null,null,null,null,null,0,null,null,null,null,null,0]
[null,null,null,null,null,0,null,null,null,null,null,0]
[null,null,null,null,null,0,null,null,null,null,null,0]
[null,null,null,null,null,0,null,null,null,null,null,0]
[null,null,null,null,null,0,null,null,null,null,null,0]
[null,null,null,null,null,0,null,null,null,null,null,0]
[null,null,null,null,null,0,null,null,null,null,null,0]
[null,null,null,null,null,0,null,null,null,null,null,0]
[null,null,null,null,null,0,null,null,null,null,null,0]
[null,null,null,null,null,0,null,null,null,null,null,0]
[null,null,null,null,null,0,null,null,null,null,null,0]
[null,null,null,null,null,0,null,null,null,null,null,0]
[null,null,null,null,null,0,null,null,null,null,null,0]
[null,null,null,null,null,0,null,null,null,null,null,0]
[null,null,null,null,null,0,null,null,null,null,null,0]
[null,null,null,null,null,0,null,null,null,null,null,0]
[null,null,null,null,null,0,null,null,null,null,null,{"$f":"(IF(D330=0,0,D330)+IF(E330=0,0,E330))*(IF(D330>0,$K$5,1))+F329","v":0}]
[null,null,null,null,null,0,null,null,null,null,null,0]
[null,null,null,null,null,0,null,null,null,null,null,0]
[null,null,null,null,null,{"$f":"IF(D330+E330=0,0,L327)","v":0},null,null,null,null,null,0]
[null,null,null,null,null,0,null,null,null,null,null,0]
[null,null,null,null,null,0,null,null,null,null,null,0]
[null,null,null,null,null,0,null,null,null,null,null,0]
[null,null,null,null,null,0,null,null,null,null,null,0]
[null,null,null,null,null,0,null,null,null,null,null,0]
[null,null,null,null,null,0,null,null,null,null,null,0]
[null,null,null,null,null,0,null,null,null,null,null,0]
[null,null,null,null,null,0,null,null,null,null,null,0]
[null,null,null,null,null,0,null,null,null,null,null,0]
[null,null,null,null,null,0,null,null,null,null,null,0]
[null,null,null,null,null,0,null,null,null,null,null,0]
[null,null,null,null,null,0,null,null,null,null,null,0]
[null,null,null,null,null,0,null,null,null,null,null,0]
[null,null,null,null,null,0,null,null,null,null,null,0]
[null,null,null,null,null,0,null,null,null,null,null,0]
[null,null,null,null,null,0,null,null,null,null,null,0]
[null,null,null,null,null,0,null,null,null,null,null,0]
[null,null,null,null,null,0,null,null,null,null,null,0]
[null,null,null,null,null,0,null,null,null,null,null,0]
[null,null,null,null,null,0,null,null,null,null,null,0]
[null,null,null,null,null,0,null,null,null,null,null,0]
[null,null,null,null,null,0,null,null,null,null,null,0]
[null,null,null,null,null,0,null,null,null,null,null,0]
[null,null,null,null,null,0,null,null,null,null,null,0]
[null,null,null,null,null,0,null,null,null,null,null,0]
[null,null,null,null,null,0,null,null,null,null,null,0]
[null,null,null,null,null,0,null,null,null,null,null,0]
[null,null,null,null,null,0,null,null,null,null,null,0]
[null,null,null,null,null,0,null,null,null,null,null,0]
[null,null,null,null,null,0,null,null,null,null,null,0]
[null,null,null,null,null,0,null,null,null,null,null,0]
[null,null,null,null,null,0,null,null,null,null,null,0]
[null,null,null,null,null,0,null,null,null,null,null,0]
[null,null,null,null,null,0,null,null,null,null,null,0]
[null,null,null,null,null,0,null,null,null,null,null,0]
[null,null,null,null,null,0,null,null,null,null,null,0]
[null,null,null,null,null,0,null,null,null,null,null,0]
[null,null,null,null,null,0,null,null,null,null,null,0]
[null,null,null,null,null,0,null,null,null,null,null,0]
[null,null,null,null,null,0,null,null,null,null,null,0]
[null,null,null,null,null,0,null,null,null,null,null,0]
[null,null,null,null,null,0,null,null,null,null,null,0]
[null,null,null,null,null,0,null,null,null,null,null,0]
[null,null,null,null,null,0,null,null,null,null,null,0]
[null,null,null,null,null,0,null,null,null,null,null,0]
[null,null,null,null,null,0,null,null,null,null,null,0]
[null,null,null,null,null,0,null,null,null,null,null,0]
[null,null,null,null,null,0,null,null,null,null,null,0]
[null,null,null,null,null,0,null,null,null,null,null,0]
[null,null,null,null,null,0,null,null,null,null,null,0]
[null,null,null,null,null,0,null,null,null,null,null,0]
[null,null,null,null,null,0,null,null,null,null,null,0]
[null,null,null,null,null,0,null,null,null,null,null,0]
[null,null,null,null,null,0,null,null,null,null,null,0]
[null,null,null,null,null,0,null,null,null,null,null,0]
[null,null,null,null,null,0,null,null,null,null,null,0]
[null,null,null,null,null,0,null,null,null,null,null,0]
[null,null,null,null,null,0,null,null,null,null,null,0]
[null,null,null,null,null,0,null,null,null,null,null,0]
[null,null,null,null,null,0,null,null,null,null,null,0]
[null,null,null,null,null,0,null,null,null,null,null,{"$f":"(IF(D394=0,0,D394)+IF(E394=0,0,E394))*(IF(D394>0,$K$5,1))+F393","v":0}]
[null,null,null,null,null,0,null,null,null,null,null,0]
[null,null,null,null,null,0,null,null,null,null,null,0]
[null,null,null,null,null,{"$f":"IF(D394+E394=0,0,L391)","v":0},null,null,null,null,null,0]
[null,null,null,null,null,0,null,null,null,null,null,0]
[null,null,null,null,null,0,null,null,null,null,null,0]
[null,null,null,null,null,0,null,null,null,null,null,0]
[null,null,null,null,null,0,null,null,null,null,null,0]
[null,null,null,null,null,0,null,null,null,null,null,0]
[null,null,null,null,null,0,null,null,null,null,null,0]
[null,null,null,null,null,0,null,null,null,null,null,0]
[null,null,null,null,null,0,null,null,null,null,null,0]
[null,null,null,null,null,0,null,null,null,null,null,0]
[null,null,null,null,null,0,null,null,null,null,null,0]
[null,null,null,null,null,0,null,null,null,null,null,0]
[null,null,null,null,null,0,null,null,null,null,null,0]
[null,null,null,null,null,0,null,null,null,null,null,0]
[null,null,null,null,null,0,null,null,null,null,null,0]
[null,null,null,null,null,0,null,null,null,null,null,0]
[null,null,null,null,null,0,null,null,null,null,null,0]
[null,null,null,null,null,0,null,null,null,null,null,0]
[null,null,null,null,null,0,null,null,null,null,null,0]
[null,null,null,null,null,0,null,null,null,null,null,0]
[null,null,null,null,null,0,null,null,null,null,null,0]
[null,null,null,null,null,0,null,null,null,null,null,0]
[null,null,null,null,null,0,null,null,null,null,null,0]
[null,null,null,null,null,0,null,null,null,null,null,0]
[null,null,null,null,null,0,null,null,null,null,null,0]
[null,null,null,null,null,0,null,null,null,null,null,0]
[null,null,null,null,null,0,null,null,null,null,null,0]
[null,null,null,null,null,0,null,null,null,null,null,0]
[null,null,null,null,null,0,null,null,null,null,null,0]
[null,null,null,null,null,0,null,null,null,null,null,0]
[null,null,null,null,null,0,null,null,null,null,null,0]
[null,null,null,null,null,0,null,null,null,null,null,0]
[null,null,null,null,null,0,null,null,null,null,null,0]
[null,null,null,null,null,0,null,null,null,null,null,0]
[null,null,null,null,null,0,null,null,null,null,null,0]
[null,null,null,null,null,0,null,null,null,null,null,0]
[null,null,null,null,null,0,null,null,null,null,null,0]
[null,null,null,null,null,0,null,null,null,null,null,0]
[null,null,null,null,null,0,null,null,null,null,null,0]
[null,null,null,null,null,0,null,null,null,null,null,0]
[null,null,null,null,null,0,null,null,null,null,null,0]
[null,null,null,null,null,0,null,null,null,null,null,0]
[null,null,null,null,null,0,null,null,null,null,null,0]
[null,null,null,null,null,0,null,null,null,null,null,0]
[null,null,null,null,null,0,null,null,null,null,null,0]
[null,null,null,null,null,0,null,null,null,null,null,0]
[null,null,null,null,null,0,null,null,null,null,null,0]
[null,null,null,null,null,0,null,null,null,null,null,0]
[null,null,null,null,null,0,null,null,null,null,null,0]
[null,null,null,null,null,0,null,null,null,null,null,0]
[null,null,null,null,null,0,null,null,null,null,null,0]
[null,null,null,null,null,0,null,null,null,null,null,0]
[null,null,null,null,null,0,null,null,null,null,null,0]
[null,null,null,null,null,0,null,null,null,null,null,0]
[null,null,null,null,null,0,null,null,null,null,null,0]
[null,null,null,null,null,0,null,null,null,null,null,0]
[null,null,null,null,null,0,null,null,null,null,null,0]
[null,null,null,null,null,0,null,null,null,null,null,0]
[null,null,null,null,null,0,null,null,null,null,null,0]
[null,null,null,null,null,0,null,null,null,null,null,0]
[null,null,null,null,null,0,null,null,null,null,null,0]
[null,null,null,null,null,0,null,null,null,null,null,{"$f":"(IF(D458=0,0,D458)+IF(E458=0,0,E458))*(IF(D458>0,$K$5,1))+F457","v":0}]
[null,null,null,null,null,0,null,null,null,null,null,0]
[null,null,null,null,null,0,null,null,null,null,null,0]
[null,null,null,null,null,{"$f":"IF(D458+E458=0,0,L455)","v":0},null,null,null,null,null,0]
[null,null,null,null,null,0,null,null,null,null,null,0]
[null,null,null,null,null,0,null,null,null,null,null,0]
[null,null,null,null,null,0,null,null,null,null,null,0]
[null,null,null,null,null,0,null,null,null,null,null,0]
[null,null,null,null,null,0,null,null,null,null,null,0]
[null,null,null,null,null,0,null,null,null,null,null,0]
[null,null,null,null,null,0,null,null,null,null,null,0]
[null,null,null,null,null,0,null,null,null,null,null,0]
[null,null,null,null,null,0,null,null,null,null,null,0]
[null,null,null,null,null,0,null,null,null,null,null,0]
[null,null,null,null,null,0,null,null,null,null,null,0]
[null,null,null,null,null,0,null,null,null,null,null,0]
[null,null,null,null,null,0,null,null,null,null,null,0]
[null,null,null,null,null,0,null,null,null,null,null,0]
[null,null,null,null,null,0,null,null,null,null,null,0]
[null,null,null,null,null,0,null,null,null,null,null,0]
[null,null,null,null,null,0,null,null,null,null,null,0]
[null,null,null,null,null,0,null,null,null,null,null,0]
[null,null,null,null,null,0,null,null,null,null,null,0]
[null,null,null,null,null,0,null,null,null,null,null,0]
[null,null,null,null,null,0,null,null,null,null,null,0]
[null,null,null,null,null,0,null,null,null,null,null,0]
[null,null,null,null,null,0,null,null,null,null,null,0]
[null,null,null,null,null,0,null,null,null,null,null,0]
[null,null,null,null,null,0,null,null,null,null,null,0]
[null,null,null,null,null,0,null,null,null,null,null,0]
[null,null,null,null,null,0,null,null,null,null,null,0]
[null,null,null,null,null,0,null,null,null,null,null,0]
[null,null,null,null,null,0,null,null,null,null,null,0]
[null,null,null,null,null,0,null,null,null,null,null,0]
[null,null,null,null,null,0,null,null,null,null,null,0]
[null,null,null,null,null,0,null,null,null,null,null,0]
[null,null,null,null,null,0,null,null,null,null,null,0]
[null,null,null,null,null,0,null,null,null,null,null,0]
[null,null,null,null,null,0,null,null,null,null,null,0]
[null,null,null,null,null,0,null,null,null,null,null,0]
[null,null,null,null,null,0,null,null,null,null,null,0]
[null,null,null,null,null,0,null,null,null,null,null,0]
[null,null,null,null,null,0,null,null,null,null,null,0]
[null,null,null,null,null,0,null,null,null,null,null,0]
[null,null,null,null,null,0,null,null,null,null,null,0]
[null,null,null,null,null,0,null,null,null,null,null,0]
[null,null,null,null,null,0,null,null,null,null,null,0]
[null,null,null,null,null,0,null,null,null,null,null,0]
[null,null,null,null,null,0,null,null,null,null,null,0]
[null,null,null,null,null,0,null,null,null,null,null,0]
[null,null,null,null,null,0,null,null,null,null,null,0]
[null,null,null,null,null,0,null,null,null,null,null,0]
[null,null,null,null,null,0,null,null,null,null,null,0]
[null,null,null,null,null,0,null,null,null,null,null,0]
[null,null,null,null,null,0,null,null,null,null,null,0]
[null,null,null,null,null,0,null,null,null,null,null,0]
[null,null,null,null,null,0,null,null,null,null,null,0]
[null,null,null,null,null,0,null,null,null,null,null,0]
[null,null,null,null,null,0,null,null,null,null,null,0]
[null,null,null,null,null,0,null,null,null,null,null,0]
[null,null,null,null,null,0,null,null,null,null,null,0]
[null,null,null,null,null,0,null,null,null,null,null,0]
[null,null,null,null,null,0,null,null,null,null,null,0]
[null,null,null,null,null,0,null,null,null,null,null,0]
[null,null,null,null,null,0,null,null,null,null,null,{"$f":"(IF(D522=0,0,D522)+IF(E522=0,0,E522))*(IF(D522>0,$K$5,1))+F521","v":0}]
[null,null,null,null,null,0,null,null,null,null,null,0]
[null,null,null,null,null,0,null,null,null,null,null,0]
[null,null,null,null,null,{"$f":"IF(D522+E522=0,0,L519)","v":0},null,null,null,null,null,0]
[null,null,null,null,null,0,null,null,null,null,null,0]
[null,null,null,null,null,0,null,null,null,null,null,0]
[null,null,null,null,null,0,null,null,null,null,null,0]
[null,null,null,null,null,0,null,null,null,null,null,0]
[null,null,null,null,null,0,null,null,null,null,null,0]
[null,null,null,null,null,0,null,null,null,null,null,0]
[null,null,null,null,null,0,null,null,null,null,null,0]
[null,null,null,null,null,0,null,null,null,null,null,0]
[null,null,null,null,null,0,null,null,null,null,null,0]
[null,null,null,null,null,0,null,null,null,null,null,0]
[null,null,null,null,null,0,null,null,null,null,null,0]
[null,null,null,null,null,0,null,null,null,null,null,0]
[null,null,null,null,null,0,null,null,null,null,null,0]
[null,null,null,null,null,0,null,null,null,null,null,0]
[null,null,null,null,null,0,null,null,null,null,null,0]
[null,null,null,null,null,0,null,null,null,null,null,0]
[null,null,null,null,null,0,null,null,null,null,null,0]
[null,null,null,null,null,0,null,null,null,null,null,0]
[null,null,null,null,null,0,null,null,null,null,null,0]
[null,null,null,null,null,0,null,null,null,null,null,0]
[null,null,null,null,null,0,null,null,null,null,null,0]
[null,null,null,null,null,0,null,null,null,null,null,0]
[null,null,null,null,null,0,null,null,null,null,null,0]
[null,null,null,null,null,0,null,null,null,null,null,0]
[null,null,null,null,null,0,null,null,null,null,null,0]
[null,null,null,null,null,0,null,null,null,null,null,0]
[null,null,null,null,null,0,null,null,null,null,null,0]
[null,null,null,null,null,0,null,null,null,null,null,0]
[null,null,null,null,null,0,null,null,null,null,null,0]
[null,null,null,null,null,0,null,null,null,null,null,0]
[null,null,null,null,null,0,null,null,null,null,null,0]
[null,null,null,null,null,0,null,null,null,null,null,0]
[null,null,null,null,null,0,null,null,null,null,null,0]
[null,null,null,null,null,0,null,null,null,null,null,0]
[null,null,null,null,null,0,null,null,null,null,null,0]
[null,null,null,null,null,0,null,null,null,null,null,0]
[null,null,null,null,null,0,null,null,null,null,null,0]
[null,null,null,null,null,0,null,null,null,null,null,0]
[null,null,null,null,null,0,null,null,null,null,null,0]
[null,null,null,null,null,0,null,null,null,null,null,0]
[null,null,null,null,null,0,null,null,null,null,null,0]
[null,null,null,null,null,0,null,null,null,null,null,0]
[null,null,null,null,null,0,null,null,null,null,null,0]
[null,null,null,null,null,0,null,null,null,null,null,0]
[null,null,null,null,null,0,null,null,null,null,null,0]
[null,null,null,null,null,0,null,null,null,null,null,0]
[null,null,null,null,null,0,null,null,null,null,null,0]
[null,null,null,null,null,0,null,null,null,null,null,0]
[null,null,null,null,null,0,null,null,null,null,null,0]
[null,null,null,null,null,0,null,null,null,null,null,0]
[null,null,null,null,null,0,null,null,null,null,null,0]
[null,null,null,null,null,0,null,null,null,null,null,0]
[null,null,null,null,null,0,null,null,null,null,null,0]
[null,null,null,null,null,0,null,null,null,null,null,0]
[null,null,null,null,null,0,null,null,null,null,null,0]
[null,null,null,null,null,0,null,null,null,null,null,0]
[null,null,null,null,null,0,null,null,null,null,null,0]
[null,null,null,null,null,0,null,null,null,null,null,0]
[null,null,null,null,null,0,null,null,null,null,null,0]
[null,null,null,null,null,0,null,null,null,null,null,0]
[null,null,null,null,null,0,null,null,null,null,null,{"$f":"(IF(D586=0,0,D586)+IF(E586=0,0,E586))*(IF(D586>0,$K$5,1))+F585","v":0}]
[null,null,null,null,null,0,null,null,null,null,null,0]
[null,null,null,null,null,0,null,null,null,null,null,0]
[null,null,null,null,null,{"$f":"IF(D586+E586=0,0,L583)","v":0},null,null,null,null,null,0]
[null,null,null,null,null,0,null,null,null,null,null,0]
[null,null,null,null,null,0,null,null,null,null,null,0]
[null,null,null,null,null,0,null,null,null,null,null,0]
[null,null,null,null,null,0,null,null,null,null,null,0]
[null,null,null,null,null,0,null,null,null,null,null,0]
[null,null,null,null,null,0,null,null,null,null,null,0]
[null,null,null,null,null,0,null,null,null,null,null,0]
[null,null,null,null,null,0,null,null,null,null,null,0]
[null,null,null,null,null,0,null,null,null,null,null,0]
[null,null,null,null,null,0,null,null,null,null,null,0]
[null,null,null,null,null,0,null,null,null,null,null,0]
[null,null,null,null,null,0,null,null,null,null,null,0]
[null,null,null,null,null,0,null,null,null,null,null,0]
[null,null,null,null,null,0,null,null,null,null,null,0]
[null,null,null,null,null,0]
[null,null,null,null,null,0]
[null,null,null,null,null,0]